﻿執行日期,科目名稱,摘要,受款單位, 金額 
113/01/01,國立高級中等學校教學與訓輔輔助 - 對特種基金之補助,大額通報教補12月29日-113年1月份校務基金學校薪資,國立中興高級中學,"8,998,000"
113/01/01,國立高級中等學校教學與訓輔輔助 - 對特種基金之補助,大額通報教補12月29日-113年1月份校務基金學校薪資,國立斗六高級中學,"11,271,000"
113/01/01,國立高級中等學校教學與訓輔輔助 - 對特種基金之補助,大額通報教補12月29日-113年1月份校務基金學校薪資,國立北門高級中學,"6,990,000"
113/01/01,國立高級中等學校教學與訓輔輔助 - 對特種基金之補助,大額通報教補12月29日-113年1月份校務基金學校薪資,國立北港高級中學,"10,100,000"
113/01/01,國立高級中等學校教學與訓輔輔助 - 對特種基金之補助,大額通報教補12月29日-113年1月份校務基金學校薪資,國立台東高級中學,"7,936,000"
113/01/01,國立高級中等學校教學與訓輔輔助 - 對特種基金之補助,大額通報教補12月29日-113年1月份校務基金學校薪資,國立玉里高級中學,"9,080,000"
113/01/01,國立高級中等學校教學與訓輔輔助 - 對特種基金之補助,大額通報教補12月29日-113年1月份校務基金學校薪資,國立竹山高級中學,"10,370,000"
113/01/01,國立高級中等學校教學與訓輔輔助 - 對特種基金之補助,大額通報教補12月29日-113年1月份校務基金學校薪資,國立竹北高級中學,"15,000,000"
113/01/01,國立高級中等學校教學與訓輔輔助 - 對特種基金之補助,大額通報教補12月29日-113年1月份校務基金學校薪資,國立竹東高級中學,"11,600,000"
113/01/01,國立高級中等學校教學與訓輔輔助 - 對特種基金之補助,大額通報教補12月29日-113年1月份校務基金學校薪資,國立竹南高級中學,"11,231,000"
113/01/01,國立高級中等學校教學與訓輔輔助 - 對特種基金之補助,大額通報教補12月29日-113年1月份校務基金學校薪資,國立和美實驗學校,"10,300,000"
113/01/01,國立高級中等學校教學與訓輔輔助 - 對特種基金之補助,大額通報教補12月29日-113年1月份校務基金學校薪資,國立宜蘭高級中學,"10,295,000"
113/01/01,國立高級中等學校教學與訓輔輔助 - 對特種基金之補助,大額通報教補12月29日-113年1月份校務基金學校薪資,國立岡山高級中學,"9,433,000"
113/01/01,國立高級中等學校教學與訓輔輔助 - 對特種基金之補助,大額通報教補12月29日-113年1月份校務基金學校薪資,國立東石高級中學,"9,769,000"
113/01/01,國立高級中等學校教學與訓輔輔助 - 對特種基金之補助,大額通報教補12月29日-113年1月份校務基金學校薪資,國立花蓮高級中學,"8,803,000"
113/01/01,國立高級中等學校教學與訓輔輔助 - 對特種基金之補助,大額通報教補12月29日-113年1月份校務基金學校薪資,國立虎尾高級中學,"9,200,000"
113/01/01,國立高級中等學校教學與訓輔輔助 - 對特種基金之補助,大額通報教補12月29日-113年1月份校務基金學校薪資,國立金門高級中學,"8,690,000"
113/01/01,國立高級中等學校教學與訓輔輔助 - 對特種基金之補助,大額通報教補12月29日-113年1月份校務基金學校薪資,國立南投高級中學,"12,000,000"
113/01/01,國立高級中等學校教學與訓輔輔助 - 對特種基金之補助,大額通報教補12月29日-113年1月份校務基金學校薪資,國立屏北高級中學,"9,500,000"
113/01/01,國立高級中等學校教學與訓輔輔助 - 對特種基金之補助,大額通報教補12月29日-113年1月份校務基金學校薪資,國立屏東高級中學,"14,174,000"
113/01/01,國立高級中等學校教學與訓輔輔助 - 對特種基金之補助,大額通報教補12月29日-113年1月份校務基金學校薪資,國立後壁高級中學,"9,416,000"
113/01/01,國立高級中等學校教學與訓輔輔助 - 對特種基金之補助,大額通報教補12月29日-113年1月份校務基金學校薪資,國立苑裡高級中學,"9,059,000"
113/01/01,國立高級中等學校教學與訓輔輔助 - 對特種基金之補助,大額通報教補12月29日-113年1月份校務基金學校薪資,國立苗栗高級中學,"9,100,000"
113/01/01,國立高級中等學校教學與訓輔輔助 - 對特種基金之補助,大額通報教補12月29日-113年1月份校務基金學校薪資,國立員林高級中學,"10,235,000"
113/01/01,國立高級中等學校教學與訓輔輔助 - 對特種基金之補助,大額通報教補12月29日-113年1月份校務基金學校薪資,國立馬公高級中學,"11,961,000"
113/01/01,國立高級中等學校教學與訓輔輔助 - 對特種基金之補助,大額通報教補12月29日-113年1月份校務基金學校薪資,國立馬祖高級中學,"5,355,000"
113/01/01,國立高級中等學校教學與訓輔輔助 - 對特種基金之補助,大額通報教補12月29日-113年1月份校務基金學校薪資,國立基隆高級中學,"7,700,000"
113/01/01,國立高級中等學校教學與訓輔輔助 - 對特種基金之補助,大額通報教補12月29日-113年1月份校務基金學校薪資,國立鹿港高級中學,"10,655,000"
113/01/01,國立高級中等學校教學與訓輔輔助 - 對特種基金之補助,大額通報教補12月29日-113年1月份校務基金學校薪資,國立善化高級中學,"7,545,000"
113/01/01,國立高級中等學校教學與訓輔輔助 - 對特種基金之補助,大額通報教補12月29日-113年1月份校務基金學校薪資,國立華僑高級中學,"14,000,000"
113/01/01,國立高級中等學校教學與訓輔輔助 - 對特種基金之補助,大額通報教補12月29日-113年1月份校務基金學校薪資,國立新化高級中學,"10,307,000"
113/01/01,國立高級中等學校教學與訓輔輔助 - 對特種基金之補助,大額通報教補12月29日-113年1月份校務基金學校薪資,國立新竹高級中學,"12,500,000"
113/01/01,國立高級中等學校教學與訓輔輔助 - 對特種基金之補助,大額通報教補12月29日-113年1月份校務基金學校薪資,國立新營高級中學,"9,647,000"
113/01/01,國立高級中等學校教學與訓輔輔助 - 對特種基金之補助,大額通報教補12月29日-113年1月份校務基金學校薪資,國立新豐高級中學,"8,756,000"
113/01/01,國立高級中等學校教學與訓輔輔助 - 對特種基金之補助,大額通報教補12月29日-113年1月份校務基金學校薪資,國立溪湖高級中學,"10,584,000"
113/01/01,國立高級中等學校教學與訓輔輔助 - 對特種基金之補助,大額通報教補12月29日-113年1月份校務基金學校薪資,國立嘉義特教學校,"8,245,000"
113/01/01,國立高級中等學校教學與訓輔輔助 - 對特種基金之補助,大額通報教補12月29日-113年1月份校務基金學校薪資,國立嘉義高級中學,"14,070,000"
113/01/01,國立高級中等學校教學與訓輔輔助 - 對特種基金之補助,大額通報教補12月29日-113年1月份校務基金學校薪資,國立彰化高級中學,"16,100,000"
113/01/01,國立高級中等學校教學與訓輔輔助 - 對特種基金之補助,大額通報教補12月29日-113年1月份校務基金學校薪資,國立旗美高級中學,"6,800,000"
113/01/01,國立高級中等學校教學與訓輔輔助 - 對特種基金之補助,大額通報教補12月29日-113年1月份校務基金學校薪資,國立鳳山高級中學,"13,500,000"
113/01/01,國立高級中等學校教學與訓輔輔助 - 對特種基金之補助,大額通報教補12月29日-113年1月份校務基金學校薪資,國立鳳新高級中學,"12,584,000"
113/01/01,國立高級中等學校教學與訓輔輔助 - 對特種基金之補助,大額通報教補12月29日-113年1月份校務基金學校薪資,國立潮州高級中學,"8,631,000"
113/01/01,國立高級中等學校教學與訓輔輔助 - 對特種基金之補助,大額通報教補12月29日-113年1月份校務基金學校薪資,國立羅東高級中學,"9,945,000"
113/01/01,國立高級中等學校教學與訓輔輔助 - 對特種基金之補助,大額通報教補12月29日-113年1月份校務基金學校薪資,國立關西高級中學,"7,600,000"
113/01/01,國立高級中等學校教學與訓輔輔助 - 對特種基金之補助,大額通報教補12月29日-113年1月份校務基金學校薪資,國立台東女子高級中學,"7,500,000"
113/01/01,國立高級中等學校教學與訓輔輔助 - 對特種基金之補助,大額通報教補12月29日-113年1月份校務基金學校薪資,國立台南女子高級中學,"12,913,000"
113/01/01,國立高級中等學校教學與訓輔輔助 - 對特種基金之補助,大額通報教補12月29日-113年1月份校務基金學校薪資,國立台南家齊高級中學,"12,100,000"
113/01/01,國立高級中等學校教學與訓輔輔助 - 對特種基金之補助,大額通報教補12月29日-113年1月份校務基金學校薪資,國立台南第一高級中學,"13,356,000"
113/01/01,國立高級中等學校教學與訓輔輔助 - 對特種基金之補助,大額通報教補12月29日-113年1月份校務基金學校薪資,國立台南第二高級中學,"12,100,000"
113/01/01,國立高級中等學校教學與訓輔輔助 - 對特種基金之補助,大額通報教補12月29日-113年1月份校務基金學校薪資,國立卓蘭高級中等學校,"11,000,000"
113/01/01,國立高級中等學校教學與訓輔輔助 - 對特種基金之補助,大額通報教補12月29日-113年1月份校務基金學校薪資,國立宜蘭特殊教育學校,"4,500,000"
113/01/01,國立高級中等學校教學與訓輔輔助 - 對特種基金之補助,大額通報教補12月29日-113年1月份校務基金學校薪資,國立花蓮女子高級中學,"7,600,000"
113/01/01,國立高級中等學校教學與訓輔輔助 - 對特種基金之補助,大額通報教補12月29日-113年1月份校務基金學校薪資,國立花蓮特殊教育學校,"5,250,000"
113/01/01,國立高級中等學校教學與訓輔輔助 - 對特種基金之補助,大額通報教補12月29日-113年1月份校務基金學校薪資,國立南投特殊教育學校,"5,000,000"
113/01/01,國立高級中等學校教學與訓輔輔助 - 對特種基金之補助,大額通報教補12月29日-113年1月份校務基金學校薪資,國立屏東女子高級中學,"14,500,000"
113/01/01,國立高級中等學校教學與訓輔輔助 - 對特種基金之補助,大額通報教補12月29日-113年1月份校務基金學校薪資,國立屏東特殊教育學校,"4,700,000"
113/01/01,國立高級中等學校教學與訓輔輔助 - 對特種基金之補助,大額通報教補12月29日-113年1月份校務基金學校薪資,國立苗栗特殊教育學校,"4,771,000"
113/01/01,國立高級中等學校教學與訓輔輔助 - 對特種基金之補助,大額通報教補12月29日-113年1月份校務基金學校薪資,國立基隆女子高級中學,"10,000,000"
113/01/01,國立高級中等學校教學與訓輔輔助 - 對特種基金之補助,大額通報教補12月29日-113年1月份校務基金學校薪資,國立基隆特殊教育學校,"4,800,000"
113/01/01,國立高級中等學校教學與訓輔輔助 - 對特種基金之補助,大額通報教補12月29日-113年1月份校務基金學校薪資,國立雲林特殊教育學校,"5,782,000"
113/01/01,國立高級中等學校教學與訓輔輔助 - 對特種基金之補助,大額通報教補12月29日-113年1月份校務基金學校薪資,國立新竹女子高級中學,"13,156,000"
113/01/01,國立高級中等學校教學與訓輔輔助 - 對特種基金之補助,大額通報教補12月29日-113年1月份校務基金學校薪資,國立新竹特殊教育學校,"5,456,000"
113/01/01,國立高級中等學校教學與訓輔輔助 - 對特種基金之補助,大額通報教補12月29日-113年1月份校務基金學校薪資,國立新港藝術高級中學,"4,077,000"
113/01/01,國立高級中等學校教學與訓輔輔助 - 對特種基金之補助,大額通報教補12月29日-113年1月份校務基金學校薪資,國立嘉義女子高級中學,"11,645,000"
113/01/01,國立高級中等學校教學與訓輔輔助 - 對特種基金之補助,大額通報教補12月29日-113年1月份校務基金學校薪資,國立彰化女子高級中學,"10,236,000"
113/01/01,國立高級中等學校教學與訓輔輔助 - 對特種基金之補助,大額通報教補12月29日-113年1月份校務基金學校薪資,國立彰化特殊教育學校,"10,000,000"
113/01/01,國立高級中等學校教學與訓輔輔助 - 對特種基金之補助,大額通報教補12月29日-113年1月份校務基金學校薪資,國立臺南特殊教育學校,"8,519,000"
113/01/01,國立高級中等學校教學與訓輔輔助 - 對特種基金之補助,大額通報教補12月29日-113年1月份校務基金學校薪資,國立蘭陽女子高級中學,"11,500,000"
113/01/01,國立高級中等學校教學與訓輔輔助 - 對特種基金之補助,大額通報教補12月29日-113年1月份校務基金學校薪資,國立二林高級工商職業學校,"13,432,000"
113/01/01,國立高級中等學校教學與訓輔輔助 - 對特種基金之補助,大額通報教補12月29日-113年1月份校務基金學校薪資,國立土庫高級商工職業學校,"8,933,000"
113/01/01,國立高級中等學校教學與訓輔輔助 - 對特種基金之補助,大額通報教補12月29日-113年1月份校務基金學校薪資,國立大湖高級農工職業學校,"8,200,000"
113/01/01,國立高級中等學校教學與訓輔輔助 - 對特種基金之補助,大額通報教補12月29日-113年1月份校務基金學校薪資,國立中興大學附屬高級中學,"12,500,000"
113/01/01,國立高級中等學校教學與訓輔輔助 - 對特種基金之補助,大額通報教補12月29日-113年1月份校務基金學校薪資,國立仁愛高級農業職業學校,"5,800,000"
113/01/01,國立高級中等學校教學與訓輔輔助 - 對特種基金之補助,大額通報教補12月29日-113年1月份校務基金學校薪資,國立內埔高級農工職業學校,"9,700,000"
113/01/01,國立高級中等學校教學與訓輔輔助 - 對特種基金之補助,大額通報教補12月29日-113年1月份校務基金學校薪資,國立水里高級商工職業學校,"8,949,000"
113/01/01,國立高級中等學校教學與訓輔輔助 - 對特種基金之補助,大額通報教補12月29日-113年1月份校務基金學校薪資,國立北門高級農工職業學校,"13,435,000"
113/01/01,國立高級中等學校教學與訓輔輔助 - 對特種基金之補助,大額通報教補12月29日-113年1月份校務基金學校薪資,國立北港高級農工職業學校,"8,800,000"
113/01/01,國立高級中等學校教學與訓輔輔助 - 對特種基金之補助,大額通報教補12月29日-113年1月份校務基金學校薪資,國立台東高級商業職業學校,"9,200,000"
113/01/01,國立高級中等學校教學與訓輔輔助 - 對特種基金之補助,大額通報教補12月29日-113年1月份校務基金學校薪資,國立台南高級商業職業學校,"14,500,000"
113/01/01,國立高級中等學校教學與訓輔輔助 - 對特種基金之補助,大額通報教補12月29日-113年1月份校務基金學校薪資,國立民雄高級農工職業學校,"10,815,000"
113/01/01,國立高級中等學校教學與訓輔輔助 - 對特種基金之補助,大額通報教補12月29日-113年1月份校務基金學校薪資,國立永靖高級工業職業學校,"10,800,000"
113/01/01,國立高級中等學校教學與訓輔輔助 - 對特種基金之補助,大額通報教補12月29日-113年1月份校務基金學校薪資,國立玉井高級工商職業學校,"7,622,000"
113/01/01,國立高級中等學校教學與訓輔輔助 - 對特種基金之補助,大額通報教補12月29日-113年1月份校務基金學校薪資,國立白河高級商工職業學校,"8,240,000"
113/01/01,國立高級中等學校教學與訓輔輔助 - 對特種基金之補助,大額通報教補12月29日-113年1月份校務基金學校薪資,國立光復高級商工職業學校,"5,200,000"
113/01/01,國立高級中等學校教學與訓輔輔助 - 對特種基金之補助,大額通報教補12月29日-113年1月份校務基金學校薪資,國立成功商業水產職業學校,"4,500,000"
113/01/01,國立高級中等學校教學與訓輔輔助 - 對特種基金之補助,大額通報教補12月29日-113年1月份校務基金學校薪資,國立西螺高級農工職業學校,"12,200,000"
113/01/01,國立高級中等學校教學與訓輔輔助 - 對特種基金之補助,大額通報教補12月29日-113年1月份校務基金學校薪資,國立秀水高級工業職業學校,"12,440,000"
113/01/01,國立高級中等學校教學與訓輔輔助 - 對特種基金之補助,大額通報教補12月29日-113年1月份校務基金學校薪資,國立佳冬高級農業職業學校,"10,000,000"
113/01/01,國立高級中等學校教學與訓輔輔助 - 對特種基金之補助,大額通報教補12月29日-113年1月份校務基金學校薪資,國立宜蘭高級商業職業學校,"11,400,000"
113/01/01,國立高級中等學校教學與訓輔輔助 - 對特種基金之補助,大額通報教補12月29日-113年1月份校務基金學校薪資,國立岡山高級農工職業學校,"15,000,000"
113/01/01,國立高級中等學校教學與訓輔輔助 - 對特種基金之補助,大額通報教補12月29日-113年1月份校務基金學校薪資,國立花蓮高級工業職業學校,"12,423,000"
113/01/01,國立高級中等學校教學與訓輔輔助 - 對特種基金之補助,大額通報教補12月29日-113年1月份校務基金學校薪資,國立花蓮高級商業職業學校,"8,500,000"
113/01/01,國立高級中等學校教學與訓輔輔助 - 對特種基金之補助,大額通報教補12月29日-113年1月份校務基金學校薪資,國立花蓮高級農業職業學校,"12,000,000"
113/01/01,國立高級中等學校教學與訓輔輔助 - 對特種基金之補助,大額通報教補12月29日-113年1月份校務基金學校薪資,國立虎尾高級農工職業學校,"13,500,000"
113/01/01,國立高級中等學校教學與訓輔輔助 - 對特種基金之補助,大額通報教補12月29日-113年1月份校務基金學校薪資,國立金門高級農工職業學校,"11,520,000"
113/01/01,國立高級中等學校教學與訓輔輔助 - 對特種基金之補助,大額通報教補12月29日-113年1月份校務基金學校薪資,國立南投高級商業職業學校,"9,100,000"
113/01/01,國立高級中等學校教學與訓輔輔助 - 對特種基金之補助,大額通報教補12月29日-113年1月份校務基金學校薪資,國立屏東高級工業職業學校,"16,200,000"
113/01/01,國立高級中等學校教學與訓輔輔助 - 對特種基金之補助,大額通報教補12月29日-113年1月份校務基金學校薪資,國立恆春高級工商職業學校,"9,806,000"
113/01/01,國立高級中等學校教學與訓輔輔助 - 對特種基金之補助,大額通報教補12月29日-113年1月份校務基金學校薪資,國立政治大學附屬高級中學,"7,500,000"
113/01/01,國立高級中等學校教學與訓輔輔助 - 對特種基金之補助,大額通報教補12月29日-113年1月份校務基金學校薪資,國立苗栗高級商業職業學校,"8,192,000"
113/01/01,國立高級中等學校教學與訓輔輔助 - 對特種基金之補助,大額通報教補12月29日-113年1月份校務基金學校薪資,國立苗栗高級農工職業學校,"14,190,000"
113/01/01,國立高級中等學校教學與訓輔輔助 - 對特種基金之補助,大額通報教補12月29日-113年1月份校務基金學校薪資,國立員林高級農工職業學校,"11,730,000"
113/01/01,國立高級中等學校教學與訓輔輔助 - 對特種基金之補助,大額通報教補12月29日-113年1月份校務基金學校薪資,國立埔里高級工業職業學校,"10,047,000"
113/01/01,國立高級中等學校教學與訓輔輔助 - 對特種基金之補助,大額通報教補12月29日-113年1月份校務基金學校薪資,國立草屯高級商工職業學校,"12,605,000"
113/01/01,國立高級中等學校教學與訓輔輔助 - 對特種基金之補助,大額通報教補12月29日-113年1月份校務基金學校薪資,國立基隆高級商工職業學校,"14,200,000"
113/01/01,國立高級中等學校教學與訓輔輔助 - 對特種基金之補助,大額通報教補12月29日-113年1月份校務基金學校薪資,國立曾文高級農工職業學校,"13,400,000"
113/01/01,國立高級中等學校教學與訓輔輔助 - 對特種基金之補助,大額通報教補12月29日-113年1月份校務基金學校薪資,國立華南高級商業職業學校,"9,993,000"
113/01/01,國立高級中等學校教學與訓輔輔助 - 對特種基金之補助,大額通報教補12月29日-113年1月份校務基金學校薪資,國立新化高級工業職業學校,"10,574,000"
113/01/01,國立高級中等學校教學與訓輔輔助 - 對特種基金之補助,大額通報教補12月29日-113年1月份校務基金學校薪資,國立新竹高級工業職業學校,"12,136,000"
113/01/01,國立高級中等學校教學與訓輔輔助 - 對特種基金之補助,大額通報教補12月29日-113年1月份校務基金學校薪資,國立新竹高級商業職業學校,"9,600,000"
113/01/01,國立高級中等學校教學與訓輔輔助 - 對特種基金之補助,大額通報教補12月29日-113年1月份校務基金學校薪資,國立新營高級工業職業學校,"12,176,000"
113/01/01,國立高級中等學校教學與訓輔輔助 - 對特種基金之補助,大額通報教補12月29日-113年1月份校務基金學校薪資,國立嘉義高級工業職業學校,"22,458,000"
113/01/01,國立高級中等學校教學與訓輔輔助 - 對特種基金之補助,大額通報教補12月29日-113年1月份校務基金學校薪資,國立嘉義高級家事職業學校,"9,130,000"
113/01/01,國立高級中等學校教學與訓輔輔助 - 對特種基金之補助,大額通報教補12月29日-113年1月份校務基金學校薪資,國立嘉義高級商業職業學校,"12,650,000"
113/01/01,國立高級中等學校教學與訓輔輔助 - 對特種基金之補助,大額通報教補12月29日-113年1月份校務基金學校薪資,國立彰化高級商業職業學校,"16,000,000"
113/01/01,國立高級中等學校教學與訓輔輔助 - 對特種基金之補助,大額通報教補12月29日-113年1月份校務基金學校薪資,國立旗山高級農工職業學校,"12,700,000"
113/01/01,國立高級中等學校教學與訓輔輔助 - 對特種基金之補助,大額通報教補12月29日-113年1月份校務基金學校薪資,國立暨南大學附屬高級中學,"9,800,000"
113/01/01,國立高級中等學校教學與訓輔輔助 - 對特種基金之補助,大額通報教補12月29日-113年1月份校務基金學校薪資,國立臺南大學附屬高級中學,"11,452,000"
113/01/01,國立高級中等學校教學與訓輔輔助 - 對特種基金之補助,大額通報教補12月29日-113年1月份校務基金學校薪資,國立臺南大學附屬啟聰學校,"7,242,000"
113/01/01,國立高級中等學校教學與訓輔輔助 - 對特種基金之補助,大額通報教補12月29日-113年1月份校務基金學校薪資,國立鳳山高級商工職業學校,"19,000,000"
113/01/01,國立高級中等學校教學與訓輔輔助 - 對特種基金之補助,大額通報教補12月29日-113年1月份校務基金學校薪資,國立羅東高級工業職業學校,"12,982,000"
113/01/01,國立高級中等學校教學與訓輔輔助 - 對特種基金之補助,大額通報教補12月29日-113年1月份校務基金學校薪資,國立羅東高級商業職業學校,"10,000,000"
113/01/01,國立高級中等學校教學與訓輔輔助 - 對特種基金之補助,大額通報教補12月29日-113年1月份校務基金學校薪資,國立關山高級工商職業學校,"6,324,000"
113/01/01,國立高級中等學校教學與訓輔輔助 - 對特種基金之補助,大額通報教補12月29日-113年1月份校務基金學校薪資,國立中山大學附屬國光高級中學,"10,000,000"
113/01/01,國立高級中等學校教學與訓輔輔助 - 對特種基金之補助,大額通報教補12月29日-113年1月份校務基金學校薪資,國立中央大學附屬中壢高級中學,"13,068,000"
113/01/01,國立高級中等學校教學與訓輔輔助 - 對特種基金之補助,大額通報教補12月29日-113年1月份校務基金學校薪資,國立斗六高級家事商業職業學校,"8,000,000"
113/01/01,國立高級中等學校教學與訓輔輔助 - 對特種基金之補助,大額通報教補12月29日-113年1月份校務基金學校薪資,國立北斗高級家事商業職業學校,"10,589,000"
113/01/01,國立高級中等學校教學與訓輔輔助 - 對特種基金之補助,大額通報教補12月29日-113年1月份校務基金學校薪資,國立台南高級海事水產職業學校,"8,624,000"
113/01/01,國立高級中等學校教學與訓輔輔助 - 對特種基金之補助,大額通報教補12月29日-113年1月份校務基金學校薪資,國立東港高級海事水產職業學校,"9,300,000"
113/01/01,國立高級中等學校教學與訓輔輔助 - 對特種基金之補助,大額通報教補12月29日-113年1月份校務基金學校薪資,國立員林高級家事商業職業學校,"9,809,000"
113/01/01,國立高級中等學校教學與訓輔輔助 - 對特種基金之補助,大額通報教補12月29日-113年1月份校務基金學校薪資,國立員林崇實高級工業職業學校,"10,765,000"
113/01/01,國立高級中等學校教學與訓輔輔助 - 對特種基金之補助,大額通報教補12月29日-113年1月份校務基金學校薪資,國立高雄師範大學附屬高級中學,"9,309,000"
113/01/01,國立高級中等學校教學與訓輔輔助 - 對特種基金之補助,大額通報教補12月29日-113年1月份校務基金學校薪資,國立曾文高級家事商業職業學校,"8,000,000"
113/01/01,國立高級中等學校教學與訓輔輔助 - 對特種基金之補助,大額通報教補12月29日-113年1月份校務基金學校薪資,國立臺東大學附屬特殊教育學校,"3,655,000"
113/01/01,國立高級中等學校教學與訓輔輔助 - 對特種基金之補助,大額通報教補12月29日-113年1月份校務基金學校薪資,國立臺東大學附屬體育高級中學,"5,800,000"
113/01/01,國立高級中等學校教學與訓輔輔助 - 對特種基金之補助,大額通報教補12月29日-113年1月份校務基金學校薪資,國立臺灣師範大學附屬高級中學,"22,920,000"
113/01/01,國立高級中等學校教學與訓輔輔助 - 對特種基金之補助,大額通報教補12月29日-113年1月份校務基金學校薪資,國立澎湖高級海事水產職業學校,"12,995,000"
113/01/01,國立高級中等學校教學與訓輔輔助 - 對特種基金之補助,大額通報教補12月29日-113年1月份校務基金學校薪資,國立頭城高級家事商業職業學校,"11,690,000"
113/01/01,國立高級中等學校教學與訓輔輔助 - 對特種基金之補助,大額通報教補12月29日-113年1月份校務基金學校薪資,國立蘇澳高級海事水產職業學校,"12,000,000"
113/01/01,國立高級中等學校教學與訓輔輔助 - 對特種基金之補助,大額通報教補12月29日-113年1月份校務基金學校薪資,國立中興大學附屬台中高級農業職業學校,"16,800,000"
113/01/01,國立高級中等學校教學與訓輔輔助 - 對特種基金之補助,大額通報教補12月29日-113年1月份校務基金學校薪資,國立成功大學附屬臺南工業高級中等學校,"21,266,000"
113/01/01,國立高級中等學校教學與訓輔輔助 - 對特種基金之補助,大額通報教補12月29日-113年1月份校務基金學校薪資,國立高雄餐旅大學附屬餐旅高級中等學校,"3,930,000"
113/01/01,國立高級中等學校教學與訓輔輔助 - 對特種基金之補助,大額通報教補12月29日-113年1月份校務基金學校薪資,國立彰化師範大學附屬高級工業職業學校,"20,344,000"
113/01/01,國立高級中等學校教學與訓輔輔助 - 對特種基金之補助,大額通報教補12月29日-113年1月份校務基金學校薪資,國立臺北科技大學附屬桃園農工高級中等學校,"20,268,000"
113/01/01,國立高級中等學校教學與訓輔輔助 - 對特種基金之補助,大額通報教補12月29日-113年1月份校務基金學校薪資,國立臺灣海洋大學附屬基隆海事高級中等學校,"14,000,000"
113/01/03,國民及學前教育行政及督導 - 對各縣市政府之補助,大額通報教補1月5日-112學年度我國少子女化對策計畫之各項幼生就學補助及育兒津貼等經費第3期款,南投縣政府,"277,707,500"
113/01/03,國立高級中等學校教學與訓輔輔助 - 對特種基金之補助,大額通報教補1月5日-112年校務基金學校經常門經費-1,國立中興高級中學,"26,907,000"
113/01/03,國立高級中等學校教學與訓輔輔助 - 對特種基金之補助,大額通報教補1月5日-112年校務基金學校經常門經費-1,國立斗六高級中學,"29,505,000"
113/01/03,國立高級中等學校教學與訓輔輔助 - 對特種基金之補助,大額通報教補1月5日-112年校務基金學校經常門經費-1,國立北門高級中學,"19,000,000"
113/01/03,國立高級中等學校教學與訓輔輔助 - 對特種基金之補助,大額通報教補1月5日-112年校務基金學校經常門經費-1,國立北港高級中學,"21,462,000"
113/01/03,國立高級中等學校教學與訓輔輔助 - 對特種基金之補助,大額通報教補1月5日-112年校務基金學校經常門經費-1,國立台東高級中學,"23,775,000"
113/01/03,國立高級中等學校教學與訓輔輔助 - 對特種基金之補助,大額通報教補1月5日-112年校務基金學校經常門經費-1,國立玉里高級中學,"20,550,000"
113/01/03,國立高級中等學校教學與訓輔輔助 - 對特種基金之補助,大額通報教補1月5日-112年校務基金學校經常門經費-1,國立竹山高級中學,"25,442,000"
113/01/03,國立高級中等學校校務基金 - 投資,112年校務基金學校資本門經費-1,國立竹山高級中學,"5,000,000"
113/01/03,國立高級中等學校教學與訓輔輔助 - 對特種基金之補助,大額通報教補1月5日-112年校務基金學校經常門經費-1,國立竹北高級中學,"38,000,000"
113/01/03,國立高級中等學校校務基金 - 投資,112年校務基金學校資本門經費-1,國立竹北高級中學,"291,000"
113/01/03,國立高級中等學校教學與訓輔輔助 - 對特種基金之補助,大額通報教補1月5日-112年校務基金學校經常門經費-1,國立竹東高級中學,"27,120,000"
113/01/03,國立高級中等學校教學與訓輔輔助 - 對特種基金之補助,大額通報教補1月5日-112年校務基金學校經常門經費-1,國立竹南高級中學,"25,369,000"
113/01/03,國立高級中等學校校務基金 - 投資,112年校務基金學校資本門經費-1,國立竹南高級中學,"140,000"
113/01/03,國立高級中等學校教學與訓輔輔助 - 對特種基金之補助,大額通報教補1月5日-112年校務基金學校經常門經費-1,國立和美實驗學校,"29,600,000"
113/01/03,國立高級中等學校教學與訓輔輔助 - 對特種基金之補助,大額通報教補1月5日-112年校務基金學校經常門經費-1,國立宜蘭高級中學,"28,452,000"
113/01/03,國立高級中等學校教學與訓輔輔助 - 對特種基金之補助,大額通報教補1月5日-112年校務基金學校經常門經費-1,國立岡山高級中學,"26,620,000"
113/01/03,國立高級中等學校校務基金 - 投資,112年校務基金學校資本門經費-1,國立岡山高級中學,"700,000"
113/01/03,國立高級中等學校教學與訓輔輔助 - 對特種基金之補助,大額通報教補1月5日-112年校務基金學校經常門經費-1,國立東石高級中學,"28,951,000"
113/01/03,國立高級中等學校教學與訓輔輔助 - 對特種基金之補助,大額通報教補1月5日-112年校務基金學校經常門經費-1,國立花蓮高級中學,"25,997,000"
113/01/03,國立高級中等學校校務基金 - 投資,112年校務基金學校資本門經費-1,國立花蓮高級中學,"462,000"
113/01/03,國立高級中等學校教學與訓輔輔助 - 對特種基金之補助,大額通報教補1月5日-112年校務基金學校經常門經費-1,國立虎尾高級中學,"26,000,000"
113/01/03,國立高級中等學校教學與訓輔輔助 - 對特種基金之補助,大額通報教補1月5日-112年校務基金學校經常門經費-1,國立金門高級中學,"20,444,000"
113/01/03,國立高級中等學校教學與訓輔輔助 - 對特種基金之補助,大額通報教補1月5日-112年校務基金學校經常門經費-1,國立南投高級中學,"33,601,000"
113/01/03,國立高級中等學校教學與訓輔輔助 - 對特種基金之補助,大額通報教補1月5日-112年校務基金學校經常門經費-1,國立屏北高級中學,"20,500,000"
113/01/03,國立高級中等學校教學與訓輔輔助 - 對特種基金之補助,大額通報教補1月5日-112年校務基金學校經常門經費-1,國立屏東高級中學,"38,712,000"
113/01/03,國立高級中等學校校務基金 - 投資,112年校務基金學校資本門經費-1,國立屏東高級中學,"7,800,000"
113/01/03,國立高級中等學校教學與訓輔輔助 - 對特種基金之補助,大額通報教補1月5日-112年校務基金學校經常門經費-1,國立後壁高級中學,"23,593,000"
113/01/03,國立高級中等學校教學與訓輔輔助 - 對特種基金之補助,大額通報教補1月5日-112年校務基金學校經常門經費-1,國立苑裡高級中學,"23,786,000"
113/01/03,國立高級中等學校教學與訓輔輔助 - 對特種基金之補助,大額通報教補1月5日-112年校務基金學校經常門經費-1,國立苗栗高級中學,"25,050,000"
113/01/03,國立高級中等學校教學與訓輔輔助 - 對特種基金之補助,大額通報教補1月5日-112年校務基金學校經常門經費-1,國立員林高級中學,"29,255,000"
113/01/03,國立高級中等學校教學與訓輔輔助 - 對特種基金之補助,大額通報教補1月5日-112年校務基金學校經常門經費-1,國立馬公高級中學,"32,010,000"
113/01/03,國立高級中等學校教學與訓輔輔助 - 對特種基金之補助,大額通報教補1月5日-112年校務基金學校經常門經費-1,國立馬祖高級中學,"11,788,000"
113/01/03,國立高級中等學校教學與訓輔輔助 - 對特種基金之補助,大額通報教補1月5日-112年校務基金學校經常門經費-1,國立基隆高級中學,"21,349,000"
113/01/03,國立高級中等學校教學與訓輔輔助 - 對特種基金之補助,大額通報教補1月5日-112年校務基金學校經常門經費-1,國立鹿港高級中學,"28,665,000"
113/01/03,國立高級中等學校教學與訓輔輔助 - 對特種基金之補助,大額通報教補1月5日-112年校務基金學校經常門經費-1,國立善化高級中學,"19,455,000"
113/01/03,國立高級中等學校教學與訓輔輔助 - 對特種基金之補助,大額通報教補1月5日-112年校務基金學校經常門經費-1,國立華僑高級中學,"31,522,000"
113/01/03,國立高級中等學校教學與訓輔輔助 - 對特種基金之補助,大額通報教補1月5日-112年校務基金學校經常門經費-1,國立新化高級中學,"24,811,000"
113/01/03,國立高級中等學校教學與訓輔輔助 - 對特種基金之補助,大額通報教補1月5日-112年校務基金學校經常門經費-1,國立新竹高級中學,"35,209,000"
113/01/03,國立高級中等學校教學與訓輔輔助 - 對特種基金之補助,大額通報教補1月5日-112年校務基金學校經常門經費-1,國立新營高級中學,"25,617,000"
113/01/03,國立高級中等學校教學與訓輔輔助 - 對特種基金之補助,大額通報教補1月5日-112年校務基金學校經常門經費-1,國立新豐高級中學,"23,289,000"
113/01/03,國立高級中等學校教學與訓輔輔助 - 對特種基金之補助,大額通報教補1月5日-112年校務基金學校經常門經費-1,國立溪湖高級中學,"29,926,000"
113/01/03,國立高級中等學校教學與訓輔輔助 - 對特種基金之補助,大額通報教補1月5日-112年校務基金學校經常門經費-1,國立嘉義特教學校,"22,186,000"
113/01/03,國立高級中等學校教學與訓輔輔助 - 對特種基金之補助,大額通報教補1月5日-112年校務基金學校經常門經費-1,國立嘉義高級中學,"37,380,000"
113/01/03,國立高級中等學校教學與訓輔輔助 - 對特種基金之補助,大額通報教補1月5日-112年校務基金學校經常門經費-1,國立彰化高級中學,"46,306,000"
113/01/03,國立高級中等學校校務基金 - 投資,112年校務基金學校資本門經費-1,國立彰化高級中學,"200,000"
113/01/03,國立高級中等學校教學與訓輔輔助 - 對特種基金之補助,大額通報教補1月5日-112年校務基金學校經常門經費-1,國立旗美高級中學,"19,519,000"
113/01/03,國立高級中等學校教學與訓輔輔助 - 對特種基金之補助,大額通報教補1月5日-112年校務基金學校經常門經費-1,國立鳳山高級中學,"34,606,000"
113/01/03,國立高級中等學校教學與訓輔輔助 - 對特種基金之補助,大額通報教補1月5日-112年校務基金學校經常門經費-1,國立鳳新高級中學,"35,081,000"
113/01/03,國立高級中等學校教學與訓輔輔助 - 對特種基金之補助,大額通報教補1月5日-112年校務基金學校經常門經費-1,國立潮州高級中學,"24,046,000"
113/01/03,國立高級中等學校教學與訓輔輔助 - 對特種基金之補助,大額通報教補1月5日-112年校務基金學校經常門經費-1,國立羅東高級中學,"28,959,000"
113/01/03,國立高級中等學校教學與訓輔輔助 - 對特種基金之補助,大額通報教補1月5日-112年校務基金學校經常門經費-1,國立關西高級中學,"20,400,000"
113/01/03,國立高級中等學校教學與訓輔輔助 - 對特種基金之補助,大額通報教補1月5日-112年校務基金學校經常門經費-1,國立台東女子高級中學,"17,518,000"
113/01/03,國立高級中等學校教學與訓輔輔助 - 對特種基金之補助,大額通報教補1月5日-112年校務基金學校經常門經費-1,國立台南女子高級中學,"34,039,000"
113/01/03,國立高級中等學校教學與訓輔輔助 - 對特種基金之補助,大額通報教補1月5日-112年校務基金學校經常門經費-1,國立台南家齊高級中學,"31,400,000"
113/01/03,國立高級中等學校教學與訓輔輔助 - 對特種基金之補助,大額通報教補1月5日-112年校務基金學校經常門經費-1,國立台南第一高級中學,"33,592,000"
113/01/03,國立高級中等學校校務基金 - 投資,112年校務基金學校資本門經費-1,國立台南第一高級中學,"100,000"
113/01/03,國立高級中等學校教學與訓輔輔助 - 對特種基金之補助,大額通報教補1月5日-112年校務基金學校經常門經費-1,國立台南第二高級中學,"32,500,000"
113/01/03,國立高級中等學校校務基金 - 投資,112年校務基金學校資本門經費-1,國立台南第二高級中學,"120,000"
113/01/03,國立高級中等學校教學與訓輔輔助 - 對特種基金之補助,大額通報教補1月5日-112年校務基金學校經常門經費-1,國立卓蘭高級中等學校,"28,847,000"
113/01/03,國立高級中等學校教學與訓輔輔助 - 對特種基金之補助,大額通報教補1月5日-112年校務基金學校經常門經費-1,國立宜蘭特殊教育學校,"11,860,000"
113/01/03,國立高級中等學校校務基金 - 投資,112年校務基金學校資本門經費-1,國立宜蘭特殊教育學校,"325,000"
113/01/03,國立高級中等學校教學與訓輔輔助 - 對特種基金之補助,大額通報教補1月5日-112年校務基金學校經常門經費-1,國立花蓮女子高級中學,"21,601,000"
113/01/03,國立高級中等學校校務基金 - 投資,112年校務基金學校資本門經費-1,國立花蓮女子高級中學,"210,000"
113/01/03,國立高級中等學校教學與訓輔輔助 - 對特種基金之補助,大額通報教補1月5日-112年校務基金學校經常門經費-1,國立花蓮特殊教育學校,"13,000,000"
113/01/03,國立高級中等學校教學與訓輔輔助 - 對特種基金之補助,大額通報教補1月5日-112年校務基金學校經常門經費-1,國立南投特殊教育學校,"12,689,000"
113/01/03,國立高級中等學校教學與訓輔輔助 - 對特種基金之補助,大額通報教補1月5日-112年校務基金學校經常門經費-1,國立屏東女子高級中學,"37,323,000"
113/01/03,國立高級中等學校教學與訓輔輔助 - 對特種基金之補助,大額通報教補1月5日-112年校務基金學校經常門經費-1,國立屏東特殊教育學校,"10,011,000"
113/01/03,國立高級中等學校教學與訓輔輔助 - 對特種基金之補助,大額通報教補1月5日-112年校務基金學校經常門經費-1,國立苗栗特殊教育學校,"11,962,000"
113/01/03,國立高級中等學校教學與訓輔輔助 - 對特種基金之補助,大額通報教補1月5日-112年校務基金學校經常門經費-1,國立基隆女子高級中學,"27,997,000"
113/01/03,國立高級中等學校校務基金 - 投資,112年校務基金學校資本門經費-1,國立基隆女子高級中學,"270,000"
113/01/03,國立高級中等學校教學與訓輔輔助 - 對特種基金之補助,大額通報教補1月5日-112年校務基金學校經常門經費-1,國立基隆特殊教育學校,"11,747,000"
113/01/03,國立高級中等學校教學與訓輔輔助 - 對特種基金之補助,大額通報教補1月5日-112年校務基金學校經常門經費-1,國立雲林特殊教育學校,"17,220,000"
113/01/03,國立高級中等學校教學與訓輔輔助 - 對特種基金之補助,大額通報教補1月5日-112年校務基金學校經常門經費-1,國立新竹女子高級中學,"34,103,000"
113/01/03,國立高級中等學校校務基金 - 投資,112年校務基金學校資本門經費-1,國立新竹女子高級中學,"86,000"
113/01/03,國立高級中等學校教學與訓輔輔助 - 對特種基金之補助,大額通報教補1月5日-112年校務基金學校經常門經費-1,國立新竹特殊教育學校,"15,986,000"
113/01/03,國立高級中等學校校務基金 - 投資,112年校務基金學校資本門經費-1,國立新竹特殊教育學校,"215,000"
113/01/03,國立高級中等學校教學與訓輔輔助 - 對特種基金之補助,大額通報教補1月5日-112年校務基金學校經常門經費-1,國立新港藝術高級中學,"10,683,000"
113/01/03,國立高級中等學校教學與訓輔輔助 - 對特種基金之補助,大額通報教補1月5日-112年校務基金學校經常門經費-1,國立嘉義女子高級中學,"28,490,000"
113/01/03,國立高級中等學校教學與訓輔輔助 - 對特種基金之補助,大額通報教補1月5日-112年校務基金學校經常門經費-1,國立彰化女子高級中學,"27,809,000"
113/01/03,國立高級中等學校教學與訓輔輔助 - 對特種基金之補助,大額通報教補1月5日-112年校務基金學校經常門經費-1,國立彰化特殊教育學校,"29,503,000"
113/01/03,國立高級中等學校校務基金 - 投資,112年校務基金學校資本門經費-1,國立彰化特殊教育學校,"60,000"
113/01/03,國立高級中等學校教學與訓輔輔助 - 對特種基金之補助,大額通報教補1月5日-112年校務基金學校經常門經費-1,國立臺南特殊教育學校,"23,110,000"
113/01/03,國立高級中等學校校務基金 - 投資,112年校務基金學校資本門經費-1,國立臺南特殊教育學校,"60,000"
113/01/03,國立高級中等學校教學與訓輔輔助 - 對特種基金之補助,大額通報教補1月5日-112年校務基金學校經常門經費-1,國立蘭陽女子高級中學,"26,687,000"
113/01/03,國立高級中等學校校務基金 - 投資,112年校務基金學校資本門經費-1,國立蘭陽女子高級中學,"600,000"
113/01/03,國立高級中等學校教學與訓輔輔助 - 對特種基金之補助,大額通報教補1月5日-112年校務基金學校經常門經費-1,國立二林高級工商職業學校,"33,173,000"
113/01/03,國立高級中等學校教學與訓輔輔助 - 對特種基金之補助,大額通報教補1月5日-112年校務基金學校經常門經費-1,國立土庫高級商工職業學校,"21,746,000"
113/01/03,國立高級中等學校教學與訓輔輔助 - 對特種基金之補助,大額通報教補1月5日-112年校務基金學校經常門經費-1,國立大湖高級農工職業學校,"21,005,000"
113/01/03,國立高級中等學校教學與訓輔輔助 - 對特種基金之補助,大額通報教補1月5日-112年校務基金學校經常門經費-1,國立中興大學附屬高級中學,"35,762,000"
113/01/03,國立高級中等學校教學與訓輔輔助 - 對特種基金之補助,大額通報教補1月5日-112年校務基金學校經常門經費-1,國立仁愛高級農業職業學校,"14,500,000"
113/01/03,國立高級中等學校教學與訓輔輔助 - 對特種基金之補助,大額通報教補1月5日-112年校務基金學校經常門經費-1,國立內埔高級農工職業學校,"25,668,000"
113/01/03,國立高級中等學校教學與訓輔輔助 - 對特種基金之補助,大額通報教補1月5日-112年校務基金學校經常門經費-1,國立水里高級商工職業學校,"24,835,000"
113/01/03,國立高級中等學校教學與訓輔輔助 - 對特種基金之補助,大額通報教補1月5日-112年校務基金學校經常門經費-1,國立北門高級農工職業學校,"36,420,000"
113/01/03,國立高級中等學校教學與訓輔輔助 - 對特種基金之補助,大額通報教補1月5日-112年校務基金學校經常門經費-1,國立北港高級農工職業學校,"22,500,000"
113/01/03,國立高級中等學校教學與訓輔輔助 - 對特種基金之補助,大額通報教補1月5日-112年校務基金學校經常門經費-1,國立台東高級商業職業學校,"25,000,000"
113/01/03,國立高級中等學校教學與訓輔輔助 - 對特種基金之補助,大額通報教補1月5日-112年校務基金學校經常門經費-1,國立台南高級商業職業學校,"38,500,000"
113/01/03,國立高級中等學校教學與訓輔輔助 - 對特種基金之補助,大額通報教補1月5日-112年校務基金學校經常門經費-1,國立民雄高級農工職業學校,"30,519,000"
113/01/03,國立高級中等學校校務基金 - 投資,112年校務基金學校資本門經費-1,國立民雄高級農工職業學校,"339,000"
113/01/03,國立高級中等學校教學與訓輔輔助 - 對特種基金之補助,大額通報教補1月5日-112年校務基金學校經常門經費-1,國立永靖高級工業職業學校,"27,800,000"
113/01/03,國立高級中等學校教學與訓輔輔助 - 對特種基金之補助,大額通報教補1月5日-112年校務基金學校經常門經費-1,國立玉井高級工商職業學校,"20,000,000"
113/01/03,國立高級中等學校校務基金 - 投資,112年校務基金學校資本門經費-1,國立玉井高級工商職業學校,"80,000"
113/01/03,國立高級中等學校教學與訓輔輔助 - 對特種基金之補助,大額通報教補1月5日-112年校務基金學校經常門經費-1,國立白河高級商工職業學校,"20,157,000"
113/01/03,國立高級中等學校教學與訓輔輔助 - 對特種基金之補助,大額通報教補1月5日-112年校務基金學校經常門經費-1,國立光復高級商工職業學校,"13,500,000"
113/01/03,國立高級中等學校教學與訓輔輔助 - 對特種基金之補助,大額通報教補1月5日-112年校務基金學校經常門經費-1,國立成功商業水產職業學校,"12,000,000"
113/01/03,國立高級中等學校教學與訓輔輔助 - 對特種基金之補助,大額通報教補1月5日-112年校務基金學校經常門經費-1,國立西螺高級農工職業學校,"35,116,000"
113/01/03,國立高級中等學校教學與訓輔輔助 - 對特種基金之補助,大額通報教補1月5日-112年校務基金學校經常門經費-1,國立秀水高級工業職業學校,"36,726,000"
113/01/03,國立高級中等學校教學與訓輔輔助 - 對特種基金之補助,大額通報教補1月5日-112年校務基金學校經常門經費-1,國立佳冬高級農業職業學校,"28,000,000"
113/01/03,國立高級中等學校教學與訓輔輔助 - 對特種基金之補助,大額通報教補1月5日-112年校務基金學校經常門經費-1,國立宜蘭高級商業職業學校,"33,404,000"
113/01/03,國立高級中等學校校務基金 - 投資,112年校務基金學校資本門經費-1,國立宜蘭高級商業職業學校,"100,000"
113/01/03,國立高級中等學校教學與訓輔輔助 - 對特種基金之補助,大額通報教補1月5日-112年校務基金學校經常門經費-1,國立岡山高級農工職業學校,"38,610,000"
113/01/03,國立高級中等學校校務基金 - 投資,112年校務基金學校資本門經費-1,國立岡山高級農工職業學校,"250,000"
113/01/03,國立高級中等學校教學與訓輔輔助 - 對特種基金之補助,大額通報教補1月5日-112年校務基金學校經常門經費-1,國立花蓮高級工業職業學校,"33,052,000"
113/01/03,國立高級中等學校校務基金 - 投資,112年校務基金學校資本門經費-1,國立花蓮高級工業職業學校,"18,000"
113/01/03,國立高級中等學校教學與訓輔輔助 - 對特種基金之補助,大額通報教補1月5日-112年校務基金學校經常門經費-1,國立花蓮高級商業職業學校,"23,500,000"
113/01/03,國立高級中等學校教學與訓輔輔助 - 對特種基金之補助,大額通報教補1月5日-112年校務基金學校經常門經費-1,國立花蓮高級農業職業學校,"29,000,000"
113/01/03,國立高級中等學校校務基金 - 投資,112年校務基金學校資本門經費-1,國立花蓮高級農業職業學校,"309,000"
113/01/03,國立高級中等學校教學與訓輔輔助 - 對特種基金之補助,大額通報教補1月5日-112年校務基金學校經常門經費-1,國立虎尾高級農工職業學校,"31,973,000"
113/01/03,國立高級中等學校教學與訓輔輔助 - 對特種基金之補助,大額通報教補1月5日-112年校務基金學校經常門經費-1,國立金門高級農工職業學校,"30,328,000"
113/01/03,國立高級中等學校教學與訓輔輔助 - 對特種基金之補助,大額通報教補1月5日-112年校務基金學校經常門經費-1,國立南投高級商業職業學校,"25,391,000"
113/01/03,國立高級中等學校教學與訓輔輔助 - 對特種基金之補助,大額通報教補1月5日-112年校務基金學校經常門經費-1,國立屏東高級工業職業學校,"48,000,000"
113/01/03,國立高級中等學校教學與訓輔輔助 - 對特種基金之補助,大額通報教補1月5日-112年校務基金學校經常門經費-1,國立恆春高級工商職業學校,"21,573,000"
113/01/03,國立高級中等學校教學與訓輔輔助 - 對特種基金之補助,大額通報教補1月5日-112年校務基金學校經常門經費-1,國立政治大學附屬高級中學,"20,000,000"
113/01/03,國立高級中等學校教學與訓輔輔助 - 對特種基金之補助,大額通報教補1月5日-112年校務基金學校經常門經費-1,國立苗栗高級商業職業學校,"21,427,000"
113/01/03,國立高級中等學校校務基金 - 投資,112年校務基金學校資本門經費-1,國立苗栗高級商業職業學校,"60,000"
113/01/03,國立高級中等學校教學與訓輔輔助 - 對特種基金之補助,大額通報教補1月5日-112年校務基金學校經常門經費-1,國立苗栗高級農工職業學校,"40,446,000"
113/01/03,國立高級中等學校教學與訓輔輔助 - 對特種基金之補助,大額通報教補1月5日-112年校務基金學校經常門經費-1,國立員林高級農工職業學校,"33,529,000"
113/01/03,國立高級中等學校教學與訓輔輔助 - 對特種基金之補助,大額通報教補1月5日-112年校務基金學校經常門經費-1,國立埔里高級工業職業學校,"30,094,000"
113/01/03,國立高級中等學校教學與訓輔輔助 - 對特種基金之補助,大額通報教補1月5日-112年校務基金學校經常門經費-1,國立草屯高級商工職業學校,"34,898,000"
113/01/03,國立高級中等學校教學與訓輔輔助 - 對特種基金之補助,大額通報教補1月5日-112年校務基金學校經常門經費-1,國立基隆高級商工職業學校,"39,504,000"
113/01/03,國立高級中等學校教學與訓輔輔助 - 對特種基金之補助,大額通報教補1月5日-112年校務基金學校經常門經費-1,國立曾文高級農工職業學校,"35,000,000"
113/01/03,國立高級中等學校教學與訓輔輔助 - 對特種基金之補助,大額通報教補1月5日-112年校務基金學校經常門經費-1,國立華南高級商業職業學校,"26,900,000"
113/01/03,國立高級中等學校教學與訓輔輔助 - 對特種基金之補助,大額通報教補1月5日-112年校務基金學校經常門經費-1,國立新化高級工業職業學校,"28,390,000"
113/01/03,國立高級中等學校教學與訓輔輔助 - 對特種基金之補助,大額通報教補1月5日-112年校務基金學校經常門經費-1,國立新竹高級工業職業學校,"34,764,000"
113/01/03,國立高級中等學校教學與訓輔輔助 - 對特種基金之補助,大額通報教補1月5日-112年校務基金學校經常門經費-1,國立新竹高級商業職業學校,"27,434,000"
113/01/03,國立高級中等學校教學與訓輔輔助 - 對特種基金之補助,大額通報教補1月5日-112年校務基金學校經常門經費-1,國立新營高級工業職業學校,"35,311,000"
113/01/03,國立高級中等學校校務基金 - 投資,112年校務基金學校資本門經費-1,國立新營高級工業職業學校,"40,000"
113/01/03,國立高級中等學校教學與訓輔輔助 - 對特種基金之補助,大額通報教補1月5日-112年校務基金學校經常門經費-1,國立嘉義高級工業職業學校,"49,903,000"
113/01/03,國立高級中等學校教學與訓輔輔助 - 對特種基金之補助,大額通報教補1月5日-112年校務基金學校經常門經費-1,國立嘉義高級家事職業學校,"24,009,000"
113/01/03,國立高級中等學校教學與訓輔輔助 - 對特種基金之補助,大額通報教補1月5日-112年校務基金學校經常門經費-1,國立嘉義高級商業職業學校,"29,282,000"
113/01/03,國立高級中等學校教學與訓輔輔助 - 對特種基金之補助,大額通報教補1月5日-112年校務基金學校經常門經費-1,國立彰化高級商業職業學校,"45,360,000"
113/01/03,國立高級中等學校教學與訓輔輔助 - 對特種基金之補助,大額通報教補1月5日-112年校務基金學校經常門經費-1,國立旗山高級農工職業學校,"30,300,000"
113/01/03,國立高級中等學校教學與訓輔輔助 - 對特種基金之補助,大額通報教補1月5日-112年校務基金學校經常門經費-1,國立暨南大學附屬高級中學,"22,528,000"
113/01/03,國立高級中等學校教學與訓輔輔助 - 對特種基金之補助,大額通報教補1月5日-112年校務基金學校經常門經費-1,國立臺南大學附屬高級中學,"31,463,000"
113/01/03,國立高級中等學校教學與訓輔輔助 - 對特種基金之補助,大額通報教補1月5日-112年校務基金學校經常門經費-1,國立臺南大學附屬啟聰學校,"21,189,000"
113/01/03,國立高級中等學校教學與訓輔輔助 - 對特種基金之補助,大額通報教補1月5日-112年校務基金學校經常門經費-1,國立鳳山高級商工職業學校,"48,925,000"
113/01/03,國立高級中等學校校務基金 - 投資,112年校務基金學校資本門經費-1,國立鳳山高級商工職業學校,"334,000"
113/01/03,國立高級中等學校教學與訓輔輔助 - 對特種基金之補助,大額通報教補1月5日-112年校務基金學校經常門經費-1,國立羅東高級工業職業學校,"34,298,000"
113/01/03,國立高級中等學校教學與訓輔輔助 - 對特種基金之補助,大額通報教補1月5日-112年校務基金學校經常門經費-1,國立羅東高級商業職業學校,"28,360,000"
113/01/03,國立高級中等學校校務基金 - 投資,112年校務基金學校資本門經費-1,國立羅東高級商業職業學校,"30,000"
113/01/03,國立高級中等學校教學與訓輔輔助 - 對特種基金之補助,大額通報教補1月5日-112年校務基金學校經常門經費-1,國立關山高級工商職業學校,"18,387,000"
113/01/03,國立高級中等學校教學與訓輔輔助 - 對特種基金之補助,大額通報教補1月5日-112年校務基金學校經常門經費-1,國立中山大學附屬國光高級中學,"25,000,000"
113/01/03,國立高級中等學校教學與訓輔輔助 - 對特種基金之補助,大額通報教補1月5日-112年校務基金學校經常門經費-1,國立中央大學附屬中壢高級中學,"36,852,000"
113/01/03,國立高級中等學校教學與訓輔輔助 - 對特種基金之補助,大額通報教補1月5日-112年校務基金學校經常門經費-1,國立斗六高級家事商業職業學校,"22,137,000"
113/01/03,國立高級中等學校教學與訓輔輔助 - 對特種基金之補助,大額通報教補1月5日-112年校務基金學校經常門經費-1,國立北斗高級家事商業職業學校,"29,807,000"
113/01/03,國立高級中等學校教學與訓輔輔助 - 對特種基金之補助,大額通報教補1月5日-112年校務基金學校經常門經費-1,國立台南高級海事水產職業學校,"20,067,000"
113/01/03,國立高級中等學校教學與訓輔輔助 - 對特種基金之補助,大額通報教補1月5日-112年校務基金學校經常門經費-1,國立東港高級海事水產職業學校,"25,800,000"
113/01/03,國立高級中等學校校務基金 - 投資,112年校務基金學校資本門經費-1,國立東港高級海事水產職業學校,"12,000"
113/01/03,國立高級中等學校教學與訓輔輔助 - 對特種基金之補助,大額通報教補1月5日-112年校務基金學校經常門經費-1,國立員林高級家事商業職業學校,"27,411,000"
113/01/03,國立高級中等學校教學與訓輔輔助 - 對特種基金之補助,大額通報教補1月5日-112年校務基金學校經常門經費-1,國立員林崇實高級工業職業學校,"29,015,000"
113/01/03,國立高級中等學校教學與訓輔輔助 - 對特種基金之補助,大額通報教補1月5日-112年校務基金學校經常門經費-1,國立高雄師範大學附屬高級中學,"25,097,000"
113/01/03,國立高級中等學校教學與訓輔輔助 - 對特種基金之補助,大額通報教補1月5日-112年校務基金學校經常門經費-1,國立曾文高級家事商業職業學校,"21,804,000"
113/01/03,國立高級中等學校教學與訓輔輔助 - 對特種基金之補助,大額通報教補1月5日-112年校務基金學校經常門經費-1,國立臺東大學附屬特殊教育學校,"10,871,000"
113/01/03,國立高級中等學校教學與訓輔輔助 - 對特種基金之補助,大額通報教補1月5日-112年校務基金學校經常門經費-1,國立臺東大學附屬體育高級中學,"16,000,000"
113/01/03,國立高級中等學校教學與訓輔輔助 - 對特種基金之補助,大額通報教補1月5日-112年校務基金學校經常門經費-1,國立臺灣師範大學附屬高級中學,"62,498,000"
113/01/03,國立高級中等學校教學與訓輔輔助 - 對特種基金之補助,大額通報教補1月5日-112年校務基金學校經常門經費-1,國立澎湖高級海事水產職業學校,"32,738,000"
113/01/03,國立高級中等學校教學與訓輔輔助 - 對特種基金之補助,大額通報教補1月5日-112年校務基金學校經常門經費-1,國立頭城高級家事商業職業學校,"26,595,000"
113/01/03,國立高級中等學校校務基金 - 投資,112年校務基金學校資本門經費-1,國立頭城高級家事商業職業學校,"120,000"
113/01/03,國立高級中等學校教學與訓輔輔助 - 對特種基金之補助,大額通報教補1月5日-112年校務基金學校經常門經費-1,國立蘇澳高級海事水產職業學校,"29,214,000"
113/01/03,國立高級中等學校校務基金 - 投資,112年校務基金學校資本門經費-1,國立蘇澳高級海事水產職業學校,"200,000"
113/01/03,國立高級中等學校教學與訓輔輔助 - 對特種基金之補助,大額通報教補1月5日-112年校務基金學校經常門經費-1,國立中興大學附屬台中高級農業職業學校,"50,300,000"
113/01/03,國立高級中等學校校務基金 - 投資,112年校務基金學校資本門經費-1,國立中興大學附屬台中高級農業職業學校,"3,000,000"
113/01/03,國立高級中等學校教學與訓輔輔助 - 對特種基金之補助,大額通報教補1月5日-112年校務基金學校經常門經費-1,國立成功大學附屬臺南工業高級中等學校,"56,731,000"
113/01/03,國立高級中等學校教學與訓輔輔助 - 對特種基金之補助,大額通報教補1月5日-112年校務基金學校經常門經費-1,國立高雄餐旅大學附屬餐旅高級中等學校,"10,853,000"
113/01/03,國立高級中等學校教學與訓輔輔助 - 對特種基金之補助,大額通報教補1月5日-112年校務基金學校經常門經費-1,國立彰化師範大學附屬高級工業職業學校,"47,351,000"
113/01/03,國立高級中等學校教學與訓輔輔助 - 對特種基金之補助,大額通報教補1月5日-112年校務基金學校經常門經費-1,國立臺北科技大學附屬桃園農工高級中等學校,"55,576,000"
113/01/03,國立高級中等學校教學與訓輔輔助 - 對特種基金之補助,大額通報教補1月5日-112年校務基金學校經常門經費-1,國立臺灣海洋大學附屬基隆海事高級中等學校,"33,805,000"
113/01/03,國立高級中等學校校務基金 - 投資,112年校務基金學校資本門經費-1,國立臺灣海洋大學附屬基隆海事高級中等學校,"200,000"
113/01/04,國民及學前教育行政及督導 - 對各縣市政府之補助,112學年度國民中小學本土教育整體推動方案暨教師及學生多元相關活動第2期款,基隆市政府,"2,636,499"
113/01/04,國民及學前教育行政及督導 - 對國內團體之捐助,辦理113年靖娟兒童安全文教基金會兒童安全教育廣播節目製播經費,財團法人靖娟兒童安全文教基金會,"117,000"
113/01/08,國民及學前教育行政及督導 - 對各縣市政府之補助,112學年度實施戶外教育與海洋教育計畫第2期款,花蓮縣政府,"3,209,679"
113/01/08,國民及學前教育行政及督導 - 對各縣市政府之補助,113年度新住民子女教育行政人力經費,連江縣政府,"495,000"
113/01/08,國民及學前教育行政及督導 - 對各縣市政府之補助,112學年度增置國民中小學閱讀推動教師計畫第2期款,臺東縣政府,"1,143,600"
113/01/08,國民及學前教育行政及督導 - 對特種基金之補助,113年度教育部學生輔導諮商中心進用臨時專業輔導人員實施計畫,國立中興高級中學,"2,589,300"
113/01/08,國民及學前教育行政及督導 - 對特種基金之補助,113年度教育部學生輔導諮商中心進用臨時專業輔導人員實施計畫,國立基隆高級中學,"710,204"
113/01/08,國民及學前教育行政及督導 - 對特種基金之補助,113年度教育部學生輔導諮商中心進用臨時專業輔導人員實施計畫,國立台南第一高級中學,"863,100"
113/01/08,國民及學前教育行政及督導 - 對特種基金之補助,113年教育部學生輔導諮商中心進用個案管理員實施計畫,國立花蓮女子高級中學,"741,186"
113/01/08,國民及學前教育行政及督導 - 對特種基金之補助,113年度教育部學生輔導諮商中心進用臨時專業輔導人員實施計畫,國立花蓮女子高級中學,"1,666,924"
113/01/08,國民及學前教育行政及督導 - 對特種基金之補助,113年度教育部學生輔導諮商中心進用臨時專業輔導人員實施計畫,國立屏東女子高級中學,"803,824"
113/01/08,國民及學前教育行政及督導 - 對特種基金之補助,113年度教育部學生輔導諮商中心進用臨時專業輔導人員實施計畫,國立嘉義女子高級中學,"2,317,878"
113/01/08,國民及學前教育行政及督導 - 對特種基金之補助,112學年度辦理幼兒部增開未納編班級教學相關經費,國立臺南特殊教育學校,"1,517,867"
113/01/08,國民及學前教育行政及督導 - 對特種基金之補助,112學年度辦理國小部增開未納編班級教學相關經費,國立臺南特殊教育學校,"3,012,521"
113/01/08,國民及學前教育行政及督導 - 對特種基金之補助,112學年度高級中等學校穩定就學措施計畫,國立北港高級農工職業學校,"160,000"
113/01/08,國民及學前教育行政及督導 - 對特種基金之補助,113年度教育部學生輔導諮商中心進用臨時專業輔導人員實施計畫,國立鳳山高級商工職業學校,"863,100"
113/01/08,國民及學前教育行政及督導 - 對特種基金之補助,113年度教育部學生輔導諮商中心進用臨時專業輔導人員實施計畫,國立斗六高級家事商業職業學校,"863,100"
113/01/08,國民及學前教育行政及督導 - 對特種基金之補助,113年度教育部學生輔導諮商中心進用臨時專業輔導人員實施計畫,國立曾文高級家事商業職業學校,"863,100"
113/01/08,國民及學前教育行政及督導 - 對特種基金之補助,112學年度國民中學生涯發展教育計畫第2期款,國立臺灣師範大學附屬高級中學,"41,600"
113/01/08,國民及學前教育行政及督導 - 對特種基金之補助,112學年度推動新課綱跨域轉化與深度學習實施計畫,國立新竹科學園區實驗高級中等學校,"3,000,000"
113/01/08,國民及學前教育行政及督導 - 對私校之獎助,112學年度高級中等學校穩定就學措施計畫,財團法人台灣省嘉義縣私立萬能高級工商職業學校,"158,000"
113/01/09,國民及學前教育行政及督導 - 對各縣市政府之補助,113年度置專業輔導人員經費,南投縣政府,"11,348,000"
113/01/09,國民及學前教育行政及督導 - 對各縣市政府之補助,113年度置專業輔導人員經費,屏東縣政府,"10,710,000"
113/01/09,國民及學前教育行政及督導 - 對直轄市政府之補助,112學年度地方政府精進高級中等學校課程與教學計畫第2期款,桃園市政府,"4,072,638"
113/01/09,國民及學前教育行政及督導 - 對各縣市政府之補助,112年度國民中學技藝教育專案編班第2期款,新竹縣政府,"898,550"
113/01/09,國民及學前教育行政及督導 - 對各縣市政府之補助,112學年度國民中學區域職業試探與體驗示範中心計畫第2期款,新竹縣政府,"1,114,001"
113/01/09,國民及學前教育行政及督導 - 對特種基金之補助,113年教育部學生輔導諮商中心進用個案管理員實施計畫,國立中興高級中學,"641,210"
113/01/09,國民及學前教育行政及督導 - 對特種基金之補助,113年度教育部學生輔導諮商中心專案輔導助理實施計畫,國立中興高級中學,"654,580"
113/01/09,國民及學前教育行政及督導 - 對特種基金之補助,113年度教育部學生輔導諮商中心專案輔導助理實施計畫,國立基隆高級中學,"537,867"
113/01/09,國民及學前教育行政及督導 - 對特種基金之補助,113年度教育部學生輔導諮商中心專案輔導助理實施計畫,國立台南第一高級中學,"605,423"
113/01/09,國民及學前教育行政及督導 - 對特種基金之補助,113年度教育部學生輔導諮商中心專案輔導助理實施計畫,國立花蓮女子高級中學,"580,092"
113/01/09,國民及學前教育行政及督導 - 對特種基金之補助,113年度教育部學生輔導諮商中心專案輔導助理實施計畫,國立屏東女子高級中學,"678,402"
113/01/09,國民及學前教育行政及督導 - 對特種基金之補助,113年教育部學生輔導諮商中心進用個案管理員實施計畫,國立嘉義女子高級中學,"580,092"
113/01/09,國民及學前教育行政及督導 - 對特種基金之補助,113年度教育部學生輔導諮商中心專案輔導助理實施計畫,國立嘉義女子高級中學,"654,580"
113/01/09,國民及學前教育行政及督導 - 對特種基金之補助,113年度教育部學生輔導諮商中心專案輔導助理實施計畫,國立苗栗高級農工職業學校,"641,210"
113/01/09,國民及學前教育行政及督導 - 對特種基金之補助,113年度教育部學生輔導諮商中心專案輔導助理實施計畫,國立鳳山高級商工職業學校,"641,210"
113/01/09,國民及學前教育行政及督導 - 對特種基金之補助,113年度教育部學生輔導諮商中心專案輔導助理實施計畫,國立斗六高級家事商業職業學校,"641,210"
113/01/09,國民及學前教育行政及督導 - 對特種基金之補助,113年度教育部學生輔導諮商中心專案輔導助理實施計畫,國立曾文高級家事商業職業學校,"741,186"
113/01/09,國民及學前教育行政及督導 - 對私校之獎助,協助受安置戒癮青少年適性就學補助實施計畫第2期經費,彰化縣私立達德高級商工職業學校,"1,310,000"
113/01/10,國民及學前教育行政及督導 - 對各縣市政府之補助,113年度補助各地方政府辦理新住民子女教育行政人力經費,宜蘭縣政府,"484,000"
113/01/10,國民及學前教育行政及督導 - 對各縣市政府之補助,112學年度學習區完全免試國中提升學習品質計畫第2期款,宜蘭縣政府,"2,370,103"
113/01/10,國民及學前教育行政及督導 - 對各縣市政府之補助,112學年度國小原住民族語開課經費-第2期款,屏東縣政府,"3,756,601"
113/01/10,國民及學前教育行政及督導 - 對直轄市政府之補助,補助113年度綜合高中學程經費,桃園市政府,"595,000"
113/01/10,國民及學前教育行政及督導 - 對直轄市政府之補助,補助113年度綜合高中學程經費,桃園市政府,"122,400"
113/01/10,國民及學前教育行政及督導 - 對直轄市政府之補助,112學年度實施十二年國民基本教育課程新增鐘點費第2期款,桃園市政府,"13,731,228"
113/01/10,國民及學前教育行政及督導 - 對直轄市政府之補助,112學年度國民中學技藝教育競賽成果展發表活動經費,桃園市政府,"1,350,000"
113/01/10,國民及學前教育行政及督導 - 對直轄市政府之補助,112學年度國民中學生涯發展教育計畫(含出版品印製)第2期款,桃園市政府,"2,768,964"
113/01/10,國民及學前教育行政及督導 - 對直轄市政府之補助,112學年度國民中學區域職業試探與體驗示範中心計畫第2期款,桃園市政府,"1,382,550"
113/01/10,國民及學前教育行政及督導 - 對各縣市政府之補助,112學年度地方政府精進高級中等學校課程與教學計畫第2期款,雲林縣政府,"2,330,696"
113/01/10,國民及學前教育行政及督導 - 對各縣市政府之補助,112學年度實施十二年國民基本教育課程新增鐘點費第2期款,雲林縣政府,"567,000"
113/01/10,國民及學前教育行政及督導 - 對各縣市政府之補助,113年度辦理公私立幼兒園汰換及新購幼童專用車,臺東縣政府,"1,065,800"
113/01/10,國民及學前教育行政及督導 - 對國內團體之捐助,113年本土科技與教育研習計畫(寒假班)經費,社團法人台灣北社,"163,712"
113/01/10,國民及學前教育行政及督導 - 對直轄市政府之補助,補助113年度綜合高中學程經費,高雄市政府教育局,"552,500"
113/01/10,國民及學前教育行政及督導 - 對直轄市政府之補助,補助113年度綜合高中學程經費,高雄市政府教育局,"129,200"
113/01/10,國民及學前教育行政及督導 - 對特種基金之補助,112學年度實施十二年國民基本教育課程新增鐘點費第2期款,國立台東高級中學,"546,000"
113/01/10,國民及學前教育行政及督導 - 對特種基金之補助,112學年度第2學期高中優質化輔助方案,國立竹北高級中學,"650,000"
113/01/10,國民及學前教育行政及督導 - 投資,112學年度第2學期高中優質化輔助方案(資),國立竹北高級中學,"600,000"
113/01/10,國民及學前教育行政及督導 - 對特種基金之補助,112學年度實施十二年國民基本教育課程新增鐘點費第2期款,國立竹東高級中學,"793,400"
113/01/10,國民及學前教育行政及督導 - 對特種基金之補助,112學年度第2學期高中優質化輔助方案,國立竹東高級中學,"815,000"
113/01/10,國民及學前教育行政及督導 - 投資,112學年度第2學期高中優質化輔助方案(資),國立竹東高級中學,"500,000"
113/01/10,國民及學前教育行政及督導 - 對特種基金之補助,112學年度實施十二年國民基本教育課程新增鐘點費第2期款,國立南投高級中學,"907,200"
113/01/10,國民及學前教育行政及督導 - 對特種基金之補助,112學年度第2學期高中優質化輔助方案,國立屏東高級中學,"890,000"
113/01/10,國民及學前教育行政及督導 - 投資,112學年度第2學期高中優質化輔助方案(資),國立屏東高級中學,"60,000"
113/01/10,國民及學前教育行政及督導 - 對特種基金之補助,112學年度實施十二年國民基本教育課程新增鐘點費第2期款,國立苑裡高級中學,"747,400"
113/01/10,國民及學前教育行政及督導 - 對特種基金之補助,112學年度實施十二年國民基本教育課程新增鐘點費第2期款,國立善化高級中學,"453,600"
113/01/10,國民及學前教育行政及督導 - 對特種基金之補助,112學年度第2學期高中優質化輔助方案,國立新竹高級中學,"625,000"
113/01/10,國民及學前教育行政及督導 - 投資,112學年度第2學期高中優質化輔助方案(資),國立新竹高級中學,"625,000"
113/01/10,國民及學前教育行政及督導 - 對特種基金之補助,112學年度第2學期高中優質化輔助方案,國立溪湖高級中學,"725,000"
113/01/10,國民及學前教育行政及督導 - 投資,112學年度第2學期高中優質化輔助方案(資),國立溪湖高級中學,"800,000"
113/01/10,國民及學前教育行政及督導 - 對特種基金之補助,112學年度第2學期高中優質化輔助方案,國立鳳新高級中學,"794,000"
113/01/10,國民及學前教育行政及督導 - 投資,112學年度第2學期高中優質化輔助方案(資),國立鳳新高級中學,"383,000"
113/01/10,國民及學前教育行政及督導 - 對直轄市政府之補助,補助113年度綜合高中學程經費,臺北市政府教育局,"1,064,000"
113/01/10,國民及學前教育行政及督導 - 對直轄市政府之補助,補助113年度綜合高中學程經費,臺北市政府教育局,"224,000"
113/01/10,國民及學前教育行政及督導 - 對直轄市政府之補助,113年度辦理公私立幼兒園汰換及新購幼童專用車,臺北市政府教育局,"10,003,275"
113/01/10,國民及學前教育行政及督導 - 對特種基金之補助,112學年度實施十二年國民基本教育課程新增鐘點費第2期款,國立台南女子高級中學,"1,056,400"
113/01/10,國民及學前教育行政及督導 - 對特種基金之補助,112學年度第2學期高中優質化輔助方案,國立台南第二高級中學,"725,000"
113/01/10,國民及學前教育行政及督導 - 投資,112學年度第2學期高中優質化輔助方案(資),國立台南第二高級中學,"675,000"
113/01/10,國民及學前教育行政及督導 - 對特種基金之補助,112學年度第2學期高中優質化輔助方案,國立屏東女子高級中學,"825,000"
113/01/10,國民及學前教育行政及督導 - 對特種基金之補助,113年教育部學生輔導諮商中心進用個案管理員實施計畫,國立新竹女子高級中學,"741,186"
113/01/10,國民及學前教育行政及督導 - 對特種基金之補助,113年度教育部學生輔導諮商中心專案輔導助理實施計畫,國立新竹女子高級中學,"580,092"
113/01/10,國民及學前教育行政及督導 - 對特種基金之補助,113年度教育部學生輔導諮商中心進用臨時專業輔導人員實施計畫,國立新竹女子高級中學,"2,589,300"
113/01/10,國民及學前教育行政及督導 - 對特種基金之補助,112學年度第2學期高中優質化輔助方案,國立新竹女子高級中學,"750,000"
113/01/10,國民及學前教育行政及督導 - 投資,112學年度第2學期高中優質化輔助方案(資),國立新竹女子高級中學,"750,000"
113/01/10,國民及學前教育行政及督導 - 對特種基金之補助,112學年度增置國民中小學閱讀推動教師計畫第2期款,國立嘉義大學附設實小,"65,600"
113/01/10,國民及學前教育行政及督導 - 對特種基金之補助,112學年度第2學期高中優質化輔助方案,國立嘉義女子高級中學,"750,000"
113/01/10,國民及學前教育行政及督導 - 投資,112學年度第2學期高中優質化輔助方案(資),國立嘉義女子高級中學,"750,000"
113/01/10,國民及學前教育行政及督導 - 對學生之獎助,112學年度第1學期高級中等學校低收入戶及中低收入戶學生學雜費減免補助,新竹市私立光復高級中學,"3,801"
113/01/10,國民及學前教育行政及督導 - 對國內團體之捐助,推動實驗教育光譜平臺計畫(二期),社團法人中華民國振鐸學會,"264,810"
113/01/10,國民及學前教育行政及督導 - 對特種基金之補助,112學年度實施十二年國民基本教育課程新增鐘點費第2期款,國立二林高級工商職業學校,"386,400"
113/01/10,國民及學前教育行政及督導 - 對特種基金之補助,112學年度實施十二年國民基本教育課程新增鐘點費第2期款,國立白河高級商工職業學校,"42,000"
113/01/10,國民及學前教育行政及督導 - 對特種基金之補助,112學年度實施十二年國民基本教育課程新增鐘點費第2期款,國立宜蘭高級商業職業學校,"604,800"
113/01/10,國民及學前教育行政及督導 - 對特種基金之補助,113年度教育部學生輔導諮商中心進用臨時專業輔導人員實施計畫,國立苗栗高級農工職業學校,"863,100"
113/01/10,國民及學前教育行政及督導 - 對特種基金之補助,112學年度實施十二年國民基本教育課程新增鐘點費第2期款,國立華南高級商業職業學校,"487,200"
113/01/10,國民及學前教育行政及督導 - 對特種基金之補助,112學年度實施十二年國民基本教育課程新增鐘點費第2期款,國立新化高級工業職業學校,"386,400"
113/01/10,國民及學前教育行政及督導 - 投資,109年度學生宿舍興建計畫,國立頭城高級家事商業職業學校,"14,891,900"
113/01/10,國民及學前教育行政及督導 - 對特種基金之補助,112學年度實施十二年國民基本教育課程新增鐘點費第2期款,國立新竹科學園區實驗高級中等學校,"285,600"
113/01/10,國民及學前教育行政及督導 - 對國內團體之捐助,113年度補助民間團體辦理國民中小學閱讀推動計畫經費,台灣T．H．E．科技人文推廣教育學會,"240,000"
113/01/10,國民及學前教育行政及督導 - 對特種基金之補助,112學年度實施十二年國民基本教育課程新增鐘點費第2期款,國立中興大學附屬台中高級農業職業學校,"705,600"
113/01/11,國民及學前教育行政及督導 - 對各縣市政府之補助,羅東鎮立幼兒園園舍興建工程第1期款,宜蘭縣政府,"17,207,928"
113/01/11,國民及學前教育行政及督導 - 對各縣市政府之補助,113年度新住民子女教育行政人力經費,屏東縣政府,"495,000"
113/01/11,國民及學前教育行政及督導 - 對各縣市政府之補助,113年度新住民子女教育行政人力經費,苗栗縣政府,"495,000"
113/01/11,國民及學前教育行政及督導 - 對直轄市政府之補助,113年度新住民子女教育行政人力經費,桃園市政府,"473,000"
113/01/11,國民及學前教育行政及督導 - 對各縣市政府之補助,113年度新住民子女教育行政人力經費,基隆市政府,"473,000"
113/01/11,國民及學前教育行政及督導 - 對各縣市政府之補助,113年度新住民子女教育行政人力經費,雲林縣政府,"495,000"
113/01/11,國民及學前教育行政及督導 - 對各縣市政府之補助,113年度辦理公私立幼兒園汰換及新購幼童專用車,新竹市政府,"3,678,800"
113/01/11,國民及學前教育行政及督導 - 對各縣市政府之補助,113年度新住民子女教育行政人力經費,新竹市政府,"473,000"
113/01/11,國民及學前教育行政及督導 - 對各縣市政府之補助,113年度辦理公私立幼兒園汰換及新購幼童專用車,嘉義市政府,"735,200"
113/01/11,國民及學前教育行政及督導 - 對各縣市政府之補助,113年度新住民子女教育行政人力經費,彰化縣政府,"484,000"
113/01/11,國民及學前教育行政及督導 - 政府機關間之補助,113年度法務部矯正署所屬少年矯正學校運用教育部國民及學前教育署補助經費聘用專業輔導人員計畫,法務部矯正署,"4,557,933"
113/01/11,國民及學前教育行政及督導 - 對特種基金之補助,112學年度實施十二年國民基本教育課程新增鐘點費第2期款,國立玉里高級中學,"369,600"
113/01/11,國民及學前教育行政及督導 - 對特種基金之補助,112學年度實施十二年國民基本教育課程新增鐘點費第2期款,國立竹北高級中學,"638,400"
113/01/11,國民及學前教育行政及督導 - 對特種基金之補助,112學年度國立學校聘任資源班行政助理計畫經費,國立竹北高級中學,"406,260"
113/01/11,國民及學前教育行政及督導 - 對特種基金之補助,112學年度國立學校聘任資源班行政助理計畫經費,國立竹東高級中學,"403,016"
113/01/11,國民及學前教育行政及督導 - 對特種基金之補助,112學年度實施十二年國民基本教育課程新增鐘點費第2期款,國立竹南高級中學,"535,800"
113/01/11,國民及學前教育行政及督導 - 對特種基金之補助,112學年度實施十二年國民基本教育課程新增鐘點費第2期款,國立馬祖高級中學,"109,200"
113/01/11,國民及學前教育行政及督導 - 對特種基金之補助,112學年度實施十二年國民基本教育課程新增鐘點費第2期款,國立新營高級中學,"806,400"
113/01/11,國民及學前教育行政及督導 - 對特種基金之補助,112學年度實施十二年國民基本教育課程新增鐘點費第2期款,國立溪湖高級中學,"925,000"
113/01/11,國民及學前教育行政及督導 - 對直轄市政府之補助,113年度辦理公私立幼兒園汰換及新購幼童專用車,新北市政府教育局,"11,726,000"
113/01/11,國民及學前教育行政及督導 - 對直轄市政府之補助,113年度新住民子女教育行政人力經費,臺中市政府教育局,"462,000"
113/01/11,國民及學前教育行政及督導 - 對直轄市政府之補助,113年度新住民子女教育行政人力經費,臺南市政府教育局,"473,000"
113/01/11,國民及學前教育行政及督導 - 對特種基金之補助,國私立高級中等學校112學年度臨時特殊教育助理人員第1梯次第2期款,國立台南第一高級中學,"237,996"
113/01/11,國民及學前教育行政及督導 - 對特種基金之補助,112學年度國立學校聘任資源班行政助理計畫經費,國立台南第一高級中學,"383,547"
113/01/11,國民及學前教育行政及督導 - 對特種基金之補助,112學年度實施十二年國民基本教育課程新增鐘點費第2期款,國立新竹女子高級中學,"478,800"
113/01/11,國民及學前教育行政及督導 - 對特種基金之補助,112學年度實施十二年國民基本教育課程新增鐘點費第2期款,國立大湖高級農工職業學校,"277,200"
113/01/11,國民及學前教育行政及督導 - 對特種基金之補助,113年度廚房午餐廚務臨時人員人力經費,國立仁愛高級農業職業學校,"260,000"
113/01/11,國民及學前教育行政及督導 - 對特種基金之補助,國私立高級中等學校112學年度臨時特殊教育助理人員第1梯次第2期款,國立水里高級商工職業學校,"237,996"
113/01/11,國民及學前教育行政及督導 - 對特種基金之補助,112學年度國立學校聘任資源班行政助理計畫經費,國立水里高級商工職業學校,"406,260"
113/01/11,國民及學前教育行政及督導 - 對特種基金之補助,112學年度實施十二年國民基本教育課程新增鐘點費第2期款,國立北門高級農工職業學校,"252,300"
113/01/11,國民及學前教育行政及督導 - 對特種基金之補助,112學年度國立學校聘任資源班行政助理計畫經費,國立台東高級商業職業學校,"406,260"
113/01/11,國民及學前教育行政及督導 - 對特種基金之補助,112學年度實施十二年國民基本教育課程新增鐘點費第2期款,國立台南高級商業職業學校,"638,400"
113/01/11,國民及學前教育行政及督導 - 對特種基金之補助,112學年度實施十二年國民基本教育課程新增鐘點費第2期款,國立秀水高級工業職業學校,"210,000"
113/01/11,國民及學前教育行政及督導 - 對特種基金之補助,112學年度實施十二年國民基本教育課程新增鐘點費第2期款,國立苗栗高級商業職業學校,"235,200"
113/01/11,國民及學前教育行政及督導 - 對特種基金之補助,國私立高級中等學校112學年度臨時特殊教育助理人員第1梯次第2期款,國立埔里高級工業職業學校,"475,992"
113/01/11,國民及學前教育行政及督導 - 對特種基金之補助,國私立高級中等學校112學年度臨時特殊教育助理人員第1梯次第2期款,國立草屯高級商工職業學校,"475,992"
113/01/11,國民及學前教育行政及督導 - 對特種基金之補助,112學年度國立學校聘任資源班行政助理計畫經費,國立草屯高級商工職業學校,"406,260"
113/01/11,國民及學前教育行政及督導 - 對特種基金之補助,112學年度實施十二年國民基本教育課程新增鐘點費第2期款,國立曾文高級農工職業學校,"361,200"
113/01/11,國民及學前教育行政及督導 - 對特種基金之補助,國私立高級中等學校112學年度臨時特殊教育助理人員第1梯次第2期款,國立曾文高級農工職業學校,"237,996"
113/01/11,國民及學前教育行政及督導 - 對特種基金之補助,112學年度國立學校聘任資源班行政助理計畫經費,國立曾文高級農工職業學校,"406,260"
113/01/11,國民及學前教育行政及督導 - 對特種基金之補助,國私立高級中等學校112學年度臨時特殊教育助理人員第1梯次第2期款,國立華南高級商業職業學校,"544,119"
113/01/11,國民及學前教育行政及督導 - 對特種基金之補助,112學年度國立學校聘任資源班行政助理計畫經費,國立新竹高級工業職業學校,"406,260"
113/01/11,國民及學前教育行政及督導 - 對特種基金之補助,國私立高級中等學校112學年度臨時特殊教育助理人員第1梯次第2期款,國立新營高級工業職業學校,"237,996"
113/01/11,國民及學前教育行政及督導 - 對特種基金之補助,112學年度國立學校聘任資源班行政助理計畫經費,國立新營高級工業職業學校,"399,771"
113/01/11,國民及學前教育行政及督導 - 對特種基金之補助,112學年度國立學校聘任資源班行政助理計畫經費,國立嘉義高級家事職業學校,"406,260"
113/01/11,國民及學前教育行政及督導 - 對特種基金之補助,112學年度實施十二年國民基本教育課程新增鐘點費第2期款,國立嘉義高級商業職業學校,"604,800"
113/01/11,國民及學前教育行政及督導 - 對特種基金之補助,國私立高級中等學校112學年度臨時特殊教育助理人員第1梯次第2期款,國立嘉義高級商業職業學校,"713,987"
113/01/11,國民及學前教育行政及督導 - 對特種基金之補助,112學年度國立學校聘任資源班行政助理計畫經費,國立嘉義高級商業職業學校,"406,260"
113/01/11,國民及學前教育行政及督導 - 對特種基金之補助,國私立高級中等學校112學年度臨時特殊教育助理人員第1梯次第2期款,國立鳳山高級商工職業學校,"237,996"
113/01/11,國民及學前教育行政及督導 - 對特種基金之補助,112學年度國立學校聘任資源班行政助理計畫經費,國立鳳山高級商工職業學校,"406,260"
113/01/11,國民及學前教育行政及督導 - 對特種基金之補助,112學年度實施十二年國民基本教育課程新增鐘點費第2期款,國立羅東高級商業職業學校,"529,200"
113/01/11,國民及學前教育行政及督導 - 對特種基金之補助,112學年度實施十二年國民基本教育課程新增鐘點費第2期款,國立斗六高級家事商業職業學校,"554,400"
113/01/11,國民及學前教育行政及督導 - 對特種基金之補助,112學年度國立學校聘任資源班行政助理計畫經費,國立台南高級海事水產職業學校,"406,260"
113/01/11,國民及學前教育行政及督導 - 對特種基金之補助,國私立高級中等學校112學年度臨時特殊教育助理人員第1梯次第2期款,國立東港高級海事水產職業學校,"237,996"
113/01/11,國民及學前教育行政及督導 - 對特種基金之補助,112學年度國立學校聘任資源班行政助理計畫經費,國立東港高級海事水產職業學校,"406,260"
113/01/11,國民及學前教育行政及督導 - 對特種基金之補助,國私立高級中等學校112學年度臨時特殊教育助理人員第1梯次第2期款,國立員林高級家事商業職業學校,"475,992"
113/01/11,國民及學前教育行政及督導 - 對特種基金之補助,112學年度實施十二年國民基本教育課程新增鐘點費第2期款,國立曾文高級家事商業職業學校,"157,800"
113/01/11,國民及學前教育行政及督導 - 對特種基金之補助,國私立高級中等學校112學年度臨時特殊教育助理人員第1梯次第2期款,國立曾文高級家事商業職業學校,"237,996"
113/01/11,國民及學前教育行政及督導 - 對特種基金之補助,112學年度國立學校聘任資源班行政助理計畫經費,國立曾文高級家事商業職業學校,"406,260"
113/01/11,國民及學前教育行政及督導 - 對特種基金之補助,112學年度實施十二年國民基本教育課程新增鐘點費第2期款,國立澎湖高級海事水產職業學校,"168,000"
113/01/11,國民及學前教育行政及督導 - 對私校之獎助,大額通報教補1月16日-助113年1月至6月份私立中小學校教職員參加全民健康保險費,全民健康保險基金-健保收付款項,"186,036,893"
113/01/12,國民及學前教育行政及督導 - 對各縣市政府之補助,112學年度國民中學技藝教育專案編班第2期款,宜蘭縣政府,"804,204"
113/01/12,國民及學前教育行政及督導 - 對各縣市政府之補助,大額通報教補1月16日-112學年度我國少子女化對策計畫之各項幼生就學補助及育兒津貼等經費第3期款,宜蘭縣政府,"235,585,000"
113/01/12,國民及學前教育行政及督導 - 對各縣市政府之補助,112學年度偏遠地區學校國中合理教師員額事項經費第2期款,花蓮縣政府,"17,737,216"
113/01/12,國民及學前教育行政及督導 - 對各縣市政府之補助,112學年度偏遠地區學校國中合理教師員額事項經費第2期款,花蓮縣政府,"1,862,784"
113/01/12,國民及學前教育行政及督導 - 對各縣市政府之補助,112學年度偏遠地區學校國中增置專長教師員額所需經費第2期款,花蓮縣政府,"809,900"
113/01/12,國民及學前教育行政及督導 - 對各縣市政府之補助,112學年度一般地區學校公立國民中學增置專長教師員額實施計畫第2期款,花蓮縣政府,"3,776,500"
113/01/12,國民及學前教育行政及督導 - 對各縣市政府之補助,大額通報教補1月16日-112學年度我國少子女化對策計畫之各項幼生就學補助及育兒津貼等經費第3期款,金門縣政府,"35,224,000"
113/01/12,國民及學前教育行政及督導 - 對各縣市政府之補助,112學年度準公共幼兒園招收2歲幼兒補助經費第2期款,南投縣政府,"10,845,000"
113/01/12,國民及學前教育行政及督導 - 對各縣市政府之補助,112學年度國民中學區域職業試探與體驗示範中心計畫第2期款,屏東縣政府,"1,240,000"
113/01/12,國民及學前教育行政及督導 - 對各縣市政府之補助,112學年度國民中學技藝教育專案編班第2期款,屏東縣政府,"8,011,011"
113/01/12,國民及學前教育行政及督導 - 對各縣市政府之補助,大額通報教補1月16日-112學年度我國少子女化對策計畫之各項幼生就學補助及育兒津貼等經費第3期款,屏東縣政府,"433,912,500"
113/01/12,國民及學前教育行政及督導 - 對各縣市政府之補助,112學年度國民中學技藝教育競賽及成果發表活動經費,苗栗縣政府,"1,177,550"
113/01/12,國民及學前教育行政及督導 - 對各縣市政府之補助,112學年度國民中學區域職業試探與體驗示範中心計畫第2期款,苗栗縣政府,"680,000"
113/01/12,國民及學前教育行政及督導 - 對各縣市政府之補助,112學年度國民中學技藝教育專案編班第2期款,苗栗縣政府,"813,240"
113/01/12,國民及學前教育行政及督導 - 對各縣市政府之補助,大額通報教補1月16日-112學年度我國少子女化對策計畫之各項幼生就學補助及育兒津貼等經費第3期款,苗栗縣政府,"339,255,000"
113/01/12,國民及學前教育行政及督導 - 對學生之獎助,112學年度第1學期實用技能學程學生免學雜費補助,桃園市政府,"27,783"
113/01/12,國民及學前教育行政及督導 - 對直轄市政府之補助,112學年度一般地區學校公立國民中學增置專長教師員額實施計畫第2期款,桃園市政府,"11,939,200"
113/01/12,國民及學前教育行政及督導 - 對各縣市政府之補助,大額通報教補1月16日-112學年度我國少子女化對策計畫之各項幼生就學補助及育兒津貼等經費第3期款,基隆市政府,"133,794,500"
113/01/12,國民及學前教育行政及督導 - 對各縣市政府之補助,113年國中畢業生適性入學到校宣導經費,雲林縣政府,"144,000"
113/01/12,國民及學前教育行政及督導 - 對各縣市政府之補助,112學年度國民中學技藝教育競賽及成果發表活動經費,雲林縣政府,"1,097,712"
113/01/12,國民及學前教育行政及督導 - 對各縣市政府之補助,大額通報教補1月16日-112學年度我國少子女化對策計畫之各項幼生就學補助及育兒津貼等經費第3期款,雲林縣政府,"368,707,500"
113/01/12,國民及學前教育行政及督導 - 對各縣市政府之補助,112學年度國小原住民族語開課第2期款,新竹市政府,"899,741"
113/01/12,國民及學前教育行政及督導 - 對各縣市政府之補助,大額通報教補1月16日-112學年度我國少子女化對策計畫之各項幼生就學補助及育兒津貼等經費第3期款,新竹市政府,"470,120,000"
113/01/12,國民及學前教育行政及督導 - 對各縣市政府之補助,大額通報教補1月16日-112學年度我國少子女化對策計畫之各項幼生就學補助及育兒津貼等經費第3期款,新竹縣政府,"508,357,500"
113/01/12,國民及學前教育行政及督導 - 對各縣市政府之補助,113年國中畢業生適性入學到校宣導經費,嘉義市政府,"42,720"
113/01/12,國民及學前教育行政及督導 - 對各縣市政府之補助,大額通報教補1月16日-112學年度我國少子女化對策計畫之各項幼生就學補助及育兒津貼等經費第3期款,嘉義市政府,"148,991,500"
113/01/12,國民及學前教育行政及督導 - 對各縣市政府之補助,大額通報教補1月16日-112學年度我國少子女化對策計畫之各項幼生就學補助及育兒津貼等經費第3期款,嘉義縣政府,"205,964,500"
113/01/12,國民及學前教育行政及督導 - 對各縣市政府之補助,大額通報教補1月16日-112學年度我國少子女化對策計畫之各項幼生就學補助及育兒津貼等經費第3期款,彰化縣政府,"895,020,000"
113/01/12,國民及學前教育行政及督導 - 對各縣市政府之補助,112學年度國民中學技藝教育競賽及成果發表活動經費,澎湖縣政府,"501,600"
113/01/12,國民及學前教育行政及督導 - 政府機關間之補助,112學年度國家教育研究院基地學校經費,國家教育研究院,"4,200,000"
113/01/12,國民及學前教育行政及督導 - 對直轄市政府之補助,113年補助地方政府成立學校午餐輔導團及輔導人力計畫第1期款,高雄市政府教育局,"660,000"
113/01/12,國民及學前教育行政及督導 - 對直轄市政府之補助,112學年度第2學期高級中等學校提升學生實習實作能力-正選國手培訓經費,高雄市政府教育局,"819,268"
113/01/12,國民及學前教育行政及督導 - 對直轄市政府之補助,112學年度國民中學生涯發展教育計畫(含出版品印製)第2期款,高雄市政府教育局,"3,566,878"
113/01/12,國民及學前教育行政及督導 - 對直轄市政府之補助,112學年度一般地區學校公立國民中學增置專長教師員額實施計畫第2期款,高雄市政府教育局,"20,520,500"
113/01/12,國民及學前教育行政及督導 - 對直轄市政府之補助,112學年度國民中學區域職業試探與體驗示範中心計畫第2期款,高雄市政府教育局,"1,930,500"
113/01/12,國民及學前教育行政及督導 - 對直轄市政府之補助,112學年度國民中學技藝教育專案編班第2期款,高雄市政府教育局,"1,755,406"
113/01/12,國民及學前教育行政及督導 - 對特種基金之補助,112學年度高中優質化輔助方案,國立中興高級中學,"870,000"
113/01/12,國民及學前教育行政及督導 - 投資,112學年度高中優質化輔助方案,國立中興高級中學,"472,000"
113/01/12,國民及學前教育行政及督導 - 對特種基金之補助,112學年度高中優質化輔助方案,國立台東高級中學,"775,000"
113/01/12,國民及學前教育行政及督導 - 投資,112學年度高中優質化輔助方案,國立台東高級中學,"375,000"
113/01/12,國民及學前教育行政及督導 - 對特種基金之補助,112學年度實施十二年國民基本教育課程新增鐘點費第2期款,國立宜蘭高級中學,"978,000"
113/01/12,國民及學前教育行政及督導 - 對特種基金之補助,112學年度高中優質化輔助方案,國立宜蘭高級中學,"650,000"
113/01/12,國民及學前教育行政及督導 - 投資,112學年度高中優質化輔助方案,國立宜蘭高級中學,"650,000"
113/01/12,國民及學前教育行政及督導 - 對特種基金之補助,113年度廚房午餐廚務臨時人員人力經費,國立金門高級中學,"702,000"
113/01/12,國民及學前教育行政及督導 - 對特種基金之補助,112學年度實施十二年國民基本教育課程新增鐘點費第2期款,國立屏東高級中學,"798,000"
113/01/12,國民及學前教育行政及督導 - 對特種基金之補助,113年度山地、遍遠及離島地區國立高級中等以下學校經濟弱勢學生午餐費,國立後壁高級中學,"1,296,490"
113/01/12,國民及學前教育行政及督導 - 對特種基金之補助,112學年度實施十二年國民基本教育課程新增鐘點費第2期款,國立後壁高級中學,"630,000"
113/01/12,國民及學前教育行政及督導 - 對特種基金之補助,112學年度實施十二年國民基本教育課程新增鐘點費第2期款,國立馬公高級中學,"604,800"
113/01/12,國民及學前教育行政及督導 - 對特種基金之補助,112學年度高中優質化輔助方案,國立基隆高級中學,"1,005,000"
113/01/12,國民及學前教育行政及督導 - 投資,112學年度高中優質化輔助方案,國立基隆高級中學,"325,000"
113/01/12,國民及學前教育行政及督導 - 對特種基金之補助,112學年度實施十二年國民基本教育課程新增鐘點費第2期款,國立鹿港高級中學,"571,200"
113/01/12,國民及學前教育行政及督導 - 對特種基金之補助,112學年度高中優質化輔助方案,國立新營高級中學,"1,000,000"
113/01/12,國民及學前教育行政及督導 - 投資,112學年度高中優質化輔助方案,國立新營高級中學,"250,000"
113/01/12,國民及學前教育行政及督導 - 對特種基金之補助,112學年度實施十二年國民基本教育課程新增鐘點費第2期款,國立新豐高級中學,"403,200"
113/01/12,國民及學前教育行政及督導 - 對特種基金之補助,112學年度實施十二年國民基本教育課程新增鐘點費第2期款,國立嘉義高級中學,"1,217,200"
113/01/12,國民及學前教育行政及督導 - 對特種基金之補助,112學年度高中優質化輔助方案,國立嘉義高級中學,"675,000"
113/01/12,國民及學前教育行政及督導 - 投資,112學年度高中優質化輔助方案,國立嘉義高級中學,"675,000"
113/01/12,國民及學前教育行政及督導 - 對特種基金之補助,112學年度高中優質化輔助方案,國立彰化高級中學,"750,000"
113/01/12,國民及學前教育行政及督導 - 投資,112學年度高中優質化輔助方案,國立彰化高級中學,"100,000"
113/01/12,國民及學前教育行政及督導 - 對特種基金之補助,112學年度高中優質化輔助方案,國立旗美高級中學,"775,000"
113/01/12,國民及學前教育行政及督導 - 投資,112學年度高中優質化輔助方案,國立旗美高級中學,"525,000"
113/01/12,國民及學前教育行政及督導 - 對特種基金之補助,112學年度高中優質化輔助方案,國立鳳山高級中學,"700,000"
113/01/12,國民及學前教育行政及督導 - 投資,112學年度高中優質化輔助方案,國立鳳山高級中學,"440,000"
113/01/12,國民及學前教育行政及督導 - 對直轄市政府之補助,113年度新住民子女教育行政人力經費,新北市政府教育局,"462,000"
113/01/12,國民及學前教育行政及督導 - 對直轄市政府之補助,113年補助地方政府成立學校午餐輔導團及輔導人力計畫第1期款,新北市政府教育局,"600,300"
113/01/12,國民及學前教育行政及督導 - 對直轄市政府之補助,112學年度第2學期高級中等學校提升學生實習實作能力-正選國手培訓經費,新北市政府教育局,"287,402"
113/01/12,國民及學前教育行政及督導 - 對直轄市政府之補助,112學年度國民中學技藝教育專案編班第2期款,新北市政府教育局,"4,594,590"
113/01/12,國民及學前教育行政及督導 - 對直轄市政府之補助,大額通報教補1月16日-112學年度我國少子女化對策計畫之各項幼生就學補助及育兒津貼等經費第3期款,新北市政府教育局,"2,229,325,000"
113/01/12,國民及學前教育行政及督導 - 對直轄市政府之補助,補助113年度綜合高中學程經費,臺中市政府教育局,"896,000"
113/01/12,國民及學前教育行政及督導 - 對直轄市政府之補助,補助113年度綜合高中學程經費,臺中市政府教育局,"204,800"
113/01/12,國民及學前教育行政及督導 - 對直轄市政府之補助,113年補助地方政府成立學校午餐輔導團及輔導人力計畫第1期款,臺中市政府教育局,"652,500"
113/01/12,國民及學前教育行政及督導 - 對直轄市政府之補助,112學年度第2學期高級中等學校提升學生實習實作能力-正選國手培訓經費,臺中市政府教育局,"372,470"
113/01/12,國民及學前教育行政及督導 - 對直轄市政府之補助,大額通報教補1月16日-112學年度我國少子女化對策計畫之各項幼生就學補助及育兒津貼等經費第3期款,臺中市政府教育局,"1,817,602,500"
113/01/12,國民及學前教育行政及督導 - 對直轄市政府之補助,113年補助地方政府成立學校午餐輔導團及輔導人力計畫第1期款,臺北市政府教育局,"593,400"
113/01/12,國民及學前教育行政及督導 - 對直轄市政府之補助,112學年度實施十二年國民基本教育課程新增鐘點費第2期款,臺南市政府教育局,"1,178,352"
113/01/12,國民及學前教育行政及督導 - 對直轄市政府之補助,113年補助地方政府成立學校午餐輔導團及輔導人力計畫第1期款,臺南市政府教育局,"264,000"
113/01/12,國民及學前教育行政及督導 - 對直轄市政府之補助,大額通報教補1月16日-112學年度我國少子女化對策計畫之各項幼生就學補助及育兒津貼等經費第3期款,臺南市政府教育局,"1,124,987,500"
113/01/12,國民及學前教育行政及督導 - 對特種基金之補助,112學年度實施十二年國民基本教育課程新增鐘點費第2期款,國立台南家齊高級中學,"682,200"
113/01/12,國民及學前教育行政及督導 - 對特種基金之補助,112學年度實施十二年國民基本教育課程新增鐘點費第2期款,國立台南第一高級中學,"1,016,400"
113/01/12,國民及學前教育行政及督導 - 對特種基金之補助,112學年度高中優質化輔助方案,國立台南第一高級中學,"1,020,000"
113/01/12,國民及學前教育行政及督導 - 投資,112學年度高中優質化輔助方案,國立台南第一高級中學,"570,000"
113/01/12,國民及學前教育行政及督導 - 對特種基金之補助,112學年度實施十二年國民基本教育課程新增鐘點費第2期款,國立台南第二高級中學,"1,683,000"
113/01/12,國民及學前教育行政及督導 - 對特種基金之補助,112學年度高中優質化輔助方案,國立新港藝術高級中學,"803,000"
113/01/12,國民及學前教育行政及督導 - 投資,112學年度高中優質化輔助方案,國立新港藝術高級中學,"555,000"
113/01/12,國民及學前教育行政及督導 - 對特種基金之補助,113年度進用協助學務推動人力經費,國立臺南特殊教育學校,"1,159,208"
113/01/12,國民及學前教育行政及督導 - 對私校之獎助,112學年度高中優質化輔助方案,台南市私立長榮高級中學,"575,000"
113/01/12,國民及學前教育行政及督導 - 對私校之獎助,112學年度高中優質化輔助方案,台南市私立長榮高級中學,"825,000"
113/01/12,國民及學前教育行政及督導 - 對私校之獎助,112學年度高中優質化輔助方案,屏東縣私立美和高級中學,"500,000"
113/01/12,國民及學前教育行政及督導 - 對私校之獎助,112學年度高中優質化輔助方案,屏東縣私立美和高級中學,"500,000"
113/01/12,國民及學前教育行政及督導 - 對私校之獎助,112學年度高中優質化輔助方案,臺南市私立慈濟高級中學,"111,000"
113/01/12,國民及學前教育行政及督導 - 對私校之獎助,112學年度高中優質化輔助方案,臺南市私立慈濟高級中學,"1,200,000"
113/01/12,國民及學前教育行政及督導 - 對特種基金之補助,112學年度實施十二年國民基本教育課程新增鐘點費第2期款,國立玉井高級工商職業學校,"132,600"
113/01/12,國民及學前教育行政及督導 - 對特種基金之補助,112學年度實施十二年國民基本教育課程新增鐘點費第2期款,國立西螺高級農工職業學校,"630,000"
113/01/12,國民及學前教育行政及督導 - 對特種基金之補助,112學年度實施十二年國民基本教育課程新增鐘點費第2期款,國立花蓮高級商業職業學校,"168,000"
113/01/12,國民及學前教育行政及督導 - 對特種基金之補助,112學年度實施十二年國民基本教育課程新增鐘點費第2期款,國立花蓮高級農業職業學校,"184,800"
113/01/12,國民及學前教育行政及督導 - 對特種基金之補助,112學年度實施十二年國民基本教育課程新增鐘點費第2期款,國立金門高級農工職業學校,"352,800"
113/01/12,國民及學前教育行政及督導 - 對特種基金之補助,112學年度實施十二年國民基本教育課程新增鐘點費第2期款,國立南科國際實驗高級中學,"319,200"
113/01/12,國民及學前教育行政及督導 - 對特種基金之補助,112學年度高中優質化輔助方案,國立南科國際實驗高級中學,"850,000"
113/01/12,國民及學前教育行政及督導 - 對特種基金之補助,112學年度高中優質化輔助方案,國立南科國際實驗高級中學,"160,000"
113/01/12,國民及學前教育行政及督導 - 對特種基金之補助,112學年度實施十二年國民基本教育課程新增鐘點費第2期款,國立員林高級農工職業學校,"630,000"
113/01/12,國民及學前教育行政及督導 - 對特種基金之補助,112學年度實施十二年國民基本教育課程新增鐘點費第2期款,國立新竹高級商業職業學校,"476,100"
113/01/12,國民及學前教育行政及督導 - 對特種基金之補助,112學年度實施十二年國民基本教育課程新增鐘點費第2期款,國立旗山高級農工職業學校,"218,400"
113/01/12,國民及學前教育行政及督導 - 對特種基金之補助,112學年度實施十二年國民基本教育課程新增鐘點費第2期款,國立鳳山高級商工職業學校,"428,400"
113/01/12,國民及學前教育行政及督導 - 對私校之獎助,112學年度高中優質化輔助方案,台灣省基隆市私立聖心高級中學,"450,000"
113/01/12,國民及學前教育行政及督導 - 對私校之獎助,112學年度高中優質化輔助方案,台灣省基隆市私立聖心高級中學,"891,000"
113/01/12,國民及學前教育行政及督導 - 對特種基金之補助,112學年度高中優質化輔助方案,國立中央大學附屬中壢高級中學,"750,000"
113/01/12,國民及學前教育行政及督導 - 投資,112學年度高中優質化輔助方案,國立中央大學附屬中壢高級中學,"750,000"
113/01/12,國民及學前教育行政及督導 - 對特種基金之補助,112學年度實施十二年國民基本教育課程新增鐘點費第2期款,國立東港高級海事水產職業學校,"151,200"
113/01/12,國民及學前教育行政及督導 - 對私校之獎助,112學年度高中優質化輔助方案,方濟會學校財團法人臺南市黎明高級中學,"525,000"
113/01/12,國民及學前教育行政及督導 - 對私校之獎助,112學年度高中優質化輔助方案,方濟會學校財團法人臺南市黎明高級中學,"725,000"
113/01/12,國民及學前教育行政及督導 - 對私校之獎助,112學年度高中優質化輔助方案,財團法人台灣省雲林縣私立文生高級中學,"50,000"
113/01/12,國民及學前教育行政及督導 - 對私校之獎助,112學年度高中優質化輔助方案,財團法人台灣省雲林縣私立文生高級中學,"590,000"
113/01/12,國民及學前教育行政及督導 - 對特種基金之補助,商借教師王南成至本署所需聘任代理代課教師經費,國立彰化師範大學附屬高級工業職業學校,"443,084"
113/01/12,國民及學前教育行政及督導 - 對私校之獎助,112學年度高中優質化輔助方案,未來學校財團法人臺東縣育仁高級中等學校,"30,000"
113/01/12,國民及學前教育行政及督導 - 對私校之獎助,112學年度高中優質化輔助方案,未來學校財團法人臺東縣育仁高級中等學校,"109,000"
113/01/12,國民及學前教育行政及督導 - 對私校之獎助,112學年度高中優質化輔助方案,維多利亞學校財團法人雲林縣維多利亞實驗高級中學,"428,000"
113/01/12,國民及學前教育行政及督導 - 對私校之獎助,112學年度高中優質化輔助方案,維多利亞學校財團法人雲林縣維多利亞實驗高級中學,"428,000"
113/01/15,國民及學前教育行政及督導 - 對各縣市政府之補助,宜蘭考區113年國中教育會考試務籌辦計畫第2期款,宜蘭縣政府,"3,946,102"
113/01/15,國民及學前教育行政及督導 - 對各縣市政府之補助,宜蘭考區113年國中教育會考試務籌辦計畫第2期款,宜蘭縣政府,"75,650"
113/01/15,國民及學前教育行政及督導 - 對各縣市政府之補助,112學年度地方政府精進高級中等學校課程與教學計畫第2期款,南投縣政府,"1,395,524"
113/01/15,國民及學前教育行政及督導 - 對各縣市政府之補助,私立聖愛幼兒園等59園112學年度準公共幼兒園設施設備補助經費第2期款,南投縣政府,"1,972,539"
113/01/15,國民及學前教育行政及督導 - 對各縣市政府之補助,私立聖愛幼兒園等59園112學年度準公共幼兒園設施設備補助經費第2期款,南投縣政府,"13,543,029"
113/01/15,國民及學前教育行政及督導 - 對各縣市政府之補助,112學年度國民中小學本土教育整體推動方案暨教師及學生多元相關活動第2期款,屏東縣政府,"3,158,838"
113/01/15,國民及學前教育行政及督導 - 對各縣市政府之補助,112學年度國民中學生涯發展教育計畫(含出版品印製)第2期款,苗栗縣政府,"1,021,590"
113/01/15,國民及學前教育行政及督導 - 對直轄市政府之補助,112學年度下學期中央課程與教學輔導諮詢教師團隊代理代課費暨課程與教學補助經費第2期款,桃園市政府,"1,286,040"
113/01/15,國民及學前教育行政及督導 - 對直轄市政府之補助,112學年度國民中小學學生學習扶助計畫第2期款,桃園市政府,"27,024,638"
113/01/15,國民及學前教育行政及督導 - 對各縣市政府之補助,113年度辦理公私立幼兒園汰換及新購幼童專用車,基隆市政府,"727,600"
113/01/15,國民及學前教育行政及督導 - 對各縣市政府之補助,112學年度實施戶外教育與海洋教育計畫第2期款,基隆市政府,"2,482,869"
113/01/15,國民及學前教育行政及督導 - 對各縣市政府之補助,112學年度實施戶外教育與海洋教育計畫第2期款,基隆市政府,"168,324"
113/01/15,國民及學前教育行政及督導 - 對各縣市政府之補助,112學年度地方政府精進高級中等學校課程與教學計畫第2期款,新竹市政府,"2,318,866"
113/01/15,國民及學前教育行政及督導 - 對各縣市政府之補助,112學年度實施戶外教育與海洋教育計畫第2期款,新竹市政府,"3,043,810"
113/01/15,國民及學前教育行政及督導 - 對各縣市政府之補助,112學年度實施戶外教育與海洋教育計畫第2期款,新竹市政府,"180,145"
113/01/15,國民及學前教育行政及督導 - 對各縣市政府之補助,113年度辦理公私立幼兒園汰換及新購幼童專用車,新竹縣政府,"4,686,800"
113/01/15,國民及學前教育行政及督導 - 對各縣市政府之補助,113年國中畢業生適性入學到校宣導所需經費,新竹縣政府,"130,240"
113/01/15,國民及學前教育行政及督導 - 對各縣市政府之補助,112學年度偏遠地區學校及非山非市學校整合性計畫第2期款,新竹縣政府,"1,680,000"
113/01/15,國民及學前教育行政及督導 - 對各縣市政府之補助,112學年度偏遠地區學校及非山非市學校整合性計畫第2期款,新竹縣政府,"770,000"
113/01/15,國民及學前教育行政及督導 - 對各縣市政府之補助,113年國中畢業生適性入學到校宣導所需經費,彰化縣政府,"163,760"
113/01/15,國民及學前教育行政及督導 - 對國內團體之捐助,付(基隆市故事協會)-113年度國民中小學閱讀推動計畫審查經費,基隆市故事協會,"80,000"
113/01/15,國民及學前教育行政及督導 - 對國內團體之捐助,113年第20屆國家地理知識大競賽經費,中華民國地理學會,"900,000"
113/01/15,國民及學前教育行政及督導 - 對國內團體之捐助,2024年藝文增能教師研習營(寒假班)經費,社團法人台灣客社,"195,975"
113/01/15,國民及學前教育行政及督導 - 對直轄市政府之補助,112學年度學習區完全免試國中提升學習品質計畫第2期款,高雄市政府教育局,"191,100"
113/01/15,國民及學前教育行政及督導 - 對直轄市政府之補助,112學年度國民小學及國民中學活化教學與多元學習計畫第2期款,高雄市政府教育局,"2,959,740"
113/01/15,國民及學前教育行政及督導 - 對直轄市政府之補助,112學年度國民小學及國民中學活化教學與多元學習計畫第2期款,高雄市政府教育局,"6,190,171"
113/01/15,國民及學前教育行政及督導 - 對直轄市政府之補助,112學年度活化教學~分組合作學習的理念與實踐方案第2期款,高雄市政府教育局,"672,300"
113/01/15,國民及學前教育行政及督導 - 對直轄市政府之補助,112學年度下學期中央課程與教學輔導諮詢教師團隊代理代課費暨課程與教學補助經費第2期款,高雄市政府教育局,"2,472,320"
113/01/15,國民及學前教育行政及督導 - 對特種基金之補助,112學年度高中優質化輔助方案,國立斗六高級中學,"510,000"
113/01/15,國民及學前教育行政及督導 - 投資,112學年度高中優質化輔助方案(資),國立斗六高級中學,"550,000"
113/01/15,國民及學前教育行政及督導 - 對特種基金之補助,113年度補助教育部各縣(市)聯絡處基本行政工作維持費,國立竹東高級中學,"617,400"
113/01/15,國民及學前教育行政及督導 - 對特種基金之補助,113年度補助教育部各縣(市)聯絡處基本行政工作維持費,國立宜蘭高級中學,"672,000"
113/01/15,國民及學前教育行政及督導 - 對特種基金之補助,113年度補助教育部各縣(市)聯絡處基本行政工作維持費,國立東石高級中學,"570,000"
113/01/15,國民及學前教育行政及督導 - 對特種基金之補助,113年度補助教育部各縣(市)聯絡處基本行政工作維持費,國立南投高級中學,"540,525"
113/01/15,國民及學前教育行政及督導 - 對特種基金之補助,112學年度高中優質化輔助方案,國立苑裡高級中學,"835,000"
113/01/15,國民及學前教育行政及督導 - 投資,112學年度高中優質化輔助方案(資),國立苑裡高級中學,"358,000"
113/01/15,國民及學前教育行政及督導 - 對特種基金之補助,112學年度高中優質化輔助方案,國立苗栗高級中學,"786,000"
113/01/15,國民及學前教育行政及督導 - 投資,112學年度高中優質化輔助方案(資),國立苗栗高級中學,"564,000"
113/01/15,國民及學前教育行政及督導 - 對特種基金之補助,112學年度高中優質化輔助方案,國立員林高級中學,"680,000"
113/01/15,國民及學前教育行政及督導 - 投資,112學年度高中優質化輔助方案(資),國立員林高級中學,"495,000"
113/01/15,國民及學前教育行政及督導 - 對特種基金之補助,113年度補助教育部各縣(市)聯絡處基本行政工作維持費,國立馬公高級中學,"540,000"
113/01/15,國民及學前教育行政及督導 - 對特種基金之補助,112學年度高中優質化輔助方案,國立善化高級中學,"800,000"
113/01/15,國民及學前教育行政及督導 - 投資,112學年度高中優質化輔助方案(資),國立善化高級中學,"200,000"
113/01/15,國民及學前教育行政及督導 - 對特種基金之補助,113年度補助教育部各縣(市)聯絡處基本行政工作維持費,國立嘉義高級中學,"685,000"
113/01/15,國民及學前教育行政及督導 - 對特種基金之補助,113年國中社會領域跨域學習課程設計：理論與實踐計畫第1期款,國立臺灣師範大學,"1,800,000"
113/01/15,國民及學前教育行政及督導 - 對特種基金之補助,113年度補助教育部各縣(市)聯絡處基本行政工作維持費,國立鳳山高級中學,"688,000"
113/01/15,國民及學前教育行政及督導 - 對特種基金之補助,112學年度國立學校聘任資源班行政助理計畫經費,國立鳳新高級中學,"349,692"
113/01/15,國民及學前教育行政及督導 - 對直轄市政府之補助,112學年度國民中學區域職業試探與體驗示範中心計畫第2期款,新北市政府教育局,"1,639,400"
113/01/15,國民及學前教育行政及督導 - 對直轄市政府之補助,113年度辦理公私立幼兒園汰換及新購幼童專用車,臺中市政府教育局,"23,656,480"
113/01/15,國民及學前教育行政及督導 - 對直轄市政府之補助,112學年度下學期中央課程與教學輔導諮詢教師團隊代理代課費暨課程與教學補助經費第2期款,臺中市政府教育局,"1,918,080"
113/01/15,國民及學前教育行政及督導 - 對直轄市政府之補助,112學年度活化教學~分組合作學習的理念與實踐方案第2期款,臺南市政府教育局,"24,900"
113/01/15,國民及學前教育行政及督導 - 對直轄市政府之補助,112學年度下學期中央課程與教學輔導諮詢教師團隊代理代課費暨課程與教學補助經費第2期款,臺南市政府教育局,"1,467,080"
113/01/15,國民及學前教育行政及督導 - 對直轄市政府之補助,112學年度國民中學生涯發展教育計畫(含出版品印製)第2期款,臺南市政府教育局,"2,281,057"
113/01/15,國民及學前教育行政及督導 - 對特種基金之補助,113年度補助教育部各縣(市)聯絡處基本行政工作維持費,國立台東女子高級中學,"465,000"
113/01/15,國民及學前教育行政及督導 - 對特種基金之補助,112學年度高中優質化輔助方案,國立台南家齊高級中學,"1,075,000"
113/01/15,國民及學前教育行政及督導 - 投資,112學年度高中優質化輔助方案(資),國立台南家齊高級中學,"325,000"
113/01/15,國民及學前教育行政及督導 - 對特種基金之補助,國立特殊教育學校112學年度第1學期兒童課後暨寒暑假照顧服務經費,國立基隆特殊教育學校,"116,938"
113/01/15,國民及學前教育行政及督導 - 對特種基金之補助,國立特殊教育學校112學年度第1學期兒童課後暨寒暑假照顧服務經費,國立雲林特殊教育學校,"388,644"
113/01/15,國民及學前教育行政及督導 - 對特種基金之補助,國立特殊教育學校112學年度第1學期兒童課後暨寒暑假照顧服務經費,國立新竹特殊教育學校,"318,042"
113/01/15,國民及學前教育行政及督導 - 對特種基金之補助,國立特殊教育學校112學年度第1學期兒童課後暨寒暑假照顧服務經費,國立彰化特殊教育學校,"387,896"
113/01/15,國民及學前教育行政及督導 - 對特種基金之補助,國立特殊教育學校112學年度第1學期兒童課後暨寒暑假照顧服務經費,國立臺南特殊教育學校,"527,446"
113/01/15,國民及學前教育行政及督導 - 對特種基金之補助,112學年度國立學校聘任資源班行政助理計畫經費,國立土庫高級商工職業學校,"406,260"
113/01/15,國民及學前教育行政及督導 - 對特種基金之補助,112學年度高中優質化輔助方案,國立中興大學附屬高級中學,"900,000"
113/01/15,國民及學前教育行政及督導 - 投資,112學年度高中優質化輔助方案(資),國立中興大學附屬高級中學,"70,000"
113/01/15,國民及學前教育行政及督導 - 對特種基金之補助,112學年度國立學校聘任資源班行政助理計畫經費,國立玉井高級工商職業學校,"406,260"
113/01/15,國民及學前教育行政及督導 - 對特種基金之補助,113年度補助教育部各縣(市)聯絡處基本行政工作維持費,國立花蓮高級農業職業學校,"655,000"
113/01/15,國民及學前教育行政及督導 - 對特種基金之補助,113年度補助教育部各縣(市)聯絡處基本行政工作維持費,國立金門高級農工職業學校,"596,000"
113/01/15,國民及學前教育行政及督導 - 對特種基金之補助,113年度國民中小學推動閱讀計畫經費,國立南科國際實驗高級中學,"40,000"
113/01/15,國民及學前教育行政及督導 - 對特種基金之補助,112學年度國民中學生涯發展教育計畫第2期款,國立南科國際實驗高級中學,"46,400"
113/01/15,國民及學前教育行政及督導 - 對特種基金之補助,113年度補助教育部各縣(市)聯絡處基本行政工作維持費,國立屏東高級工業職業學校,"631,000"
113/01/15,國民及學前教育行政及督導 - 對特種基金之補助,112學年度國立學校聘任資源班行政助理計畫經費,國立恆春高級工商職業學校,"406,260"
113/01/15,國民及學前教育行政及督導 - 對特種基金之補助,113年度國民中小學推動閱讀計畫經費,國立政治大學附屬高級中學,"20,000"
113/01/15,國民及學前教育行政及督導 - 對特種基金之補助,113年度補助教育部各縣(市)聯絡處基本行政工作維持費,國立苗栗高級商業職業學校,"710,000"
113/01/15,國民及學前教育行政及督導 - 對特種基金之補助,112學年度國立學校聘任資源班行政助理計畫經費,國立埔里高級工業職業學校,"406,260"
113/01/15,國民及學前教育行政及督導 - 對特種基金之補助,113年度補助教育部各縣(市)聯絡處基本行政工作維持費,國立基隆高級商工職業學校,"659,000"
113/01/15,國民及學前教育行政及督導 - 對特種基金之補助,112學年度國立學校聘任資源班行政助理計畫經費,國立新竹高級商業職業學校,"406,260"
113/01/15,國民及學前教育行政及督導 - 對特種基金之補助,113年度補助教育部各縣(市)聯絡處基本行政工作維持費,國立新竹高級商業職業學校,"548,000"
113/01/15,國民及學前教育行政及督導 - 對特種基金之補助,112學年度國立學校聘任資源班行政助理計畫經費,國立嘉義高級工業職業學校,"406,260"
113/01/15,國民及學前教育行政及督導 - 對特種基金之補助,112學年度國立學校聘任資源班行政助理計畫經費,國立旗山高級農工職業學校,"406,260"
113/01/15,國民及學前教育行政及督導 - 對特種基金之補助,112學年度高中優質化輔助方案,國立暨南大學附屬高級中學,"925,000"
113/01/15,國民及學前教育行政及督導 - 投資,112學年度高中優質化輔助方案(資),國立暨南大學附屬高級中學,"125,000"
113/01/15,國民及學前教育行政及督導 - 對特種基金之補助,112學年度國立學校聘任資源班行政助理計畫經費,國立臺東專科學校校務基金,"406,260"
113/01/15,國民及學前教育行政及督導 - 對特種基金之補助,112學年度國立學校聘任資源班行政助理計畫經費,國立羅東高級工業職業學校,"406,260"
113/01/15,國民及學前教育行政及督導 - 其他補助及捐助,111學年度學生團體保險專戶結算作業案(第5期款),國泰人壽保險股份有限公司,"183,901,214"
113/01/15,國民及學前教育行政及督導 - 對國內團體之捐助,"113上半年獎助民間辦理高級中等以下教育階段特殊教育活動經費(360,480、234,720)",財團法人遠哲科學教育基金會,"360,480"
113/01/15,國民及學前教育行政及督導 - 對國內團體之捐助,"113上半年獎助民間辦理高級中等以下教育階段特殊教育活動經費(360,480、234,720)",財團法人遠哲科學教育基金會,"234,720"
113/01/15,國民及學前教育行政及督導 - 對國內團體之捐助,113上半年獎助民間辦理高級中等以下教育階段特殊教育活動經費,社團法人台灣應用行為分析協會,"35,500"
113/01/15,國民及學前教育行政及督導 - 對特種基金之補助,112學年度國立學校聘任資源班行政助理計畫經費,國立北斗高級家事商業職業學校,"406,260"
113/01/15,國民及學前教育行政及督導 - 對特種基金之補助,113年度補助教育部各縣(市)聯絡處基本行政工作維持費,國立台南高級海事水產職業學校,"684,400"
113/01/15,國民及學前教育行政及督導 - 對特種基金之補助,112學年度高中優質化輔助方案,國立高雄師範大學附屬高級中學,"1,285,000"
113/01/15,國民及學前教育行政及督導 - 投資,112學年度高中優質化輔助方案(資),國立高雄師範大學附屬高級中學,"60,000"
113/01/16,國民及學前教育行政及督導 - 對各縣市政府之補助,113年度置專業輔導人員經費,宜蘭縣政府,"4,161,000"
113/01/16,國民及學前教育行政及督導 - 對各縣市政府之補助,113年補助地方政府成立學校午餐輔導團及輔導人力計畫第1期款,宜蘭縣政府,"507,300"
113/01/16,國民及學前教育行政及督導 - 對各縣市政府之補助,113年度新住民子女教育行政人力經費,花蓮縣政府,"484,000"
113/01/16,國民及學前教育行政及督導 - 對各縣市政府之補助,113年度新住民子女教育行政人力經費,南投縣政府,"484,000"
113/01/16,國民及學前教育行政及督導 - 對各縣市政府之補助,113年補助地方政府成立學校午餐輔導團及輔導人力計畫第1期款,南投縣政府,"560,700"
113/01/16,國民及學前教育行政及督導 - 對各縣市政府之補助,113年度置專業輔導人員經費,基隆市政府,"2,244,000"
113/01/16,國民及學前教育行政及督導 - 對各縣市政府之補助,113年補助地方政府成立學校午餐輔導團及輔導人力計畫第1期款,基隆市政府,"501,600"
113/01/16,國民及學前教育行政及督導 - 對各縣市政府之補助,113年度置專業輔導人員經費,連江縣政府,"2,295,000"
113/01/16,國民及學前教育行政及督導 - 對各縣市政府之補助,113年度置專業輔導人員經費,雲林縣政府,"11,093,000"
113/01/16,國民及學前教育行政及督導 - 對各縣市政府之補助,113年度新住民子女教育行政人力經費,嘉義市政府,"484,000"
113/01/16,國民及學前教育行政及督導 - 對各縣市政府之補助,112學年度下學期中央課程與教學輔導諮詢教師團隊代理代課費暨課程與教學補助經費第2期款,嘉義縣政府,"145,960"
113/01/16,國民及學前教育行政及督導 - 對各縣市政府之補助,112學年度國民中小學本土教育整體推動方案暨教師及學生多元相關活動第2期款,嘉義縣政府,"3,777,732"
113/01/16,國民及學前教育行政及督導 - 對各縣市政府之補助,112學年度實施戶外教育與海洋教育計畫第2期款,嘉義縣政府,"2,776,323"
113/01/16,國民及學前教育行政及督導 - 對各縣市政府之補助,112學年度實施戶外教育與海洋教育計畫第2期款,嘉義縣政府,"169,917"
113/01/16,國民及學前教育行政及督導 - 對各縣市政府之補助,113年度置專業輔導人員經費,嘉義縣政府,"8,415,000"
113/01/16,國民及學前教育行政及督導 - 對各縣市政府之補助,112學年度地方政府精進高級中等學校課程與教學計畫第2期款,彰化縣政府,"1,830,997"
113/01/16,國民及學前教育行政及督導 - 對各縣市政府之補助,113年補助地方政府成立學校午餐輔導團及輔導人力計畫第1期款,彰化縣政府,"614,100"
113/01/16,國民及學前教育行政及督導 - 對各縣市政府之補助,113年度置專業輔導人員經費,臺東縣政府,"8,415,000"
113/01/16,國民及學前教育行政及督導 - 對各縣市政府之補助,113年度新住民子女教育行政人力經費,臺東縣政府,"495,000"
113/01/16,國民及學前教育行政及督導 - 對各縣市政府之補助,113年補助地方政府成立學校午餐輔導團及輔導人力計畫第1期款,臺東縣政府,"567,000"
113/01/16,國民及學前教育行政及督導 - 對各縣市政府之補助,113年補助地方政府成立學校午餐輔導團及輔導人力計畫第1期款,澎湖縣政府,"513,000"
113/01/16,國民及學前教育行政及督導 - 政府機關間之補助,113年國民中小學教科用書審查工作計畫計畫第1期款,國家教育研究院,"6,240,000"
113/01/16,國民及學前教育行政及督導 - 對直轄市政府之補助,113年度置專業輔導人員經費,高雄市政府教育局,"29,172,000"
113/01/16,國民及學前教育行政及督導 - 對特種基金之補助,112學年度臨時特殊教育助理人員第1梯次第2期款,國立北門高級中學,"237,996"
113/01/16,國民及學前教育行政及督導 - 對特種基金之補助,113年度教育部學生輔導諮商中心專案輔導助理實施計畫,國立台東高級中學,"548,272"
113/01/16,國民及學前教育行政及督導 - 對特種基金之補助,113年度教育部學生輔導諮商中心進用臨時專業輔導人員實施計畫,國立台東高級中學,"863,100"
113/01/16,國民及學前教育行政及督導 - 對特種基金之補助,113年度教育部學生輔導諮商中心專案輔導助理實施計畫,國立宜蘭高級中學,"654,580"
113/01/16,國民及學前教育行政及督導 - 對特種基金之補助,113年度教育部學生輔導諮商中心進用臨時專業輔導人員實施計畫,國立宜蘭高級中學,"772,626"
113/01/16,國民及學前教育行政及督導 - 對特種基金之補助,112學年度臨時特殊教育助理人員第1梯次第2期款,國立岡山高級中學,"123,016"
113/01/16,國民及學前教育行政及督導 - 政府機關間之補助,113年五十二個戶外教育好點子廣播節目製播計畫經費,國立教育廣播電臺,"415,900"
113/01/16,國民及學前教育行政及督導 - 對特種基金之補助,國立特殊教育學校112學年度第1學期兒童課後暨寒暑假照顧服務經費,國立嘉義特教學校,"388,168"
113/01/16,國民及學前教育行政及督導 - 對特種基金之補助,112學年度高級中等學校穩定就學措施計畫,國立鳳新高級中學,"160,000"
113/01/16,國民及學前教育行政及督導 - 對特種基金之補助,112學年度臨時特殊教育助理人員第1梯次第2期款,國立鳳新高級中學,"237,996"
113/01/16,國民及學前教育行政及督導 - 對直轄市政府之補助,113年度置專業輔導人員經費,新北市政府教育局,"45,479,000"
113/01/16,國民及學前教育行政及督導 - 對直轄市政府之補助,112學年度實施戶外教育與海洋教育計畫第2期款,臺中市政府教育局,"3,975,670"
113/01/16,國民及學前教育行政及督導 - 對直轄市政府之補助,112學年度實施戶外教育與海洋教育計畫第2期款,臺中市政府教育局,"215,964"
113/01/16,國民及學前教育行政及督導 - 對直轄市政府之補助,113年度置專業輔導人員經費,臺中市政府教育局,"28,841,000"
113/01/16,國民及學前教育行政及督導 - 對直轄市政府之補助,113年度置專業輔導人員經費,臺南市政府教育局,"18,326,000"
113/01/16,國民及學前教育行政及督導 - 對特種基金之補助,國立特殊教育學校112學年度第1學期兒童課後暨寒暑假照顧服務經費,國立南投特殊教育學校,"338,295"
113/01/16,國民及學前教育行政及督導 - 對特種基金之補助,112學年度辦理國小部增開未納編班級教學相關經費,國立屏東特殊教育學校,"1,598,372"
113/01/16,國民及學前教育行政及督導 - 對特種基金之補助,國立特殊教育學校112學年度第1學期兒童課後暨寒暑假照顧服務經費,國立屏東特殊教育學校,"234,647"
113/01/16,國民及學前教育行政及督導 - 對特種基金之補助,112學年度辦理高職部增開未納編班級教學相關經費第2期款,國立新竹特殊教育學校,"1,463,830"
113/01/16,國民及學前教育行政及督導 - 對私校之獎助,112學年度高中優質化輔助方案,南投縣私立三育高級中學,"520,000"
113/01/16,國民及學前教育行政及督導 - 對私校之獎助,112學年度高中優質化輔助方案,新竹縣私立忠信高級中學,"800,000"
113/01/16,國民及學前教育行政及督導 - 對私校之獎助,112學年度高中優質化輔助方案(資),新竹縣私立忠信高級中學,"150,000"
113/01/16,國民及學前教育行政及督導 - 對私校之獎助,112學年度高級中等學校臺灣手語課程開班經費,嘉義市私立嘉華高級中學,"12,872"
113/01/16,國民及學前教育行政及督導 - 對私校之獎助,112學年度高級中等學校本土語文(閩南語、閩東語及客語文)課程開課經費,嘉義市私立嘉華高級中學,"25,502"
113/01/16,國民及學前教育行政及督導 - 對私校之獎助,112學年度高中優質化輔助方案,嘉義市私立嘉華高級中學,"540,000"
113/01/16,國民及學前教育行政及督導 - 對私校之獎助,112學年度高中優質化輔助方案(資),嘉義市私立嘉華高級中學,"673,000"
113/01/16,國民及學前教育行政及督導 - 對特種基金之補助,112學年度臨時特殊教育助理人員第1梯次第2期款,國立玉井高級工商職業學校,"237,996"
113/01/16,國民及學前教育行政及督導 - 對特種基金之補助,112學年度臨時特殊教育助理人員第1梯次第2期款,國立新竹高級商業職業學校,"237,996"
113/01/16,國民及學前教育行政及督導 - 對特種基金之補助,112學年度高級中等學校臺灣手語課程開班經費,國立嘉義高級商業職業學校,"12,722"
113/01/16,國民及學前教育行政及督導 - 對特種基金之補助,112學年度臨時特殊教育助理人員第1梯次第2期款,國立羅東高級工業職業學校,"179,251"
113/01/16,國民及學前教育行政及督導 - 對特種基金之補助,國立特殊教育學校112學年度第1學期兒童課後暨寒暑假照顧服務經費,國立臺東大學附屬特殊教育學校,"179,603"
113/01/16,國民及學前教育行政及督導 - 對特種基金之補助,112學年度高級中等學校穩定就學措施計畫,國立頭城高級家事商業職業學校,"107,000"
113/01/16,國民及學前教育行政及督導 - 對私校之獎助,112學年度高中優質化輔助方案,臺灣省嘉義市私立輔仁高級中學,"475,000"
113/01/16,國民及學前教育行政及督導 - 對私校之獎助,112學年度高中優質化輔助方案(資),臺灣省嘉義市私立輔仁高級中學,"625,000"
113/01/16,國民及學前教育行政及督導 - 對私校之獎助,112學年度高中優質化輔助方案,正德學校財團法人彰化縣正德高級中學,"233,000"
113/01/16,國民及學前教育行政及督導 - 對私校之獎助,112學年度高中優質化輔助方案(資),正德學校財團法人彰化縣正德高級中學,"60,000"
113/01/16,國民及學前教育行政及督導 - 對私校之獎助,112學年度高中優質化輔助方案,興國學校財團法人臺南市興國高級中學,"645,000"
113/01/16,國民及學前教育行政及督導 - 對私校之獎助,112學年度高中優質化輔助方案(資),興國學校財團法人臺南市興國高級中學,"645,000"
113/01/16,國民及學前教育行政及督導 - 對私校之獎助,112學年度高中優質化輔助方案,佛光山學校財團法人高雄市普門高級中學,"1,000,000"
113/01/16,國民及學前教育行政及督導 - 對私校之獎助,112學年度高中優質化輔助方案(資),佛光山學校財團法人高雄市普門高級中學,"350,000"
113/01/16,國民及學前教育行政及督導 - 對特種基金之補助,112學年度臨時特殊教育助理人員第1梯次第2期款,國立臺灣海洋大學附屬基隆海事高級中等學校,"237,996"
113/01/17,國民及學前教育行政及督導 - 對直轄市政府之補助,分攤教育部辦理補助「直轄市及縣(市)政府辦理防災教育計畫」暨「高級中等以下學校防災校園建置計畫」經費,教育部,"9,380,880"
113/01/17,國民及學前教育行政及督導 - 投資,分攤教育部辦理補助「直轄市及縣(市)政府辦理防災教育計畫」暨「高級中等以下學校防災校園建置計畫」經費,教育部,"5,619,120"
113/01/17,國民及學前教育行政及督導 - 對各縣市政府之補助,112學年度輔導教師人力運用計畫第2期款,宜蘭縣政府,"158,484"
113/01/17,國民及學前教育行政及督導 - 對各縣市政府之補助,112學年度輔導教師人力運用計畫第2期款,宜蘭縣政府,"29,568,000"
113/01/17,國民及學前教育行政及督導 - 對各縣市政府之補助,112學年度國民中學技藝教育競賽及成果發表活動經費,宜蘭縣政府,"890,097"
113/01/17,國民及學前教育行政及督導 - 對各縣市政府之補助,113年度實施新住民子女華語文學習扶助課程,宜蘭縣政府,"23,358"
113/01/17,國民及學前教育行政及督導 - 對各縣市政府之補助,112學年度國際教育教師共備社群計畫,宜蘭縣政府,"26,400"
113/01/17,國民及學前教育行政及督導 - 對各縣市政府之補助,113年度國中畢業生適性入學到校宣導經費,宜蘭縣政府,"99,680"
113/01/17,國民及學前教育行政及督導 - 對各縣市政府之補助,112學年度國民中學技藝教育競賽及成果發表活動經費,花蓮縣政府,"812,014"
113/01/17,國民及學前教育行政及督導 - 對各縣市政府之補助,112學年度增置國民中小學閱讀推動教師計畫第2期款,花蓮縣政府,"1,502,400"
113/01/17,國民及學前教育行政及督導 - 對各縣市政府之補助,大額通報教補1月19日-112學年度我國少子女化對策計畫之各項幼生就學補助及育兒津貼等經費第3期款,花蓮縣政府,"173,740,000"
113/01/17,國民及學前教育行政及督導 - 對各縣市政府之補助,113年度新住民子女教育行政人力經費,金門縣政府,"473,000"
113/01/17,國民及學前教育行政及督導 - 對各縣市政府之補助,113年度辦理公私立幼兒園汰換及新購幼童專用車,南投縣政府,"714,400"
113/01/17,國民及學前教育行政及督導 - 對各縣市政府之補助,112學年度增置國民中小學閱讀推動教師計畫第2期款,南投縣政府,"1,002,176"
113/01/17,國民及學前教育行政及督導 - 對各縣市政府之補助,112學年度增置國民中小學閱讀推動教師計畫第2期款,屏東縣政府,"3,087,596"
113/01/17,國民及學前教育行政及督導 - 對各縣市政府之補助,112學年度國中小原住民族語教學人員交通費第2期款,屏東縣政府,"323,100"
113/01/17,國民及學前教育行政及督導 - 對各縣市政府之補助,大額通報教補1月19日-非營利幼兒園112學年度學費差額補助第2期款,屏東縣政府,"124,990,764"
113/01/17,國民及學前教育行政及督導 - 對各縣市政府之補助,新興人口成長區公立高級中等以下學校校舍新(增)建工程計畫(111-113年度)增建校舍經費,苗栗縣政府,"28,781,589"
113/01/17,國民及學前教育行政及督導 - 對各縣市政府之補助,112學年度增置國民中小學閱讀推動教師計畫第2期款,苗栗縣政府,"2,031,840"
113/01/17,國民及學前教育行政及督導 - 對各縣市政府之補助,112學年度國際教育教師共備社群計畫,苗栗縣政府,"54,000"
113/01/17,國民及學前教育行政及督導 - 對各縣市政府之補助,大額通報教補1月19日-非營利幼兒園112學年度學費差額補助第2期款,苗栗縣政府,"95,864,206"
113/01/17,國民及學前教育行政及督導 - 對直轄市政府之補助,112學年度十二年國民基本教育課程綱要普通型數位前導學校計畫第2期款,桃園市政府,"4,422,880"
113/01/17,國民及學前教育行政及督導 - 對直轄市政府之補助,112年度高級中等學校充實學生自主學習空間及設施計畫,桃園市政府,"1,456,000"
113/01/17,國民及學前教育行政及督導 - 對直轄市政府之補助,112學年度第1學期高級中等學校特殊境遇家庭子女孫子女學雜費減免補助,桃園市政府,"3,081"
113/01/17,國民及學前教育行政及督導 - 對直轄市政府之補助,"112學年度第1學期高級中等學校低收入戶及中低收入戶學生學雜費減免補助(293,858、39,036)",桃園市政府,"293,858"
113/01/17,國民及學前教育行政及督導 - 對直轄市政府之補助,"112學年度第1學期高級中等學校低收入戶及中低收入戶學生學雜費減免補助(293,858、39,036)",桃園市政府,"39,036"
113/01/17,國民及學前教育行政及督導 - 對直轄市政府之補助,113年度置專業輔導人員經費,桃園市政府,"22,814,000"
113/01/17,國民及學前教育行政及督導 - 對直轄市政府之補助,113年度辦理公私立幼兒園汰換及新購幼童專用車,桃園市政府,"15,416,400"
113/01/17,國民及學前教育行政及督導 - 對直轄市政府之補助,112學年度增置國民中小學閱讀推動教師計畫第2期款,桃園市政府,"2,214,590"
113/01/17,國民及學前教育行政及督導 - 對直轄市政府之補助,113年度國中畢業生適性入學到校宣導經費,桃園市政府,"235,840"
113/01/17,國民及學前教育行政及督導 - 對直轄市政府之補助,大額通報教補1月19日-113年桃園市政府承接教育部國、私立高級中等學校功能調整及業務移撥所需經費-1,桃園市政府,"324,000,000"
113/01/17,國民及學前教育行政及督導 - 對直轄市政府之補助,大額通報教補1月19日-113年桃園市政府承接教育部國、私立高級中等學校功能調整及業務移撥所需經費-1,桃園市政府,"9,000,000"
113/01/17,國民及學前教育行政及督導 - 對各縣市政府之補助,112學年度科技教育推動總體計畫第3期款,基隆市政府,"2,332,000"
113/01/17,國民及學前教育行政及督導 - 對各縣市政府之補助,112學年度科技教育推動總體計畫第3期款,基隆市政府,"792,000"
113/01/17,國民及學前教育行政及督導 - 對各縣市政府之補助,112學年度國民中學技藝教育競賽及成果發表活動經費,基隆市政府,"809,900"
113/01/17,國民及學前教育行政及督導 - 對各縣市政府之補助,113年度國中畢業生適性入學到校宣導經費,連江縣政府,"18,000"
113/01/17,國民及學前教育行政及督導 - 對各縣市政府之補助,大額通報教補1月19日-112學年度我國少子女化對策計畫之各項幼生就學補助及育兒津貼等經費第3期款,連江縣政府,"4,525,500"
113/01/17,國民及學前教育行政及督導 - 對各縣市政府之補助,112學年度輔導教師人力運用計畫第2期款,雲林縣政府,"1,078,963"
113/01/17,國民及學前教育行政及督導 - 對各縣市政府之補助,112學年度輔導教師人力運用計畫第2期款,雲林縣政府,"33,120,000"
113/01/17,國民及學前教育行政及督導 - 對各縣市政府之補助,大額通報教補1月19日-非營利幼兒園112學年度學費差額補助第2期款,雲林縣政府,"37,164,348"
113/01/17,國民及學前教育行政及督導 - 對各縣市政府之補助,113年度置專業輔導人員經費,新竹市政府,"6,358,000"
113/01/17,國民及學前教育行政及督導 - 對各縣市政府之補助,112學年度下學期中央課程與教學輔導諮詢教師團隊代理代課費暨課程與教學補助經費,新竹市政府,"1,206,440"
113/01/17,國民及學前教育行政及督導 - 對各縣市政府之補助,112學年度增置國民中小學閱讀推動教師計畫第2期款,新竹縣政府,"1,319,920"
113/01/17,國民及學前教育行政及督導 - 對各縣市政府之補助,彰化考區113年國中教育會考試務籌辦計畫第2期款,彰化縣政府,"7,704,853"
113/01/17,國民及學前教育行政及督導 - 對各縣市政府之補助,彰化考區113年國中教育會考試務籌辦計畫第2期款,彰化縣政府,"450,000"
113/01/17,國民及學前教育行政及督導 - 對各縣市政府之補助,彰化考區113年國中教育會考試務籌辦計畫第2期款,彰化縣政府,"144,410"
113/01/17,國民及學前教育行政及督導 - 對各縣市政府之補助,彰化考區113年國中教育會考試務籌辦計畫第2期款,彰化縣政府,"6,000"
113/01/17,國民及學前教育行政及督導 - 對各縣市政府之補助,112學年度科技教育推動總體計畫第3期款,彰化縣政府,"3,782,500"
113/01/17,國民及學前教育行政及督導 - 對各縣市政府之補助,112學年度輔導教師人力運用計畫第2期款,臺東縣政府,"232,243"
113/01/17,國民及學前教育行政及督導 - 對各縣市政府之補助,112學年度輔導教師人力運用計畫第2期款,臺東縣政府,"13,320,000"
113/01/17,國民及學前教育行政及督導 - 對各縣市政府之補助,113年度置專業輔導人員經費,澎湖縣政府,"3,902,000"
113/01/17,國民及學前教育行政及督導 - 對各縣市政府之補助,112學年度輔導教師人力運用計畫第2期款,澎湖縣政府,"70,157"
113/01/17,國民及學前教育行政及督導 - 對各縣市政府之補助,112學年度輔導教師人力運用計畫第2期款,澎湖縣政府,"7,200,000"
113/01/17,國民及學前教育行政及督導 - 對各縣市政府之補助,112學年度國民中小學本土教育整體推動方案暨教師及學生多元相關活動第2期款,澎湖縣政府,"796,827"
113/01/17,國民及學前教育行政及督導 - 對各縣市政府之補助,113年度新住民子女教育行政人力經費,澎湖縣政府,"495,000"
113/01/17,國民及學前教育行政及督導 - 對國內團體之捐助,付(台灣模擬教育協會)-2024年我國參與國際經濟學奧林匹亞計畫,台灣模擬教育協會,"800,000"
113/01/17,國民及學前教育行政及督導 - 對直轄市政府之補助,113年度辦理公私立幼兒園汰換及新購幼童專用車,高雄市政府教育局,"11,074,000"
113/01/17,國民及學前教育行政及督導 - 對直轄市政府之補助,112學年度實施十二年國民基本教育課程新增鐘點費第2期款,高雄市政府教育局,"10,667,748"
113/01/17,國民及學前教育行政及督導 - 對直轄市政府之補助,112學年度國民中學技藝教育競賽及成果發表活動經費,高雄市政府教育局,"1,075,000"
113/01/17,國民及學前教育行政及督導 - 對直轄市政府之補助,大額通報教補1月19日-112學年度我國少子女化對策計畫之各項幼生就學補助及育兒津貼等經費第3期款,高雄市政府教育局,"1,587,285,000"
113/01/17,國民及學前教育行政及督導 - 對特種基金之補助,112學年度高級中等學校推動家庭教育暨親職教育工作實施計畫經費,國立中興高級中學,"23,000"
113/01/17,國民及學前教育行政及督導 - 對特種基金之補助,112學年度暑假臨時特殊教育助理人員經費,國立北門高級中學,"27,884"
113/01/17,國民及學前教育行政及督導 - 對特種基金之補助,113-114年度國立高級中等學校汙水及排水系統建置暨改善工程計畫,國立北門高級中學,"3,800,000"
113/01/17,國民及學前教育行政及督導 - 對特種基金之補助,113年度補助偏遠地區及非山非市國立高級中等學校廁所修繕計畫,國立北門高級中學,"6,568,000"
113/01/17,國民及學前教育行政及督導 - 對特種基金之補助,112學年度高級中等學校推動家庭教育暨親職教育工作實施計畫經費,國立北門高級中學,"23,000"
113/01/17,國民及學前教育行政及督導 - 投資,113年度補助教育部各縣(市)聯絡處基本行政工作維持費,國立竹東高級中學,"176,600"
113/01/17,國民及學前教育行政及督導 - 投資,113年度補助教育部各縣(市)聯絡處基本行政工作維持費,國立宜蘭高級中學,"162,000"
113/01/17,國民及學前教育行政及督導 - 投資,113年度補助教育部各縣(市)聯絡處基本行政工作維持費,國立東石高級中學,"200,000"
113/01/17,國民及學前教育行政及督導 - 對特種基金之補助,113-114年度國立高級中等學校汙水及排水系統建置暨改善工程計畫,國立南投高級中學,"2,000,000"
113/01/17,國民及學前教育行政及督導 - 對特種基金之補助,商借南投高中教師至本署所需聘任代理代課教師經費,國立南投高級中學,"29,800"
113/01/17,國民及學前教育行政及督導 - 投資,113年度補助教育部各縣(市)聯絡處基本行政工作維持費,國立南投高級中學,"346,475"
113/01/17,國民及學前教育行政及督導 - 對特種基金之補助,113-114年度國立高級中等學校汙水及排水系統建置暨改善工程計畫,國立苑裡高級中學,"2,000,000"
113/01/17,國民及學前教育行政及督導 - 對特種基金之補助,112學年度高級中等學校推動家庭教育暨親職教育工作實施計畫經費,國立苗栗高級中學,"15,000"
113/01/17,國民及學前教育行政及督導 - 投資,學生宿舍2樓老舊浴廁整修工程,國立員林高級中學,"2,700,000"
113/01/17,國民及學前教育行政及督導 - 投資,113年度補助教育部各縣(市)聯絡處基本行政工作維持費,國立馬公高級中學,"100,000"
113/01/17,國民及學前教育行政及督導 - 對特種基金之補助,112學年度實施十二年國民基本教育課程新增鐘點費第2期款,國立基隆高級中學,"772,800"
113/01/17,國民及學前教育行政及督導 - 對特種基金之補助,112學年度高級中等學校推動家庭教育暨親職教育工作實施計畫經費,國立鹿港高級中學,"19,000"
113/01/17,國民及學前教育行政及督導 - 對特種基金之補助,112學年度高級中等學校推動家庭教育暨親職教育工作實施計畫經費,國立新竹高級中學,"23,000"
113/01/17,國民及學前教育行政及督導 - 投資,113年度補助教育部各縣(市)聯絡處基本行政工作維持費,國立嘉義高級中學,"89,000"
113/01/17,國民及學前教育行政及督導 - 對特種基金之補助,113年教育部學生輔導諮商中心進用個案管理員實施計畫,國立彰化高級中學,"645,717"
113/01/17,國民及學前教育行政及督導 - 對特種基金之補助,113年度教育部學生輔導諮商中心專案輔導助理實施計畫,國立彰化高級中學,"1,847,460"
113/01/17,國民及學前教育行政及督導 - 對特種基金之補助,113年度教育部學生輔導諮商中心進用臨時專業輔導人員實施計畫,國立彰化高級中學,"2,224,248"
113/01/17,國民及學前教育行政及督導 - 對特種基金之補助,112學年度高級中等學校推動家庭教育暨親職教育工作實施計畫經費,國立彰化高級中學,"23,000"
113/01/17,國民及學前教育行政及督導 - 對特種基金之補助,112學年度實施十二年國民基本教育課程新增鐘點費第2期款,國立彰化高級中學,"403,200"
113/01/17,國民及學前教育行政及督導 - 投資,113年度補助教育部各縣(市)聯絡處基本行政工作維持費,國立鳳山高級中學,"250,000"
113/01/17,國民及學前教育行政及督導 - 對特種基金之補助,113年度補助偏遠地區及非山非市國立高級中等學校廁所修繕計畫,國立關西高級中學,"1,694,000"
113/01/17,國民及學前教育行政及督導 - 對特種基金之補助,113年度偏遠地區及非山非市國立高級中等學校宿舍計畫,國立關西高級中學,"2,011,000"
113/01/17,國民及學前教育行政及督導 - 對直轄市政府之補助,大額通報教補1月19日-非營利幼兒園112學年度學費差額補助第2期款,新北市政府教育局,"244,775,479"
113/01/17,國民及學前教育行政及督導 - 對直轄市政府之補助,113年度第1梯次新住民子女職業技能精進計畫經費,臺中市政府教育局,"168,000"
113/01/17,國民及學前教育行政及督導 - 對直轄市政府之補助,113年度國中畢業生適性入學到校宣導經費,臺中市政府教育局,"285,600"
113/01/17,國民及學前教育行政及督導 - 對直轄市政府之補助,大額通報教補1月19日-113年臺中市政府承接教育部國、私立高級中等學校功能調整及業務移撥所需經費-1,臺中市政府教育局,"1,072,037,000"
113/01/17,國民及學前教育行政及督導 - 對直轄市政府之補助,大額通報教補1月19日-113年臺中市政府承接教育部國、私立高級中等學校功能調整及業務移撥所需經費-1,臺中市政府教育局,"34,000,000"
113/01/17,國民及學前教育行政及督導 - 對直轄市政府之補助,112學年度國民中小學本土教育整體推動方案暨教師及學生多元相關活動第2期款,臺北市政府教育局,"2,594,466"
113/01/17,國民及學前教育行政及督導 - 對直轄市政府之補助,112學年度國小原住民族語開課經費第2期款,臺北市政府教育局,"4,355,885"
113/01/17,國民及學前教育行政及督導 - 對直轄市政府之補助,112學年度輔導教師人力運用計畫第2期款,臺南市政府教育局,"1,296,563"
113/01/17,國民及學前教育行政及督導 - 對直轄市政府之補助,112學年度輔導教師人力運用計畫第2期款,臺南市政府教育局,"86,688,000"
113/01/17,國民及學前教育行政及督導 - 對國內團體之捐助,113年度民間團體辦理國民中小學閱讀推動計畫經費,新北市閱讀推廣協會,"40,000"
113/01/17,國民及學前教育行政及督導 - 對私校之獎助,112學年度高級中等學校穩定就學措施計畫,臺南市六信高級中學,"155,000"
113/01/17,國民及學前教育行政及督導 - 投資,113年度補助教育部各縣(市)聯絡處基本行政工作維持費,國立台東女子高級中學,"360,000"
113/01/17,國民及學前教育行政及督導 - 對特種基金之補助,112學年度高級中等學校推動家庭教育暨親職教育工作實施計畫經費,國立台南第一高級中學,"20,000"
113/01/17,國民及學前教育行政及督導 - 對特種基金之補助,113年度偏遠地區及非山非市國立高級中等學校宿舍計畫,國立卓蘭高級中等學校,"3,289,000"
113/01/17,國民及學前教育行政及督導 - 投資,113年度偏遠地區及非山非市國立高級中等學校宿舍計畫,國立卓蘭高級中等學校,"113,000"
113/01/17,國民及學前教育行政及督導 - 對特種基金之補助,112學年度高級中等學校推動家庭教育暨親職教育工作實施計畫經費,國立花蓮女子高級中學,"23,000"
113/01/17,國民及學前教育行政及督導 - 對特種基金之補助,112學年度高級中等學校推動家庭教育暨親職教育工作實施計畫經費,國立屏東女子高級中學,"14,000"
113/01/17,國民及學前教育行政及督導 - 對特種基金之補助,113年度偏遠地區及非山非市國立高級中等學校宿舍計畫,國立新港藝術高級中學,"60,000"
113/01/17,國民及學前教育行政及督導 - 投資,113年度偏遠地區及非山非市國立高級中等學校宿舍計畫,國立新港藝術高級中學,"1,249,000"
113/01/17,國民及學前教育行政及督導 - 對特種基金之補助,113年度國民中小學推動閱讀計畫經費,國立嘉義大學附設實小,"20,000"
113/01/17,國民及學前教育行政及督導 - 對國內團體之捐助,113年度民間團體辦理國民中小學閱讀推動計畫經費,雲林縣客家文化產業協會,"296,000"
113/01/17,國民及學前教育行政及督導 - 對私校之獎助,112學年度實施十二年國民基本教育課程新增鐘點費第2期款,新竹縣私立東泰高級中學,"134,400"
113/01/17,國民及學前教育行政及督導 - 對私校之獎助,112學年度實施十二年國民基本教育課程新增鐘點費第2期款,嘉義市私立嘉華高級中學,"118,200"
113/01/17,國民及學前教育行政及督導 - 對特種基金之補助,112學年度高級中等學校推動家庭教育暨親職教育工作實施計畫經費,國立二林高級工商職業學校,"14,000"
113/01/17,國民及學前教育行政及督導 - 對特種基金之補助,113-114年度國立高級中等學校汙水及排水系統建置暨改善工程計畫,國立內埔高級農工職業學校,"3,900,000"
113/01/17,國民及學前教育行政及督導 - 對特種基金之補助,113年度補助偏遠地區及非山非市國立高級中等學校廁所修繕計畫,國立內埔高級農工職業學校,"3,501,000"
113/01/17,國民及學前教育行政及督導 - 對特種基金之補助,113-114年度國立高級中等學校汙水及排水系統建置暨改善工程計畫,國立北門高級農工職業學校,"3,000,000"
113/01/17,國民及學前教育行政及督導 - 對特種基金之補助,113年度補助偏遠地區及非山非市國立高級中等學校廁所修繕計畫,國立北門高級農工職業學校,"2,260,000"
113/01/17,國民及學前教育行政及督導 - 對特種基金之補助,113年度偏遠地區及非山非市國立高級中等學校宿舍計畫,國立北門高級農工職業學校,"1,530,000"
113/01/17,國民及學前教育行政及督導 - 對特種基金之補助,112學年度高級中等學校推動家庭教育暨親職教育工作實施計畫經費,國立北港高級農工職業學校,"23,000"
113/01/17,國民及學前教育行政及督導 - 對特種基金之補助,113-114年度國立高級中等學校汙水及排水系統建置暨改善工程計畫,國立民雄高級農工職業學校,"2,500,000"
113/01/17,國民及學前教育行政及督導 - 對特種基金之補助,113年度偏遠地區及非山非市國立高級中等學校宿舍計畫,國立玉井高級工商職業學校,"1,793,000"
113/01/17,國民及學前教育行政及督導 - 對特種基金之補助,112學年度高級中等學校推動家庭教育暨親職教育工作實施計畫經費,國立玉井高級工商職業學校,"23,000"
113/01/17,國民及學前教育行政及督導 - 投資,113年度偏遠地區及非山非市國立高級中等學校宿舍計畫,國立玉井高級工商職業學校,"1,517,000"
113/01/17,國民及學前教育行政及督導 - 對特種基金之補助,113年度偏遠地區及非山非市國立高級中等學校宿舍計畫,國立白河高級商工職業學校,"99,000"
113/01/17,國民及學前教育行政及督導 - 投資,113年度偏遠地區及非山非市國立高級中等學校宿舍計畫,國立白河高級商工職業學校,"890,000"
113/01/17,國民及學前教育行政及督導 - 對特種基金之補助,113年度偏遠地區及非山非市國立高級中等學校宿舍計畫,國立光復高級商工職業學校,"279,000"
113/01/17,國民及學前教育行政及督導 - 投資,113年度偏遠地區及非山非市國立高級中等學校宿舍計畫,國立光復高級商工職業學校,"4,070,000"
113/01/17,國民及學前教育行政及督導 - 對特種基金之補助,112學年度高級中等學校臺灣手語課程開課經費,國立秀水高級工業職業學校,"12,722"
113/01/17,國民及學前教育行政及督導 - 對特種基金之補助,112學年度高級中等學校本土語文(閩南語、閩東語、客語文)課程開課經費,國立秀水高級工業職業學校,"4,692"
113/01/17,國民及學前教育行政及督導 - 對特種基金之補助,113年度偏遠地區及非山非市國立高級中等學校宿舍計畫,國立佳冬高級農業職業學校,"1,270,000"
113/01/17,國民及學前教育行政及督導 - 投資,113年度補助教育部各縣(市)聯絡處基本行政工作維持費,國立花蓮高級農業職業學校,"200,000"
113/01/17,國民及學前教育行政及督導 - 對特種基金之補助,112學年度月薪制教師助理員經費,國立金門高級農工職業學校,"253,144"
113/01/17,國民及學前教育行政及督導 - 對特種基金之補助,113年度補助偏遠地區及非山非市國立高級中等學校廁所修繕計畫,國立金門高級農工職業學校,"3,192,000"
113/01/17,國民及學前教育行政及督導 - 投資,113年度補助教育部各縣(市)聯絡處基本行政工作維持費,國立金門高級農工職業學校,"30,000"
113/01/17,國民及學前教育行政及督導 - 對特種基金之補助,113年度公立高級中等學校充實行政人力計畫,國立南科國際實驗高級中學,"580,359"
113/01/17,國民及學前教育行政及督導 - 投資,113年度補助教育部各縣(市)聯絡處基本行政工作維持費,國立屏東高級工業職業學校,"300,000"
113/01/17,國民及學前教育行政及督導 - 對特種基金之補助,113年度補助偏遠地區及非山非市國立高級中等學校廁所修繕計畫,國立恆春高級工商職業學校,"2,521,000"
113/01/17,國民及學前教育行政及督導 - 對特種基金之補助,113年度偏遠地區及非山非市國立高級中等學校宿舍計畫,國立恆春高級工商職業學校,"1,840,000"
113/01/17,國民及學前教育行政及督導 - 投資,113年度偏遠地區及非山非市國立高級中等學校宿舍計畫,國立恆春高級工商職業學校,"300,000"
113/01/17,國民及學前教育行政及督導 - 投資,113年度補助教育部各縣(市)聯絡處基本行政工作維持費,國立苗栗高級商業職業學校,"140,000"
113/01/17,國民及學前教育行政及督導 - 對特種基金之補助,112學年度高級中等學校推動家庭教育暨親職教育工作實施計畫經費,國立苗栗高級農工職業學校,"15,000"
113/01/17,國民及學前教育行政及督導 - 對特種基金之補助,112學年度高級中等學校推動家庭教育暨親職教育工作實施計畫經費,國立草屯高級商工職業學校,"18,000"
113/01/17,國民及學前教育行政及督導 - 對特種基金之補助,112學年度實施十二年國民基本教育課程新增鐘點費第2期款,國立草屯高級商工職業學校,"310,800"
113/01/17,國民及學前教育行政及督導 - 對特種基金之補助,十二年國民基本教育課程綱要國語文及第二外語文課程綱要英譯工作計畫,國立高雄師範大學校務基金,"570,000"
113/01/17,國民及學前教育行政及督導 - 投資,113年度補助教育部各縣(市)聯絡處基本行政工作維持費,國立基隆高級商工職業學校,"90,000"
113/01/17,國民及學前教育行政及督導 - 對特種基金之補助,112學年度高級中等學校推動家庭教育暨親職教育工作實施計畫經費,國立華南高級商業職業學校,"23,000"
113/01/17,國民及學前教育行政及督導 - 投資,113年度補助教育部各縣(市)聯絡處基本行政工作維持費,國立新竹高級商業職業學校,"220,000"
113/01/17,國民及學前教育行政及督導 - 對特種基金之補助,112學年度高級中等學校原住民族語課程開課經費,國立嘉義高級商業職業學校,"27,950"
113/01/17,國民及學前教育行政及督導 - 對特種基金之補助,113年度補助偏遠地區及非山非市國立高級中等學校廁所修繕計畫,國立旗山高級農工職業學校,"2,342,000"
113/01/17,國民及學前教育行政及督導 - 對特種基金之補助,113年度第1梯次新住民子女職業技能精進計畫經費,國立旗山高級農工職業學校,"361,000"
113/01/17,國民及學前教育行政及督導 - 對特種基金之補助,113年度偏遠地區及非山非市國立高級中等學校宿舍計畫,國立暨南大學附屬高級中學,"3,379,000"
113/01/17,國民及學前教育行政及督導 - 對特種基金之補助,113-114年度國立高級中等學校汙水及排水系統建置暨改善工程計畫,國立羅東高級商業職業學校,"4,000,000"
113/01/17,國民及學前教育行政及督導 - 對國內團體之捐助,113年度民間團體辦理國民中小學閱讀推動計畫經費,財團法人天下雜誌教育基金會,"960,000"
113/01/17,國民及學前教育行政及督導 - 對國內團體之捐助,113年度民間團體辦理國民中小學閱讀推動計畫經費,財團法人毛毛蟲兒童哲學基金會,"1,104,000"
113/01/17,國民及學前教育行政及督導 - 對特種基金之補助,112學年度高級中等學校推動家庭教育暨親職教育工作實施計畫經費,國立斗六高級家事商業職業學校,"23,000"
113/01/17,國民及學前教育行政及督導 - 對特種基金之補助,112學年度實施十二年國民基本教育課程新增鐘點費第2期款,國立北斗高級家事商業職業學校,"226,800"
113/01/17,國民及學前教育行政及督導 - 對特種基金之補助,112學年度高級中等學校穩定就學措施計畫,國立台南高級海事水產職業學校,"159,500"
113/01/17,國民及學前教育行政及督導 - 對特種基金之補助,113-114年度國立高級中等學校汙水及排水系統建置暨改善工程計畫,國立台南高級海事水產職業學校,"3,800,000"
113/01/17,國民及學前教育行政及督導 - 投資,113年度補助教育部各縣(市)聯絡處基本行政工作維持費,國立台南高級海事水產職業學校,"164,600"
113/01/17,國民及學前教育行政及督導 - 對特種基金之補助,112學年度增置國民中小學閱讀推動教師計畫第2期款,國立屏東大學附設實驗國民小學,"65,600"
113/01/17,國民及學前教育行政及督導 - 對特種基金之補助,112學年度實施十二年國民基本教育課程新增鐘點費第2期款,國立員林高級家事商業職業學校,"344,400"
113/01/17,國民及學前教育行政及督導 - 對特種基金之補助,112學年度高級中等學校本土語文(閩南語、閩東語、客語文)課程開課經費,國立曾文高級家事商業職業學校,"82,160"
113/01/17,國民及學前教育行政及督導 - 對特種基金之補助,113年度偏遠地區及非山非市國立高級中等學校宿舍計畫,國立澎湖高級海事水產職業學校,"267,000"
113/01/17,國民及學前教育行政及督導 - 投資,113年度偏遠地區及非山非市國立高級中等學校宿舍計畫,國立澎湖高級海事水產職業學校,"175,000"
113/01/17,國民及學前教育行政及督導 - 對私校之獎助,112學年度高級中等學校推動家庭教育暨親職教育工作實施計畫經費,雲林縣私立大德工業商業職業學校,"23,000"
113/01/17,國民及學前教育行政及督導 - 對私校之獎助,112學年度實施十二年國民基本教育課程新增鐘點費第2期款,彰化縣私立達德高級商工職業學校,"210,000"
113/01/17,國民及學前教育行政及督導 - 對學生之獎助,112學年度第1學期高級中等學校低收入戶及中低收入戶學生學雜費減免補助,屏榮學校財團法人屏東縣屏榮高級中學,"10,320"
113/01/17,國民及學前教育行政及督導 - 對私校之獎助,112學年度實施十二年國民基本教育課程新增鐘點費第2期款,財團法人台南市私立長榮女子高級中學,"58,800"
113/01/17,國民及學前教育行政及督導 - 對學生之獎助,112學年度第1學期高級中等學校低收入戶及中低收入戶學生學雜費減免補助,義峰學校財團法人雲林縣義峰高級中學,"30,748"
113/01/17,國民及學前教育行政及督導 - 對學生之獎助,112學年度第1學期高級中等學校低收入戶及中低收入戶學生學雜費減免補助,義峰學校財團法人雲林縣義峰高級中學,909
113/01/17,國民及學前教育行政及督導 - 對私校之獎助,112學年度實施十二年國民基本教育課程新增鐘點費第2期款,嘉義市私立東吳高級工業家事職業學校,"243,600"
113/01/17,國民及學前教育行政及督導 - 對私校之獎助,112學年度高級中等學校推動家庭教育暨親職教育工作實施計畫經費,興國學校財團法人臺南市興國高級中學,"21,000"
113/01/17,國民及學前教育行政及督導 - 對特種基金之補助,112學年度高級中等學校推動家庭教育暨親職教育工作實施計畫經費,國立成功大學附屬臺南工業高級中等學校,"20,000"
113/01/17,國民及學前教育行政及督導 - 對特種基金之補助,112學年度高級中等學校推動家庭教育暨親職教育工作實施計畫經費,國立彰化師範大學附屬高級工業職業學校,"23,000"
113/01/17,國民及學前教育行政及督導 - 對特種基金之補助,112學年度實施十二年國民基本教育課程新增鐘點費第2期款,國立彰化師範大學附屬高級工業職業學校,"571,200"
113/01/17,國民及學前教育行政及督導 - 對私校之獎助,112學年度實施十二年國民基本教育課程新增鐘點費第2期款,臺灣省台南市私立南英高級商工職業學校,"252,000"
113/01/17,國民及學前教育行政及督導 - 對私校之獎助,112學年度高級中等學校臺灣手語課程開課經費,臺灣省台南市私立南英高級商工職業學校,"80,032"
113/01/17,國民及學前教育行政及督導 - 對特種基金之補助,112學年度實施十二年國民基本教育課程新增鐘點費第2期款,國立臺灣海洋大學附屬基隆海事高級中等學校,"277,200"
113/01/17,國民及學前教育行政及督導 - 對私校之獎助,112學年度實施十二年國民基本教育課程新增鐘點費第2期款,陽明學校財團法人臺南市陽明高級工商職業學校,"42,000"
113/01/17,國民及學前教育行政及督導 - 對私校之獎助,112學年度高級中等學校推動家庭教育暨親職教育工作實施計畫經費,財團法人台灣省嘉義縣私立萬能高級工商職業學校,"23,000"
113/01/17,國民及學前教育行政及督導 - 對私校之獎助,112學年度實施十二年國民基本教育課程新增鐘點費第2期款,維多利亞學校財團法人雲林縣維多利亞實驗高級中學,"42,000"
113/01/18,國民及學前教育行政及督導 - 對學生之獎助,2023年國際國中科學奧林匹亞競賽獲獎學生獎學金,洪〇承,"200,000"
113/01/18,國民及學前教育行政及督導 - 對學生之獎助,2023年國際國中科學奧林匹亞競賽獲獎學生獎學金,蘇〇玹,"200,000"
113/01/18,國民及學前教育行政及督導 - 對各縣市政府之補助,112學年度國民中學區域職業試探與體驗示範中心計畫第2期款,宜蘭縣政府,"1,185,000"
113/01/18,國民及學前教育行政及督導 - 對各縣市政府之補助,113年度國民中小學閱讀推動計畫經費,宜蘭縣政府,"316,830"
113/01/18,國民及學前教育行政及督導 - 對各縣市政府之補助,112學年度國民中學技藝教育專案編班第2期款,花蓮縣政府,"3,423,020"
113/01/18,國民及學前教育行政及督導 - 對各縣市政府之補助,112學年度國民中小學學生學習扶助計畫第2期款,花蓮縣政府,"21,316,339"
113/01/18,國民及學前教育行政及督導 - 對各縣市政府之補助,112學年度國民中學區域職業試探與體驗示範中心計畫第2期款,花蓮縣政府,"1,777,500"
113/01/18,國民及學前教育行政及督導 - 對各縣市政府之補助,112學年度國民中學生涯發展教育計畫(含出版品印製)第2期款,花蓮縣政府,"696,366"
113/01/18,國民及學前教育行政及督導 - 對各縣市政府之補助,112學年度國民中小學學生學習扶助計畫第2期款,南投縣政府,"15,740,467"
113/01/18,國民及學前教育行政及督導 - 對各縣市政府之補助,112學年度國民中學生涯發展教育計畫(含出版品印製)第2期款,南投縣政府,"862,665"
113/01/18,國民及學前教育行政及督導 - 對各縣市政府之補助,112學年度準公共幼兒園15園輔導計畫第2期款,南投縣政府,"427,500"
113/01/18,國民及學前教育行政及督導 - 對各縣市政府之補助,112學年度國民中學技藝教育競賽及成果發表活動經費,屏東縣政府,"1,309,650"
113/01/18,國民及學前教育行政及督導 - 對各縣市政府之補助,112學年度下學期中央課程與教學輔導諮詢教師團隊代理代課費暨課程與教學補助經費,屏東縣政府,"221,360"
113/01/18,國民及學前教育行政及督導 - 對各縣市政府之補助,112學年度教保服務人員專業發展社群計畫第2期款,苗栗縣政府,"182,156"
113/01/18,國民及學前教育行政及督導 - 對直轄市政府之補助,112學年度偏遠地區學校及非山非市學校整合性計畫第2期款,桃園市政府,"1,190,000"
113/01/18,國民及學前教育行政及督導 - 對直轄市政府之補助,112學年度偏遠地區學校及非山非市學校整合性計畫第2期款,桃園市政府,"1,260,000"
113/01/18,國民及學前教育行政及督導 - 對直轄市政府之補助,113年1月至7月商借教師至國教署服務所需代理代課教師經費,桃園市政府,"700,000"
113/01/18,國民及學前教育行政及督導 - 對直轄市政府之補助,大額通報教補1月22日-112學年度我國少子女化對策計畫之各項幼生就學補助及育兒津貼等經費第3期款,桃園市政府,"1,720,635,000"
113/01/18,國民及學前教育行政及督導 - 對各縣市政府之補助,112學年度國民中小學媒體素養教育基地學校計畫第2期款,基隆市政府,"153,000"
113/01/18,國民及學前教育行政及督導 - 對各縣市政府之補助,112學年度一般地區學校公立國民中學增置專長教師員額實施計畫第2期款,基隆市政府,"5,263,580"
113/01/18,國民及學前教育行政及督導 - 對各縣市政府之補助,112學年度國民中學區域職業試探與體驗示範中心計畫第2期款,基隆市政府,"1,755,000"
113/01/18,國民及學前教育行政及督導 - 對各縣市政府之補助,112學年度國民中學生涯發展教育計畫(含出版品印製)第2期款,基隆市政府,"483,944"
113/01/18,國民及學前教育行政及督導 - 對各縣市政府之補助,112學年度國民中小學學生學習扶助計畫第2期款,連江縣政府,"706,405"
113/01/18,國民及學前教育行政及督導 - 對各縣市政府之補助,112學年度教育優先區計畫(除補助項目四)第2期款,雲林縣政府,"10,617,682"
113/01/18,國民及學前教育行政及督導 - 對各縣市政府之補助,112學年度教育優先區計畫(除補助項目四)第2期款,雲林縣政府,"110,702"
113/01/18,國民及學前教育行政及督導 - 對各縣市政府之補助,112學年度國民中學生涯發展教育計畫(含出版品印製)第2期款,雲林縣政府,"1,225,297"
113/01/18,國民及學前教育行政及督導 - 對各縣市政府之補助,112學年度實施戶外教育與海洋教育計畫第2期款,雲林縣政府,"2,967,924"
113/01/18,國民及學前教育行政及督導 - 對各縣市政府之補助,112學年度實施戶外教育與海洋教育計畫第2期款,雲林縣政府,"81,848"
113/01/18,國民及學前教育行政及督導 - 對各縣市政府之補助,112學年度增置國民中小學閱讀推動教師計畫第2期款,新竹市政府,"567,872"
113/01/18,國民及學前教育行政及督導 - 對各縣市政府之補助,112學年度國民中學技藝教育競賽及成果發表活動經費,新竹市政府,"907,850"
113/01/18,國民及學前教育行政及督導 - 對各縣市政府之補助,112學年度一般地區學校公立國民中學增置專長教師員額實施計畫第2期款,新竹市政府,"4,104,100"
113/01/18,國民及學前教育行政及督導 - 對各縣市政府之補助,112學年度國民中小學學生學習扶助計畫第2期款,新竹市政府,"6,190,783"
113/01/18,國民及學前教育行政及督導 - 對各縣市政府之補助,112學年度國民中學區域職業試探與體驗示範中心計畫第2期款,新竹市政府,"1,500,000"
113/01/18,國民及學前教育行政及督導 - 對各縣市政府之補助,112學年度國民中學生涯發展教育計畫(含出版品印製)第2期款,新竹市政府,"791,751"
113/01/18,國民及學前教育行政及督導 - 對各縣市政府之補助,112學年度下學期中央課程與教學輔導諮詢教師團隊代理代課費暨課程與教學補助經費,嘉義市政府,"115,720"
113/01/18,國民及學前教育行政及督導 - 對各縣市政府之補助,112學年度國民中小學媒體素養教育基地學校計畫第2期款,嘉義縣政府,"162,000"
113/01/18,國民及學前教育行政及督導 - 對各縣市政府之補助,112學年度一般地區學校公立國民中學增置專長教師員額實施計畫第2期款,嘉義縣政府,"4,586,400"
113/01/18,國民及學前教育行政及督導 - 對各縣市政府之補助,112學年度國民中小學學生學習扶助計畫第2期款,嘉義縣政府,"9,315,332"
113/01/18,國民及學前教育行政及督導 - 對各縣市政府之補助,112學年度偏遠地區學校及非山非市學校整合性計畫第2期款,嘉義縣政府,"3,240,000"
113/01/18,國民及學前教育行政及督導 - 對各縣市政府之補助,112學年度偏遠地區學校及非山非市學校整合性計畫第2期款,嘉義縣政府,"120,000"
113/01/18,國民及學前教育行政及督導 - 對各縣市政府之補助,112學年度國民中學區域職業試探與體驗示範中心計畫第2期款,澎湖縣政府,"660,000"
113/01/18,國民及學前教育行政及督導 - 對各縣市政府之補助,112學年度國民中學生涯發展教育計畫(含出版品印製)第2期款,澎湖縣政府,"297,888"
113/01/18,國民及學前教育行政及督導 - 對國內團體之捐助,113年度民間團體辦理國民中小學閱讀推動計畫經費,小茶壺兒童劇團,"456,000"
113/01/18,國民及學前教育行政及督導 - 對直轄市政府之補助,112學年度教學訪問教師計畫之原服務學校聘任代理教師第2期款,高雄市政府教育局,"325,000"
113/01/18,國民及學前教育行政及督導 - 對直轄市政府之補助,112學年度國民中學數學領域數位適性分組教學試辦計畫第2期款,高雄市政府教育局,"335,250"
113/01/18,國民及學前教育行政及督導 - 對特種基金之補助,113年1月至7月商借教師至國教署服務所需代理代課教師經費,國立和美實驗學校,"350,000"
113/01/18,國民及學前教育行政及督導 - 對直轄市政府之補助,112學年度實施戶外教育與海洋教育計畫第2期款,新北市政府教育局,"4,678,059"
113/01/18,國民及學前教育行政及督導 - 對直轄市政府之補助,112學年度實施戶外教育與海洋教育計畫第2期款,新北市政府教育局,"176,628"
113/01/18,國民及學前教育行政及督導 - 對直轄市政府之補助,112學年度國民中小學本土教育整體推動方案第2期款,臺中市政府教育局,"6,697,500"
113/01/18,國民及學前教育行政及督導 - 對直轄市政府之補助,112學年度國民中小學本土語文(閩南語文、閩東語文、客語文)直播共學計畫之協同人員鐘點費第2期款,臺北市政府教育局,"896,486"
113/01/18,國民及學前教育行政及督導 - 對直轄市政府之補助,113年1月至7月商借教師至國教署服務所需代理代課教師經費,臺北市政府教育局,"700,000"
113/01/18,國民及學前教育行政及督導 - 對直轄市政府之補助,112學年度國民中學數學領域數位適性分組教學試辦計畫第2期款,臺南市政府教育局,"348,858"
113/01/18,國民及學前教育行政及督導 - 對直轄市政府之補助,112學年度偏遠地區學校及非山非市學校整合性計畫第2期款,臺南市政府教育局,"2,940,000"
113/01/18,國民及學前教育行政及督導 - 對特種基金之補助,113年1月至7月商借教師至國教署服務所需代理代課教師經費,國立臺東大學附設實小,"350,000"
113/01/18,國民及學前教育行政及督導 - 對特種基金之補助,112學年度國民中學生涯發展教育計畫第2期款,國立政治大學附屬高級中學,"32,000"
113/01/18,國民及學前教育行政及督導 - 對國內團體之捐助,113上半年獎助民間辦理高級中等以下教育階段特殊教育活動經費,社團法人中華民國學習障礙協會,"192,148"
113/01/18,國民及學前教育行政及督導 - 對特種基金之補助,113年度國民中小學閱讀推動計畫經費,國立屏東大學附設實驗國民小學,"20,000"
113/01/18,國民及學前教育行政及督導 - 對特種基金之補助,112學年度獎勵無償提供場地、設施及設備辦理職場互助教保服務中心第2期款,國防醫學院三軍總醫院松山分院,"320,000"
113/01/18,國民及學前教育行政及督導 - 對特種基金之補助,112學年度獎勵無償提供場地、設施及設備辦理職場互助教保服務中心第2期款,國防醫學院三軍總醫院松山分院,"30,000"
113/01/18,國民及學前教育行政及督導 - 對特種基金之補助,112學年度國民中學生涯發展教育計畫第2期款,國立高雄餐旅大學附屬餐旅高級中等學校,"22,400"
113/01/19,國民及學前教育行政及督導 - 對各縣市政府之補助,113年度各地方政府校園拒毒萌芽推廣實施計畫經費,宜蘭縣政府,"66,536"
113/01/19,國民及學前教育行政及督導 - 對各縣市政府之補助,112學年度辦理非營利幼兒園相關業務經費第2期款,花蓮縣政府,"204,000"
113/01/19,國民及學前教育行政及督導 - 對各縣市政府之補助,非營利幼兒園112學年度學費差額補助第2期款,花蓮縣政府,"14,234,404"
113/01/19,國民及學前教育行政及督導 - 對各縣市政府之補助,112學年度輔導教師人力運用計畫第2期款,花蓮縣政府,"397,394"
113/01/19,國民及學前教育行政及督導 - 對各縣市政府之補助,112學年度輔導教師人力運用計畫第2期款,花蓮縣政府,"19,712,000"
113/01/19,國民及學前教育行政及督導 - 對各縣市政府之補助,113年度置專業輔導人員經費,花蓮縣政府,"7,943,000"
113/01/19,國民及學前教育行政及督導 - 對各縣市政府之補助,113年度各地方政府校園拒毒萌芽推廣實施計畫經費,花蓮縣政府,"149,199"
113/01/19,國民及學前教育行政及督導 - 對各縣市政府之補助,113年度各地方政府校園拒毒萌芽推廣實施計畫經費,金門縣政府,"16,280"
113/01/19,國民及學前教育行政及督導 - 對各縣市政府之補助,112學年度準公共幼兒園未因調薪而調整收費者之「園務營運費」第2期款,南投縣政府,"750,000"
113/01/19,國民及學前教育行政及督導 - 對各縣市政府之補助,112學年度獎勵無償提供場地、設施及設備辦理非營利幼兒園第2期款,南投縣政府,"1,912,500"
113/01/19,國民及學前教育行政及督導 - 對各縣市政府之補助,112學年度獎勵無償提供場地、設施及設備辦理非營利幼兒園第2期款,南投縣政府,"1,530,000"
113/01/19,國民及學前教育行政及督導 - 對各縣市政府之補助,112學年度教保服務人員專業發展社群計畫第2期款,南投縣政府,"158,932"
113/01/19,國民及學前教育行政及督導 - 對各縣市政府之補助,112學年度辦理非營利幼兒園相關業務經費第2期款,南投縣政府,"357,000"
113/01/19,國民及學前教育行政及督導 - 對各縣市政府之補助,大額通報教補1月23日-非營利幼兒園112學年度學費差額補助第2期款,南投縣政府,"30,421,106"
113/01/19,國民及學前教育行政及督導 - 對各縣市政府之補助,113年度補助各地方政府設置學生輔導諮商中心經費,南投縣政府,"747,304"
113/01/19,國民及學前教育行政及督導 - 對各縣市政府之補助,113年度補助各地方政府設置學生輔導諮商中心經費,南投縣政府,"32,040"
113/01/19,國民及學前教育行政及督導 - 對各縣市政府之補助,112學年度輔導教師人力運用計畫第2期款,南投縣政府,"464,808"
113/01/19,國民及學前教育行政及督導 - 對各縣市政府之補助,112學年度輔導教師人力運用計畫第2期款,南投縣政府,"28,160,000"
113/01/19,國民及學前教育行政及督導 - 對各縣市政府之補助,112學年度辦理品德教育推廣與深耕學校實施計畫,南投縣政府,"54,640"
113/01/19,國民及學前教育行政及督導 - 對各縣市政府之補助,113年度各地方政府校園拒毒萌芽推廣實施計畫經費,南投縣政府,"99,804"
113/01/19,國民及學前教育行政及督導 - 對各縣市政府之補助,112學年度偏遠地區學校及非山非市學校整合性計畫第2期款,南投縣政府,"1,464,750"
113/01/19,國民及學前教育行政及督導 - 對各縣市政府之補助,112學年度偏遠地區學校及非山非市學校整合性計畫第2期款,南投縣政府,"1,685,250"
113/01/19,國民及學前教育行政及督導 - 對各縣市政府之補助,112學年度辦理非營利幼兒園相關業務經費第2期款,苗栗縣政府,"929,880"
113/01/19,國民及學前教育行政及督導 - 對各縣市政府之補助,112學年度活化教學~分組合作學習的理念與實踐方案第2期款,苗栗縣政府,"63,750"
113/01/19,國民及學前教育行政及督導 - 對各縣市政府之補助,112學年度國民小學及國民中學活化教學與多元學習計畫第2期款,苗栗縣政府,"1,071,281"
113/01/19,國民及學前教育行政及督導 - 對各縣市政府之補助,112學年度國民小學及國民中學活化教學與多元學習計畫第2期款,苗栗縣政府,"6,621,369"
113/01/19,國民及學前教育行政及督導 - 對直轄市政府之補助,113年度各地方政府校園拒毒萌芽推廣實施計畫經費,桃園市政府,"106,700"
113/01/19,國民及學前教育行政及督導 - 對直轄市政府之補助,112學年度偏遠地區學校國中合理教師員額事項經費第2期款,桃園市政府,"12,202,176"
113/01/19,國民及學前教育行政及督導 - 對直轄市政府之補助,112學年度偏遠地區學校國中合理教師員額事項經費第2期款,桃園市政府,"2,497,824"
113/01/19,國民及學前教育行政及督導 - 對各縣市政府之補助,112學年度輔導教師人力運用計畫第2期款,基隆市政府,"17,534,753"
113/01/19,國民及學前教育行政及督導 - 對各縣市政府之補助,112學年度教育優先區計畫(除補助項目四)第2期款,基隆市政府,"1,669,323"
113/01/19,國民及學前教育行政及督導 - 對各縣市政府之補助,112學年度教育優先區計畫(除補助項目四)第2期款,基隆市政府,"233,464"
113/01/19,國民及學前教育行政及督導 - 對各縣市政府之補助,113年度國民中小學閱讀推動計畫經費,連江縣政府,"126,992"
113/01/19,國民及學前教育行政及督導 - 對各縣市政府之補助,112學年度教保服務人員專業發展社群計畫第2期款,雲林縣政府,"35,949"
113/01/19,國民及學前教育行政及督導 - 對各縣市政府之補助,112學年度高中優質化輔助方案,雲林縣政府,"2,452,000"
113/01/19,國民及學前教育行政及督導 - 對各縣市政府之補助,112學年度高中優質化輔助方案,雲林縣政府,"491,000"
113/01/19,國民及學前教育行政及督導 - 對各縣市政府之補助,113年度各地方政府校園拒毒萌芽推廣實施計畫經費,雲林縣政府,"134,568"
113/01/19,國民及學前教育行政及督導 - 對各縣市政府之補助,112學年度國民中學區域職業試探與體驗示範中心計畫第2期款,雲林縣政府,"1,344,000"
113/01/19,國民及學前教育行政及督導 - 對各縣市政府之補助,112學年度國民中小學學生學習扶助計畫第2期款,雲林縣政府,"13,882,791"
113/01/19,國民及學前教育行政及督導 - 對各縣市政府之補助,112學年度一般地區學校公立國民中學增置專長教師員額實施計畫第2期款,雲林縣政府,"5,350,800"
113/01/19,國民及學前教育行政及督導 - 對各縣市政府之補助,大額通報教補1月23日-非營利幼兒園112學年度學費差額補助第2期款,新竹市政府,"73,888,281"
113/01/19,國民及學前教育行政及督導 - 對各縣市政府之補助,113年度各地方政府校園拒毒萌芽推廣實施計畫經費,新竹市政府,"161,392"
113/01/19,國民及學前教育行政及督導 - 對各縣市政府之補助,112學年度教學訪問教師計畫之原服務學校聘任代理教師第2期款,新竹市政府,"650,000"
113/01/19,國民及學前教育行政及督導 - 對各縣市政府之補助,112學年度國民小學及國民中學活化教學與多元學習計畫第2期款,新竹市政府,"978,013"
113/01/19,國民及學前教育行政及督導 - 對各縣市政府之補助,112學年度國民中小學學生學習扶助計畫第2期款,新竹縣政府,"8,085,813"
113/01/19,國民及學前教育行政及督導 - 對各縣市政府之補助,112學年度國民中學生涯發展教育計畫(含出版品印製)第2期款,新竹縣政府,"997,135"
113/01/19,國民及學前教育行政及督導 - 對各縣市政府之補助,113年度各地方政府校園拒毒萌芽推廣實施計畫經費,嘉義市政府,"133,072"
113/01/19,國民及學前教育行政及督導 - 對各縣市政府之補助,112學年度準公共幼兒園招收2歲幼兒補助經費第2期款,嘉義縣政府,"6,210,000"
113/01/19,國民及學前教育行政及督導 - 對各縣市政府之補助,112學年度地方政府精進高級中等學校課程與教學計畫第2期款,嘉義縣政府,"1,387,431"
113/01/19,國民及學前教育行政及督導 - 對各縣市政府之補助,大額通報教補1月23日-非營利幼兒園112學年度學費差額補助第2期款,彰化縣政府,"141,082,341"
113/01/19,國民及學前教育行政及督導 - 對各縣市政府之補助,112學年度國民小學及國民中學活化教學與多元學習計畫第2期款,彰化縣政府,"1,047,267"
113/01/19,國民及學前教育行政及督導 - 對各縣市政府之補助,112學年度國民小學及國民中學活化教學與多元學習計畫第2期款,彰化縣政府,"10,421,156"
113/01/19,國民及學前教育行政及督導 - 對各縣市政府之補助,大額通報教補1月23日-112學年度我國少子女化對策計畫之各項幼生就學補助及育兒津貼等經費第3期款,臺東縣政府,"111,527,500"
113/01/19,國民及學前教育行政及督導 - 對各縣市政府之補助,大額通報教補1月23日-非營利幼兒園112學年度學費差額補助第2期款,臺東縣政府,"17,878,024"
113/01/19,國民及學前教育行政及督導 - 對各縣市政府之補助,109年度改善偏遠地區國民中小學宿舍計畫宿舍興建工程第2期款,臺東縣政府,"5,367,487"
113/01/19,國民及學前教育行政及督導 - 對各縣市政府之補助,112學年度我國少子女化對策計畫之各項幼生就學補助及育兒津貼等經費第3期款,澎湖縣政府,"57,207,500"
113/01/19,國民及學前教育行政及督導 - 對各縣市政府之補助,113年度各地方政府校園拒毒萌芽推廣實施計畫經費,澎湖縣政府,"33,471"
113/01/19,國民及學前教育行政及督導 - 對特種基金之補助,112學年度辦理非營利幼兒園相關業務經費第2期款,國立成功大學,"210,000"
113/01/19,國民及學前教育行政及督導 - 對特種基金之補助,112學年度第2學期社區(港口部落)互助教保服務中心輔導計畫經費,國立臺東大學,"100,000"
113/01/19,國民及學前教育行政及督導 - 對私校之獎助,112學年度實施十二年國民基本教育課程新增鐘點費第2期款,東莞台商子弟學校,"302,400"
113/01/19,國民及學前教育行政及督導 - 對直轄市政府之補助,112學年『Bunun：多族』實驗學校建置12年一貫課程發展(112-117)五年之112學年度計畫(第2期),高雄市政府教育局,"842,800"
113/01/19,國民及學前教育行政及督導 - 對直轄市政府之補助,113年度新住民子女教育行政人力經費,高雄市政府教育局,"473,000"
113/01/19,國民及學前教育行政及督導 - 對直轄市政府之補助,112學年度辦理品德教育推廣與深耕學校實施計畫,高雄市政府教育局,"322,240"
113/01/19,國民及學前教育行政及督導 - 對直轄市政府之補助,113年度各地方政府校園拒毒萌芽推廣實施計畫經費,高雄市政府教育局,"180,919"
113/01/19,國民及學前教育行政及督導 - 對特種基金之補助,112學年度實施十二年國民基本教育課程新增鐘點費第2期款,國立斗六高級中學,"445,200"
113/01/19,國民及學前教育行政及督導 - 對特種基金之補助,112學年度實施十二年國民基本教育課程新增鐘點費第2期款,國立北門高級中學,"681,000"
113/01/19,國民及學前教育行政及督導 - 對特種基金之補助,112學年度高級中等學校推動家庭教育暨親職教育工作實施計畫經費,國立台東高級中學,"23,000"
113/01/19,國民及學前教育行政及督導 - 對特種基金之補助,112學年度國立學校聘任資源班行政助理計畫經費,國立竹南高級中學,"406,260"
113/01/19,國民及學前教育行政及督導 - 對特種基金之補助,112學年度高級中等學校本土語文(閩南語、閩東語、客語文)課程開課經費,國立宜蘭高級中學,"162,804"
113/01/19,國民及學前教育行政及督導 - 對特種基金之補助,112學年度高級中等學校原住民族語課程開課經費,國立宜蘭高級中學,"53,188"
113/01/19,國民及學前教育行政及督導 - 對特種基金之補助,112學年度高級中等學校臺灣手語課程開課經費,國立宜蘭高級中學,"7,802"
113/01/19,國民及學前教育行政及督導 - 對特種基金之補助,112學年度高級中等學校原住民族語課程開課經費,國立岡山高級中學,"12,610"
113/01/19,國民及學前教育行政及督導 - 對特種基金之補助,112學年度高級中等學校臺灣手語課程開課經費,國立岡山高級中學,"53,368"
113/01/19,國民及學前教育行政及督導 - 對特種基金之補助,112學年度實施十二年國民基本教育課程新增鐘點費第2期款,國立岡山高級中學,"344,400"
113/01/19,國民及學前教育行政及督導 - 對特種基金之補助,112學年度高級中等學校推動家庭教育暨親職教育工作實施計畫經費,國立東石高級中學,"23,000"
113/01/19,國民及學前教育行政及督導 - 對特種基金之補助,112學年度高級中等學校穩定就學措施計畫,國立東石高級中學,"160,000"
113/01/19,國民及學前教育行政及督導 - 對特種基金之補助,112學年度實施十二年國民基本教育課程新增鐘點費第2期款,國立花蓮高級中學,"436,800"
113/01/19,國民及學前教育行政及督導 - 對特種基金之補助,112學年度高級中等學校原住民族語課程開課經費,國立金門高級中學,"30,358"
113/01/19,國民及學前教育行政及督導 - 對特種基金之補助,112學年度實施十二年國民基本教育課程新增鐘點費第2期款,國立金門高級中學,"651,200"
113/01/19,國民及學前教育行政及督導 - 對特種基金之補助,112學年度高級中等學校推動家庭教育暨親職教育工作實施計畫經費,國立南投高級中學,"23,000"
113/01/19,國民及學前教育行政及督導 - 對特種基金之補助,112學年度實施十二年國民基本教育課程新增鐘點費第2期款,國立員林高級中學,"613,200"
113/01/19,國民及學前教育行政及督導 - 對特種基金之補助,112學年度實施十二年國民基本教育課程新增鐘點費第2期款,國立華僑高級中學,"821,000"
113/01/19,國民及學前教育行政及督導 - 對特種基金之補助,112學年度實施十二年國民基本教育課程新增鐘點費第2期款,國立新化高級中學,"675,800"
113/01/19,國民及學前教育行政及督導 - 對特種基金之補助,112學年度高級中等學校推動家庭教育暨親職教育工作實施計畫經費,國立新營高級中學,"23,000"
113/01/19,國民及學前教育行政及督導 - 對特種基金之補助,112學年度辦理高職部增開未納編班級教學相關經費第2期款,國立嘉義特教學校,"1,785,000"
113/01/19,國民及學前教育行政及督導 - 對特種基金之補助,112學年度國民中學生涯發展教育計畫第2期款,國立臺灣戲曲學院,"32,000"
113/01/19,國民及學前教育行政及督導 - 對特種基金之補助,112學年度國立學校聘任資源班行政助理計畫經費,國立鳳山高級中學,"406,260"
113/01/19,國民及學前教育行政及督導 - 對特種基金之補助,112學年度實施十二年國民基本教育課程新增鐘點費第2期款,國立羅東高級中學,"747,600"
113/01/19,國民及學前教育行政及督導 - 對直轄市政府之補助,補助113年度綜合高中學程經費,新北市政府教育局,"2,160,000"
113/01/19,國民及學前教育行政及督導 - 對直轄市政府之補助,補助113年度綜合高中學程經費,新北市政府教育局,"473,600"
113/01/19,國民及學前教育行政及督導 - 對直轄市政府之補助,113年度各地方政府校園拒毒萌芽推廣實施計畫經費,新北市政府教育局,"231,628"
113/01/19,國民及學前教育行政及督導 - 對直轄市政府之補助,112學年度國民中學技藝教育競賽及成果發表活動經費,新北市政府教育局,"1,350,000"
113/01/19,國民及學前教育行政及督導 - 對直轄市政府之補助,112學年度國民中學生涯發展教育計畫(含出版品印製)第2期款,新北市政府教育局,"3,674,684"
113/01/19,國民及學前教育行政及督導 - 對直轄市政府之補助,112學年度一般地區學校公立國民中學增置專長教師員額實施計畫第2期款,新北市政府教育局,"14,004,900"
113/01/19,國民及學前教育行政及督導 - 對學生之獎助,112學年度第1學期實用技能學程學生免學雜費補助,臺中市政府教育局,"27,783"
113/01/19,國民及學前教育行政及督導 - 對特種基金之補助,112學年度國民小學及國民中學活化教學與多元學習計畫第2期款,臺中市政府教育局,"75,000"
113/01/19,國民及學前教育行政及督導 - 對直轄市政府之補助,112學年度高級中等學校高三階段之原住民族語文6學分開課經費(第2期),臺中市政府教育局,"24,921"
113/01/19,國民及學前教育行政及督導 - 對直轄市政府之補助,112學年度高中優質化輔助方案,臺中市政府教育局,"18,586,000"
113/01/19,國民及學前教育行政及督導 - 對直轄市政府之補助,112學年度高中優質化輔助方案,臺中市政府教育局,"6,813,000"
113/01/19,國民及學前教育行政及督導 - 對直轄市政府之補助,113年度各地方政府校園拒毒萌芽推廣實施計畫經費,臺中市政府教育局,"241,101"
113/01/19,國民及學前教育行政及督導 - 對直轄市政府之補助,112學年度國民小學及國民中學活化教學與多元學習計畫第2期款,臺中市政府教育局,"1,435,350"
113/01/19,國民及學前教育行政及督導 - 對直轄市政府之補助,112學年度國民小學及國民中學活化教學與多元學習計畫第2期款,臺中市政府教育局,"5,409,696"
113/01/19,國民及學前教育行政及督導 - 對直轄市政府之補助,112學年度國中小原住民族語教學人員交通費第2期款,臺北市政府教育局,"347,760"
113/01/19,國民及學前教育行政及督導 - 對直轄市政府之補助,112學年度十二年國民基本教育課程綱要普通型數位前導學校計畫第2期款,臺北市政府教育局,"10,752,000"
113/01/19,國民及學前教育行政及督導 - 對直轄市政府之補助,113年度各地方政府校園拒毒萌芽推廣實施計畫經費,臺北市政府教育局,"110,075"
113/01/19,國民及學前教育行政及督導 - 對直轄市政府之補助,112學年度本土語文(閩南語、閩東語及客語)國中小教師及教學支援工作人員交通費第2期款,臺北市政府教育局,"1,337,814"
113/01/19,國民及學前教育行政及督導 - 對直轄市政府之補助,113年度各地方政府校園拒毒萌芽推廣實施計畫經費,臺南市政府教育局,"158,400"
113/01/19,國民及學前教育行政及督導 - 對直轄市政府之補助,112學年度國民中學技藝教育競賽及成果發表活動經費,臺南市政府教育局,"1,298,350"
113/01/19,國民及學前教育行政及督導 - 對私校之獎助,112學年度高級中等學校推動家庭教育暨親職教育工作實施計畫經費,臺南市六信高級中學,"23,000"
113/01/19,國民及學前教育行政及督導 - 對特種基金之補助,112學年度實施十二年國民基本教育課程新增鐘點費第2期款,國立台東女子高級中學,"336,000"
113/01/19,國民及學前教育行政及督導 - 對特種基金之補助,"113年度充實資優教育人力、加強資優教育業務推動與運作及(691,503、120,000)",國立台南女子高級中學,"811,503"
113/01/19,國民及學前教育行政及督導 - 投資,113年度充實資優教育設施設備計畫,國立台南女子高級中學,"300,000"
113/01/19,國民及學前教育行政及督導 - 對特種基金之補助,112學年度國立學校聘任資源班行政助理計畫經費,國立台南家齊高級中學,"406,260"
113/01/19,國民及學前教育行政及督導 - 對特種基金之補助,112學年度國立高級中等學校聘任資源班外加代理教師計畫經費,國立台南第一高級中學,"558,688"
113/01/19,國民及學前教育行政及督導 - 對特種基金之補助,112學年度高級中等學校原住民族語課程開課經費,國立台南第一高級中學,"29,950"
113/01/19,國民及學前教育行政及督導 - 對特種基金之補助,112學年度國立高級中等學校聘任資源班外加代理教師計畫經費,國立台南第二高級中學,"739,792"
113/01/19,國民及學前教育行政及督導 - 對特種基金之補助,112學年度國民中學生涯發展教育計畫第2期款,國立卓蘭高級中等學校,"23,600"
113/01/19,國民及學前教育行政及督導 - 對特種基金之補助,112學年度十二年國民基本教育課程綱要普通型數位前導學校計畫第2期款,國立新竹女子高級中學,"1,050,000"
113/01/19,國民及學前教育行政及督導 - 對私校之獎助,112學年度實施十二年國民基本教育課程新增鐘點費第2期款,南投縣私立三育高級中學,"117,600"
113/01/19,國民及學前教育行政及督導 - 對特種基金之補助,112學年度國立學校聘任資源班行政助理計畫經費,國立二林高級工商職業學校,"406,260"
113/01/19,國民及學前教育行政及督導 - 對特種基金之補助,112學年度國立高級中等學校聘任資源班外加代理教師計畫經費,國立二林高級工商職業學校,"800,000"
113/01/19,國民及學前教育行政及督導 - 對特種基金之補助,112學年度國立高級中等學校聘任資源班外加代理教師計畫經費,國立土庫高級商工職業學校,"701,884"
113/01/19,國民及學前教育行政及督導 - 對特種基金之補助,112學年度實施十二年國民基本教育課程新增鐘點費第2期款,國立土庫高級商工職業學校,"369,600"
113/01/19,國民及學前教育行政及督導 - 對特種基金之補助,112學年度國立高級中等學校聘任資源班外加代理教師計畫經費,國立大湖高級農工職業學校,"606,207"
113/01/19,國民及學前教育行政及督導 - 對特種基金之補助,112學年度實施十二年國民基本教育課程新增鐘點費第2期款,國立中興大學附屬高級中學,"537,600"
113/01/19,國民及學前教育行政及督導 - 對特種基金之補助,112學年度實施十二年國民基本教育課程新增鐘點費第2期款,國立水里高級商工職業學校,"546,000"
113/01/19,國民及學前教育行政及督導 - 對特種基金之補助,112學年度技術型及綜合型高級中等學校十二年國民基本教育課程綱要前導學校工作計畫,國立北門高級農工職業學校,"800,000"
113/01/19,國民及學前教育行政及督導 - 對特種基金之補助,112學年度實施十二年國民基本教育課程新增鐘點費第2期款,國立北港高級農工職業學校,"655,200"
113/01/19,國民及學前教育行政及督導 - 對特種基金之補助,112學年度第2學期發展及改進原住民技職教育計畫經費,國立台東高級商業職業學校,"300,000"
113/01/19,國民及學前教育行政及督導 - 對特種基金之補助,112學年度技術型及綜合型高級中等學校十二年國民基本教育課程綱要前導學校工作計畫,國立台南高級商業職業學校,"800,000"
113/01/19,國民及學前教育行政及督導 - 對特種基金之補助,112學年度國立學校聘任資源班行政助理計畫經費,國立光復高級商工職業學校,"406,260"
113/01/19,國民及學前教育行政及督導 - 對特種基金之補助,112學年度國立高級中等學校聘任資源班外加代理教師計畫經費,國立光復高級商工職業學校,"523,121"
113/01/19,國民及學前教育行政及督導 - 對特種基金之補助,112學年度實施十二年國民基本教育課程新增鐘點費第2期款,國立成功商業水產職業學校,"109,200"
113/01/19,國民及學前教育行政及督導 - 對特種基金之補助,112學年度國立學校聘任資源班行政助理計畫經費,國立西螺高級農工職業學校,"406,260"
113/01/19,國民及學前教育行政及督導 - 對特種基金之補助,112學年度國立高級中等學校聘任資源班外加代理教師計畫經費,國立西螺高級農工職業學校,"673,865"
113/01/19,國民及學前教育行政及督導 - 對特種基金之補助,112學年度高級中等學校推動家庭教育暨親職教育工作實施計畫經費,國立花蓮高級商業職業學校,"23,000"
113/01/19,國民及學前教育行政及督導 - 對特種基金之補助,112學年度國立學校聘任資源班行政助理計畫經費,國立金門高級農工職業學校,"406,260"
113/01/19,國民及學前教育行政及督導 - 對特種基金之補助,112學年度實施十二年國民基本教育課程新增鐘點費第2期款,國立屏東高級工業職業學校,"436,800"
113/01/19,國民及學前教育行政及督導 - 對特種基金之補助,113年度新住民子女職業技能精進計畫經費,國立苗栗高級農工職業學校,"176,392"
113/01/19,國民及學前教育行政及督導 - 對特種基金之補助,112學年度國立學校聘任資源班行政助理計畫經費,國立苗栗高級農工職業學校,"781,909"
113/01/19,國民及學前教育行政及督導 - 對特種基金之補助,112學年度國立高級中等學校聘任資源班外加代理教師計畫經費,國立苗栗高級農工職業學校,"616,661"
113/01/19,國民及學前教育行政及督導 - 對特種基金之補助,112學年度國立高級中等學校聘任資源班外加代理教師計畫經費,國立埔里高級工業職業學校,"672,984"
113/01/19,國民及學前教育行政及督導 - 對特種基金之補助,112學年度實施十二年國民基本教育課程新增鐘點費第2期款,國立埔里高級工業職業學校,"330,600"
113/01/19,國民及學前教育行政及督導 - 對特種基金之補助,112學年度國立高級中等學校聘任資源班外加代理教師計畫經費,國立曾文高級農工職業學校,"603,312"
113/01/19,國民及學前教育行政及督導 - 對特種基金之補助,112學年度實施十二年國民基本教育課程新增鐘點費第2期款,國立新竹高級工業職業學校,"546,000"
113/01/19,國民及學前教育行政及督導 - 對特種基金之補助,112學年度實施十二年國民基本教育課程新增鐘點費第2期款,國立新營高級工業職業學校,"470,400"
113/01/19,國民及學前教育行政及督導 - 對特種基金之補助,112學年度實施十二年國民基本教育課程新增鐘點費第2期款,國立嘉義高級工業職業學校,"361,200"
113/01/19,國民及學前教育行政及督導 - 對特種基金之補助,112學年度辦理非營利幼兒園相關業務經費第2期款,國立嘉義高級家事職業學校,"120,000"
113/01/19,國民及學前教育行政及督導 - 對特種基金之補助,112學年度實施十二年國民基本教育課程新增鐘點費第2期款,國立彰化高級商業職業學校,"579,600"
113/01/19,國民及學前教育行政及督導 - 對特種基金之補助,112學年度國立高級中等學校聘任資源班外加代理教師計畫經費,國立臺東專科學校校務基金,"1,313,852"
113/01/19,國民及學前教育行政及督導 - 對特種基金之補助,112學年度實施十二年國民基本教育課程新增鐘點費第2期款,國立臺南大學附屬高級中學,"474,800"
113/01/19,國民及學前教育行政及督導 - 對特種基金之補助,112學年度國立高級中等學校聘任資源班外加代理教師計畫經費,國立鳳山高級商工職業學校,"616,680"
113/01/19,國民及學前教育行政及督導 - 對特種基金之補助,112學年度技術型及綜合型高級中等學校十二年國民基本教育課程綱要前導學校工作計畫,國立羅東高級工業職業學校,"800,000"
113/01/19,國民及學前教育行政及督導 - 對特種基金之補助,112學年度國立高級中等學校聘任資源班外加代理教師計畫經費,國立羅東高級工業職業學校,"714,871"
113/01/19,國民及學前教育行政及督導 - 對特種基金之補助,112學年度高級中等學校穩定就學措施計畫,國立羅東高級商業職業學校,"160,000"
113/01/19,國民及學前教育行政及督導 - 對特種基金之補助,112學年度技術型及綜合型高級中等學校十二年國民基本教育課程綱要前導學校工作計畫,國立羅東高級商業職業學校,"700,000"
113/01/19,國民及學前教育行政及督導 - 對特種基金之補助,112學年度國立學校聘任資源班行政助理計畫經費,國立羅東高級商業職業學校,"406,260"
113/01/19,國民及學前教育行政及督導 - 對特種基金之補助,112學年度國立高級中等學校聘任資源班外加代理教師計畫經費,國立羅東高級商業職業學校,"616,565"
113/01/19,國民及學前教育行政及督導 - 對特種基金之補助,112學年度實施十二年國民基本教育課程新增鐘點費第2期款,國立關山高級工商職業學校,"75,600"
113/01/19,國民及學前教育行政及督導 - 對私校之獎助,112學年度實施十二年國民基本教育課程新增鐘點費第2期款,新竹市私立曙光女子高級中學,"151,200"
113/01/19,國民及學前教育行政及督導 - 對私校之獎助,112學年度實施十二年國民基本教育課程新增鐘點費第2期款,台灣省基隆市私立聖心高級中學,"25,200"
113/01/19,國民及學前教育行政及督導 - 對特種基金之補助,112學年度十二年國民基本教育課程綱要普通型數位前導學校計畫第2期款,國立中山大學附屬國光高級中學,"1,050,000"
113/01/19,國民及學前教育行政及督導 - 對特種基金之補助,112學年度高級中等學校推動家庭教育暨親職教育工作實施計畫經費,國立中央大學附屬中壢高級中學,"14,000"
113/01/19,國民及學前教育行政及督導 - 對特種基金之補助,112學年度技術型及綜合型高級中等學校十二年國民基本教育課程綱要前導學校工作計畫,國立斗六高級家事商業職業學校,"575,000"
113/01/19,國民及學前教育行政及督導 - 對特種基金之補助,113年度新住民子女職業技能精進計畫經費,國立北斗高級家事商業職業學校,"200,000"
113/01/19,國民及學前教育行政及督導 - 對特種基金之補助,112學年度國立高級中等學校聘任資源班外加代理教師計畫經費,國立北斗高級家事商業職業學校,"676,123"
113/01/19,國民及學前教育行政及督導 - 對特種基金之補助,補助113年學校遴用助理人員經費,國立台南高級海事水產職業學校,"580,224"
113/01/19,國民及學前教育行政及督導 - 對特種基金之補助,112學年度國立高級中等學校聘任資源班外加代理教師計畫經費,國立東港高級海事水產職業學校,"701,750"
113/01/19,國民及學前教育行政及督導 - 對特種基金之補助,112學年度國民中學生涯發展教育計畫第2期款,國立高雄師範大學附屬高級中學,"27,200"
113/01/19,國民及學前教育行政及督導 - 對特種基金之補助,112學年度高級中等學校臺灣手語課程開課經費,國立曾文高級家事商業職業學校,"11,802"
113/01/19,國民及學前教育行政及督導 - 對特種基金之補助,112學年度實施十二年國民基本教育課程新增鐘點費第2期款,國立臺東大學附屬體育高級中學,"25,200"
113/01/19,國民及學前教育行政及督導 - 對特種基金之補助,112學年度國民中學生涯發展教育計畫第2期款,國立臺東大學附屬體育高級中學,"27,200"
113/01/19,國民及學前教育行政及督導 - 對特種基金之補助,112學年度國立學校聘任資源班行政助理計畫經費,國立臺灣師範大學附屬高級中學,"406,260"
113/01/19,國民及學前教育行政及督導 - 對特種基金之補助,112學年度國立高級中等學校聘任資源班外加代理教師計畫經費,國立臺灣師範大學附屬高級中學,"1,209,970"
113/01/19,國民及學前教育行政及督導 - 對特種基金之補助,112學年度高級中等學校推動家庭教育暨親職教育工作實施計畫經費,國立蘇澳高級海事水產職業學校,"23,000"
113/01/19,國民及學前教育行政及督導 - 對特種基金之補助,112學年度高級中等學校穩定就學措施計畫,國立蘇澳高級海事水產職業學校,"99,500"
113/01/19,國民及學前教育行政及督導 - 對特種基金之補助,112學年度國立學校聘任資源班行政助理計畫經費,國立蘇澳高級海事水產職業學校,"406,260"
113/01/19,國民及學前教育行政及督導 - 對私校之獎助,112學年度實施十二年國民基本教育課程新增鐘點費第2期款,臺灣省彰化縣私立文興高級中學,"193,200"
113/01/19,國民及學前教育行政及督導 - 對私校之獎助,112學年度實施十二年國民基本教育課程新增鐘點費第2期款,財團法人南投縣私立五育高級中學,"58,800"
113/01/19,國民及學前教育行政及督導 - 對私校之獎助,112學年度實施十二年國民基本教育課程新增鐘點費第2期款,財團法人嘉義市私立興華高級中學,"155,000"
113/01/19,國民及學前教育行政及督導 - 對私校之獎助,112學年度實施十二年國民基本教育課程新增鐘點費第2期款,雲林縣私立大成高級商工職業學校,"67,200"
113/01/19,國民及學前教育行政及督導 - 對私校之獎助,113年度新住民子女職業技能精進計畫經費,彰化縣私立達德高級商工職業學校,"200,000"
113/01/19,國民及學前教育行政及督導 - 對國內團體之捐助,辦理113上半年獎助民間辦理高級中等以下教育階段特殊教育活動經費,社團法人台灣赤子心過動症協會總會,"349,987"
113/01/19,國民及學前教育行政及督導 - 對私校之獎助,112學年度實施十二年國民基本教育課程新增鐘點費第2期款,正德學校財團法人彰化縣正德高級中學,"42,000"
113/01/19,國民及學前教育行政及督導 - 對特種基金之補助,112學年度辦理非營利幼兒園相關業務經費,國家科學及技術委員會南部科學園區管理局,"450,000"
113/01/19,國民及學前教育行政及督導 - 對特種基金之補助,112學年度國立學校聘任資源班行政助理計畫經費,國立臺灣海洋大學附屬基隆海事高級中等學校,"406,260"
113/01/19,國民及學前教育行政及督導 - 對私校之獎助,113年度新住民子女職業技能精進計畫經費,中山學校財團法人高雄市中山高級工商職業學校,"200,000"
113/01/19,國民及學前教育行政及督導 - 對私校之獎助,112學年度技術型及綜合型高級中等學校十二年國民基本教育課程綱要前導學校工作計畫,中山學校財團法人高雄市中山高級工商職業學校,"750,000"
113/01/19,國民及學前教育行政及督導 - 對私校之獎助,112學年度技術型及綜合型高級中等學校十二年國民基本教育課程綱要前導學校工作計畫,內思學校財團法人新竹縣內思工業高級中等學校,"475,000"
113/01/22,國民及學前教育行政及督導 - 對私校之獎助,補助113年本署所轄私立高中職公保養老超額年金費用-112年12月解散學校(協志工商)-3,王〇品,"2,519"
113/01/22,國民及學前教育行政及督導 - 對私校之獎助,113年本署所轄私立高中職公保養老超額年金費用-112年12月解散學校(協志工商)-1,王〇順,"4,605"
113/01/22,國民及學前教育行政及督導 - 對私校之獎助,113年本署所轄私立高中職公保養老超額年金費用-112年12月解散學校(協志工商)-1,王〇忠,"3,065"
113/01/22,國民及學前教育行政及督導 - 對私校之獎助,補助113年本署所轄私立高中職公保養老超額年金費用-112年12月解散學校(協志工商)-2,王〇華,"2,074"
113/01/22,國民及學前教育行政及督導 - 對私校之獎助,補助113年本署所轄私立高中職公保養老超額年金費用-112年12月解散學校(協志工商)-3,王〇慧,"2,977"
113/01/22,國民及學前教育行政及督導 - 對私校之獎助,補助113年本署所轄私立高中職公保養老超額年金費用-112年12月解散學校(協志工商)-2,朱〇祿,"3,848"
113/01/22,國民及學前教育行政及督導 - 對私校之獎助,補助113年本署所轄私立高中職公保養老超額年金費用-112年12月解散學校(協志工商)-2,江〇達,"2,456"
113/01/22,國民及學前教育行政及督導 - 對私校之獎助,補助113年本署所轄私立高中職公保養老超額年金費用-112年12月解散學校(協志工商)-3,何〇英,"2,694"
113/01/22,國民及學前教育行政及督導 - 對私校之獎助,補助113年本署所轄私立高中職公保養老超額年金費用-112年12月解散學校(協志工商)-3,何〇惠,"2,127"
113/01/22,國民及學前教育行政及督導 - 對私校之獎助,補助113年本署所轄私立高中職公保養老超額年金費用-112年12月解散學校(協志工商)-3,何〇鳳,"2,828"
113/01/22,國民及學前教育行政及督導 - 對私校之獎助,補助113年本署所轄私立高中職公保養老超額年金費用-112年12月解散學校(協志工商)-3,何龍〇,"3,995"
113/01/22,國民及學前教育行政及督導 - 對私校之獎助,113年本署所轄私立高中職公保養老超額年金費用-112年12月解散學校(協志工商)-1,吳〇誠,"3,043"
113/01/22,國民及學前教育行政及督導 - 對私校之獎助,補助113年本署所轄私立高中職公保養老超額年金費用-112年12月解散學校(協志工商)-3,吳〇惠,"4,060"
113/01/22,國民及學前教育行政及督導 - 對私校之獎助,113年本署所轄私立高中職公保養老超額年金費用-112年12月解散學校(協志工商)-1,吳〇忠,"3,430"
113/01/22,國民及學前教育行政及督導 - 對學生之獎助,2023年國際國中科學奧林匹亞競賽獲獎學生獎學金,吳〇謙,"200,000"
113/01/22,國民及學前教育行政及督導 - 對私校之獎助,補助113年本署所轄私立高中職公保養老超額年金費用-112年12月解散學校(協志工商)-3,吳〇裕,"3,896"
113/01/22,國民及學前教育行政及督導 - 對私校之獎助,補助113年本署所轄私立高中職公保養老超額年金費用-112年12月解散學校(協志工商)-3,吳〇林,"2,204"
113/01/22,國民及學前教育行政及督導 - 對私校之獎助,113年本署所轄私立高中職公保養老超額年金費用-112年12月解散學校(協志工商)-1,李〇雄,"4,757"
113/01/22,國民及學前教育行政及督導 - 對私校之獎助,113年本署所轄私立高中職公保養老超額年金費用-112年12月解散學校(協志工商)-1,李〇順,"3,882"
113/01/22,國民及學前教育行政及督導 - 對私校之獎助,補助113年本署所轄私立高中職公保養老超額年金費用-112年12月解散學校(協志工商)-2,李〇源,"2,401"
113/01/22,國民及學前教育行政及督導 - 對私校之獎助,補助113年本署所轄私立高中職公保養老超額年金費用-112年12月解散學校(協志工商)-2,李〇桔,"4,650"
113/01/22,國民及學前教育行政及督導 - 對私校之獎助,補助113年本署所轄私立高中職公保養老超額年金費用-112年12月解散學校(協志工商)-3,沈〇香,"4,120"
113/01/22,國民及學前教育行政及督導 - 對私校之獎助,補助113年本署所轄私立高中職公保養老超額年金費用-112年12月解散學校(協志工商)-3,沈〇娟,"2,681"
113/01/22,國民及學前教育行政及督導 - 對私校之獎助,113年本署所轄私立高中職公保養老超額年金費用-112年12月解散學校(協志工商)-1,沈〇源,"4,662"
113/01/22,國民及學前教育行政及督導 - 對私校之獎助,補助113年本署所轄私立高中職公保養老超額年金費用-112年12月解散學校(協志工商)-2,周〇閔,"2,657"
113/01/22,國民及學前教育行政及督導 - 對私校之獎助,補助113年本署所轄私立高中職公保養老超額年金費用-112年12月解散學校(協志工商)-2,林〇貴,"2,153"
113/01/22,國民及學前教育行政及督導 - 對私校之獎助,補助113年本署所轄私立高中職公保養老超額年金費用-112年12月解散學校(協志工商)-2,林〇典,"3,200"
113/01/22,國民及學前教育行政及督導 - 對私校之獎助,補助113年本署所轄私立高中職公保養老超額年金費用-112年12月解散學校(協志工商)-2,林〇霆,"4,271"
113/01/22,國民及學前教育行政及督導 - 對私校之獎助,113年本署所轄私立高中職公保養老超額年金費用-112年12月解散學校(協志工商)-1,林〇邦,"3,973"
113/01/22,國民及學前教育行政及督導 - 對私校之獎助,補助113年本署所轄私立高中職公保養老超額年金費用-112年12月解散學校(協志工商)-2,柯〇孝,"2,263"
113/01/22,國民及學前教育行政及督導 - 對私校之獎助,補助113年本署所轄私立高中職公保養老超額年金費用-112年12月解散學校(協志工商)-3,翁〇雯,"3,119"
113/01/22,國民及學前教育行政及督導 - 對私校之獎助,113年本署所轄私立高中職公保養老超額年金費用-112年12月解散學校(協志工商)-1,張〇琴,"2,797"
113/01/22,國民及學前教育行政及督導 - 對私校之獎助,113年本署所轄私立高中職公保養老超額年金費用-112年12月解散學校(協志工商)-1,張〇諒,"4,021"
113/01/22,國民及學前教育行政及督導 - 對私校之獎助,補助113年本署所轄私立高中職公保養老超額年金費用-112年12月解散學校(協志工商)-3,張〇慧,"2,406"
113/01/22,國民及學前教育行政及督導 - 對私校之獎助,113年本署所轄私立高中職公保養老超額年金費用-112年12月解散學校(協志工商)-1,張〇盛,"3,814"
113/01/22,國民及學前教育行政及督導 - 對私校之獎助,113年本署所轄私立高中職公保養老超額年金費用-112年12月解散學校(協志工商)-1,莊〇雪,"3,045"
113/01/22,國民及學前教育行政及督導 - 對私校之獎助,補助113年本署所轄私立高中職公保養老超額年金費用-112年12月解散學校(協志工商)-3,郭〇雯,"2,713"
113/01/22,國民及學前教育行政及督導 - 對私校之獎助,補助113年本署所轄私立高中職公保養老超額年金費用-112年12月解散學校(協志工商)-3,郭〇時,"3,016"
113/01/22,國民及學前教育行政及督導 - 對私校之獎助,113年本署所轄私立高中職公保養老超額年金費用-112年12月解散學校(協志工商)-1,陳〇靜,"3,710"
113/01/22,國民及學前教育行政及督導 - 對私校之獎助,補助113年本署所轄私立高中職公保養老超額年金費用-112年12月解散學校(協志工商)-3,陳〇玉,"2,440"
113/01/22,國民及學前教育行政及督導 - 對私校之獎助,補助113年本署所轄私立高中職公保養老超額年金費用-112年12月解散學校(協志工商)-2,陳〇榮,"3,913"
113/01/22,國民及學前教育行政及督導 - 對私校之獎助,補助113年本署所轄私立高中職公保養老超額年金費用-112年12月解散學校(協志工商)-2,陳〇宏,"2,826"
113/01/22,國民及學前教育行政及督導 - 對私校之獎助,補助113年本署所轄私立高中職公保養老超額年金費用-112年12月解散學校(協志工商)-3,陳〇鐘,"1,855"
113/01/22,國民及學前教育行政及督導 - 對私校之獎助,113年本署所轄私立高中職公保養老超額年金費用-112年12月解散學校(協志工商)-1,陳〇鏞,"3,838"
113/01/22,國民及學前教育行政及督導 - 對私校之獎助,補助113年本署所轄私立高中職公保養老超額年金費用-112年12月解散學校(協志工商)-2,陳〇祥,"2,336"
113/01/22,國民及學前教育行政及督導 - 對私校之獎助,113年本署所轄私立高中職公保養老超額年金費用-112年12月解散學校(協志工商)-1,彭〇寧,"2,676"
113/01/22,國民及學前教育行政及督導 - 對私校之獎助,補助113年本署所轄私立高中職公保養老超額年金費用-112年12月解散學校(協志工商)-2,游〇明,"2,275"
113/01/22,國民及學前教育行政及督導 - 對私校之獎助,補助113年本署所轄私立高中職公保養老超額年金費用-112年12月解散學校(協志工商)-3,黃〇瑜,"2,932"
113/01/22,國民及學前教育行政及督導 - 對私校之獎助,補助113年本署所轄私立高中職公保養老超額年金費用-112年12月解散學校(協志工商)-2,黃〇誠,"2,976"
113/01/22,國民及學前教育行政及督導 - 對私校之獎助,補助113年本署所轄私立高中職公保養老超額年金費用-112年12月解散學校(協志工商)-3,黃〇芬,"2,949"
113/01/22,國民及學前教育行政及督導 - 對私校之獎助,113年本署所轄私立高中職公保養老超額年金費用-112年12月解散學校(協志工商)-1,黃〇玲,"1,655"
113/01/22,國民及學前教育行政及督導 - 對私校之獎助,113年本署所轄私立高中職公保養老超額年金費用-112年12月解散學校(協志工商)-1,葉〇豪,"4,005"
113/01/22,國民及學前教育行政及督導 - 對學生之獎助,2023年國際國中科學奧林匹亞競賽獲獎學生獎學金,詹〇濬,"200,000"
113/01/22,國民及學前教育行政及督導 - 對私校之獎助,補助113年本署所轄私立高中職公保養老超額年金費用-112年12月解散學校(協志工商)-3,劉〇欽,"3,576"
113/01/22,國民及學前教育行政及督導 - 對私校之獎助,113年本署所轄私立高中職公保養老超額年金費用-112年12月解散學校(協志工商)-1,劉〇樑,"4,117"
113/01/22,國民及學前教育行政及督導 - 對私校之獎助,補助113年本署所轄私立高中職公保養老超額年金費用-112年12月解散學校(協志工商)-3,劉〇靜,"2,530"
113/01/22,國民及學前教育行政及督導 - 對私校之獎助,補助113年本署所轄私立高中職公保養老超額年金費用-112年12月解散學校(協志工商)-3,劉莉〇,"4,037"
113/01/22,國民及學前教育行政及督導 - 對私校之獎助,補助113年本署所轄私立高中職公保養老超額年金費用-112年12月解散學校(協志工商)-2,劉〇盛,"3,117"
113/01/22,國民及學前教育行政及督導 - 對私校之獎助,113年本署所轄私立高中職公保養老超額年金費用-112年12月解散學校(協志工商)-1,蔡〇秀,"2,374"
113/01/22,國民及學前教育行政及督導 - 對私校之獎助,補助113年本署所轄私立高中職公保養老超額年金費用-112年12月解散學校(協志工商)-2,蔡〇仁,"3,450"
113/01/22,國民及學前教育行政及督導 - 對私校之獎助,補助113年本署所轄私立高中職公保養老超額年金費用-112年12月解散學校(協志工商)-2,賴〇喜,"2,750"
113/01/22,國民及學前教育行政及督導 - 對私校之獎助,補助113年本署所轄私立高中職公保養老超額年金費用-112年12月解散學校(協志工商)-3,賴〇珍,"2,516"
113/01/22,國民及學前教育行政及督導 - 對學生之獎助,2023年國際國中科學奧林匹亞競賽獲獎學生獎學金,賴〇宇,"200,000"
113/01/22,國民及學前教育行政及督導 - 對私校之獎助,補助113年本署所轄私立高中職公保養老超額年金費用-112年12月解散學校(協志工商)-2,賴〇正,"3,719"
113/01/22,國民及學前教育行政及督導 - 對私校之獎助,補助113年本署所轄私立高中職公保養老超額年金費用-112年12月解散學校(協志工商)-3,賴〇新,"2,645"
113/01/22,國民及學前教育行政及督導 - 對學生之獎助,2023年國際國中科學奧林匹亞競賽獲獎學生獎學金,顏〇喬,"200,000"
113/01/22,國民及學前教育行政及督導 - 對私校之獎助,113年本署所轄私立高中職公保養老超額年金費用-112年12月解散學校(協志工商)-1,顏〇達,"4,191"
113/01/22,國民及學前教育行政及督導 - 對私校之獎助,補助113年本署所轄私立高中職公保養老超額年金費用-112年12月解散學校(協志工商)-2,羅〇清,"3,942"
113/01/22,國民及學前教育行政及督導 - 對各縣市政府之補助,112學年度準公共幼兒園招收2歲幼兒補助經費第2期款,宜蘭縣政府,"5,490,000"
113/01/22,國民及學前教育行政及督導 - 對各縣市政府之補助,112學年度準公共幼兒園未因調薪而調整收費者之「園務營運費」第2期款,宜蘭縣政府,"550,000"
113/01/22,國民及學前教育行政及督導 - 對各縣市政府之補助,113年度國中畢業生適性入學到校宣導經費,金門縣政府,"17,600"
113/01/22,國民及學前教育行政及督導 - 對各縣市政府之補助,職場教保服務中心112學年度第2學期學費差額補助經費,南投縣政府,"8,416,199"
113/01/22,國民及學前教育行政及督導 - 對各縣市政府之補助,113年度國中畢業生適性入學到校宣導經費,南投縣政府,"128,160"
113/01/22,國民及學前教育行政及督導 - 對各縣市政府之補助,112學年度準公共幼兒園未因調薪而調整收費者之「園務營運費」第2期款,屏東縣政府,"600,500"
113/01/22,國民及學前教育行政及督導 - 對各縣市政府之補助,112學年度實施戶外教育與海洋教育計畫第2期款,屏東縣政府,"3,566,336"
113/01/22,國民及學前教育行政及督導 - 對各縣市政府之補助,112學年度實施戶外教育與海洋教育計畫第2期款,屏東縣政府,"122,931"
113/01/22,國民及學前教育行政及督導 - 對各縣市政府之補助,113年度國中畢業生適性入學到校宣導經費,屏東縣政府,"154,800"
113/01/22,國民及學前教育行政及督導 - 對各縣市政府之補助,政風室商借教師112學年度第2期經費,苗栗縣政府,"468,993"
113/01/22,國民及學前教育行政及督導 - 對各縣市政府之補助,112學年度國民中小學媒體素養教育基地學校計畫第2期款,苗栗縣政府,"162,000"
113/01/22,國民及學前教育行政及督導 - 對各縣市政府之補助,職場教保服務中心112學年度第2學期學費差額補助經費,苗栗縣政府,"4,979,005"
113/01/22,國民及學前教育行政及督導 - 對各縣市政府之補助,112學年度下學期中央課程與教學輔導諮詢教師團隊代理代課費暨課程與教學補助經費第2期款,苗栗縣政府,"975,000"
113/01/22,國民及學前教育行政及督導 - 對各縣市政府之補助,112學年度國中小原住民族語教學人員交通費第2期款,苗栗縣政府,"56,700"
113/01/22,國民及學前教育行政及督導 - 對各縣市政府之補助,112學年度地方政府精進高級中等學校課程與教學計畫第2期款,苗栗縣政府,"2,033,640"
113/01/22,國民及學前教育行政及督導 - 對各縣市政府之補助,113年度置專業輔導人員經費,苗栗縣政府,"9,180,000"
113/01/22,國民及學前教育行政及督導 - 對直轄市政府之補助,辦理112學年度「輔導教師人力運用計畫」第2期款,桃園市政府,"256,596"
113/01/22,國民及學前教育行政及督導 - 對直轄市政府之補助,辦理112學年度「輔導教師人力運用計畫」第2期款,桃園市政府,"120,744,000"
113/01/22,國民及學前教育行政及督導 - 對直轄市政府之補助,桃園考區113年國中教育會考試務籌辦計畫第2期款,桃園市政府,"12,485,836"
113/01/22,國民及學前教育行政及督導 - 對直轄市政府之補助,桃園考區113年國中教育會考試務籌辦計畫第2期款,桃園市政府,"448,800"
113/01/22,國民及學前教育行政及督導 - 對直轄市政府之補助,112學年度國民中小學安全教育重點學校計畫第2期款,桃園市政府,"153,000"
113/01/22,國民及學前教育行政及督導 - 對直轄市政府之補助,112學年度活化教學~分組合作學習的理念與實踐方案第2期款,桃園市政府,"128,650"
113/01/22,國民及學前教育行政及督導 - 對直轄市政府之補助,112學年度實施戶外教育與海洋教育計畫第2期款,桃園市政府,"3,056,426"
113/01/22,國民及學前教育行政及督導 - 對直轄市政府之補助,112學年度實施戶外教育與海洋教育計畫第2期款,桃園市政府,"28,386"
113/01/22,國民及學前教育行政及督導 - 對直轄市政府之補助,大額通報教補1月24日-非營利幼兒園112學年度學費差額補助第2期款,桃園市政府,"319,369,206"
113/01/22,國民及學前教育行政及督導 - 對各縣市政府之補助,112學年度國民中小學本土教育整體推動方案暨教師及學生多元相關活動第2期款,連江縣政府,"799,200"
113/01/22,國民及學前教育行政及督導 - 對各縣市政府之補助,112學年度國民小學及國民中學活化教學與多元學習計畫第2期款,雲林縣政府,"722,966"
113/01/22,國民及學前教育行政及督導 - 對各縣市政府之補助,112學年度國民小學及國民中學活化教學與多元學習計畫第2期款,雲林縣政府,"15,748,311"
113/01/22,國民及學前教育行政及督導 - 對各縣市政府之補助,112學年度國民中小學媒體素養教育基地學校計畫第2期款,新竹市政府,"178,500"
113/01/22,國民及學前教育行政及督導 - 對各縣市政府之補助,112學年度國民中小學本土教育整體推動方案暨教師及學生多元相關活動第2期款,新竹市政府,"1,283,568"
113/01/22,國民及學前教育行政及督導 - 對各縣市政府之補助,112學年度地方政府精進高級中等學校課程與教學計畫第2期款,新竹縣政府,"1,814,680"
113/01/22,國民及學前教育行政及督導 - 對各縣市政府之補助,113年度新住民子女教育行政人力經費,新竹縣政府,"473,000"
113/01/22,國民及學前教育行政及督導 - 對特種基金之補助,112學年度教保服務人員專業發展社群計畫第2期款,嘉義市政府,"44,914"
113/01/22,國民及學前教育行政及督導 - 對各縣市政府之補助,112學年度教保服務人員專業發展社群計畫第2期款,嘉義市政府,"137,859"
113/01/22,國民及學前教育行政及督導 - 對各縣市政府之補助,112學年度高中優質化輔助方案,嘉義縣政府,"1,659,000"
113/01/22,國民及學前教育行政及督導 - 對各縣市政府之補助,112學年度高中優質化輔助方案,嘉義縣政府,"104,000"
113/01/22,國民及學前教育行政及督導 - 對各縣市政府之補助,113年度新住民子女教育行政人力經費,嘉義縣政府,"495,000"
113/01/22,國民及學前教育行政及督導 - 對各縣市政府之補助,112學年度十二年國民基本教育課程綱要普通型數位前導學校計畫第2期款,嘉義縣政府,"945,000"
113/01/22,國民及學前教育行政及督導 - 對各縣市政府之補助,廣興非營利幼兒園建築物裝修及購置教學設備第1、2期款,彰化縣政府,"486,835"
113/01/22,國民及學前教育行政及督導 - 對各縣市政府之補助,廣興非營利幼兒園建築物裝修及購置教學設備第1、2期款,彰化縣政府,"3,816,442"
113/01/22,國民及學前教育行政及督導 - 對各縣市政府之補助,112學年度國民中小學本土教育整體推動方案暨教師及學生多元相關活動第2期款,彰化縣政府,"2,628,527"
113/01/22,國民及學前教育行政及督導 - 對各縣市政府之補助,112學年度教保服務人員專業發展社群計畫第2期款,彰化縣政府,"357,192"
113/01/22,國民及學前教育行政及督導 - 對各縣市政府之補助,112學年度辦理中輟生預防追蹤及復學輔導工作實施計畫,彰化縣政府,"6,808,903"
113/01/22,國民及學前教育行政及督導 - 對各縣市政府之補助,113學年度各就學區高級中等學校免試入學經費第2期款,彰化縣政府,"945,700"
113/01/22,國民及學前教育行政及督導 - 對各縣市政府之補助,113年度置專業輔導人員經費,彰化縣政府,"14,752,000"
113/01/22,國民及學前教育行政及督導 - 對各縣市政府之補助,112學年度教保服務人員專業發展社群計畫第2期款,臺東縣政府,"47,250"
113/01/22,國民及學前教育行政及督導 - 對各縣市政府之補助,補助113年度綜合高中學程經費,臺東縣政府,"139,500"
113/01/22,國民及學前教育行政及督導 - 對各縣市政府之補助,補助113年度綜合高中學程經費,臺東縣政府,"18,000"
113/01/22,國民及學前教育行政及督導 - 對各縣市政府之補助,112學年度實施戶外教育與海洋教育計畫第2期款,澎湖縣政府,"2,891,955"
113/01/22,國民及學前教育行政及督導 - 對各縣市政府之補助,112學年度實施戶外教育與海洋教育計畫第2期款,澎湖縣政府,"164,160"
113/01/22,國民及學前教育行政及督導 - 對各縣市政府之補助,112學年度國民中小學原住民族語文協同人員經費第2期款,澎湖縣政府,"167,315"
113/01/22,國民及學前教育行政及督導 - 對各縣市政府之補助,113年度國中畢業生適性入學到校宣導經費,澎湖縣政府,"50,400"
113/01/22,國民及學前教育行政及督導 - 對特種基金之補助,112學年度辦理非營利幼兒園相關業務經費第2期款,國立清華大學,"200,000"
113/01/22,國民及學前教育行政及督導 - 對直轄市政府之補助,辦理112學年度「輔導教師人力運用計畫」第2期款,高雄市政府教育局,"778,169"
113/01/22,國民及學前教育行政及督導 - 對直轄市政府之補助,辦理112學年度「輔導教師人力運用計畫」第2期款,高雄市政府教育局,"137,256,000"
113/01/22,國民及學前教育行政及督導 - 對直轄市政府之補助,112學年度本土語文(閩南語、閩東語及客語)國中小教師及教學支援工作人員交通費第2期款,高雄市政府教育局,"706,200"
113/01/22,國民及學前教育行政及督導 - 對直轄市政府之補助,112學年度國民中小學本土教育整體推動方案暨教師及學生多元相關活動第2期款,高雄市政府教育局,"3,171,695"
113/01/22,國民及學前教育行政及督導 - 對直轄市政府之補助,大額通報教補1月24日-非營利幼兒園112學年度學費差額補助第2期款,高雄市政府教育局,"409,125,691"
113/01/22,國民及學前教育行政及督導 - 對直轄市政府之補助,112學年度十二年國民基本教育課程綱要普通型數位前導學校計畫第2期款,高雄市政府教育局,"4,620,000"
113/01/22,國民及學前教育行政及督導 - 對直轄市政府之補助,113年度國中畢業生適性入學到校宣導經費,高雄市政府教育局,"362,560"
113/01/22,國民及學前教育行政及督導 - 對直轄市政府之補助,113年度高級中等學校充實建置學生學習歷程檔案之學校專責辦理學習歷程檔案業務人員加班費,高雄市政府教育局,"52,800"
113/01/22,國民及學前教育行政及督導 - 對特種基金之補助,112學年度第2學期原住民學生一般課業輔導鐘點費,國立屏北高級中學,"35,000"
113/01/22,國民及學前教育行政及督導 - 對特種基金之補助,113年度偏遠地區及非山非市國立高級中等學校宿舍計畫,國立馬祖高級中學,"5,056,000"
113/01/22,國民及學前教育行政及督導 - 對特種基金之補助,113年度高級中等學校充實建置學生學習歷程檔案之學校專責辦理學習歷程檔案業務人員加班費,國立馬祖高級中學,"30,000"
113/01/22,國民及學前教育行政及督導 - 投資,113年度偏遠地區及非山非市國立高級中等學校宿舍計畫,國立馬祖高級中學,"111,000"
113/01/22,國民及學前教育行政及督導 - 對特種基金之補助,大學協助高級中等學校全人探索學習計畫,國立臺中教育大學,"2,518,668"
113/01/22,國民及學前教育行政及督導 - 對特種基金之補助,112學年度偏遠地區及非山非市公立高級中等學校學生通學交通費實施計畫,國立關西高級中學,"6,813,708"
113/01/22,國民及學前教育行政及督導 - 對直轄市政府之補助,112學年度獎勵無償提供場地、設施及設備辦理非營利幼兒園第2期款,新北市政府教育局,"11,240,000"
113/01/22,國民及學前教育行政及督導 - 對直轄市政府之補助,112學年度獎勵無償提供場地、設施及設備辦理非營利幼兒園第2期款,新北市政府教育局,"8,992,000"
113/01/22,國民及學前教育行政及督導 - 對直轄市政府之補助,112學年度活化教學~分組合作學習的理念與實踐方案第2期款,新北市政府教育局,"580,000"
113/01/22,國民及學前教育行政及督導 - 對直轄市政府之補助,112學年度下學期中央課程與教學輔導諮詢教師團隊代理代課費暨課程與教學補助經費第2期款,新北市政府教育局,"3,353,120"
113/01/22,國民及學前教育行政及督導 - 對直轄市政府之補助,辦理112學年度「輔導教師人力運用計畫」第2期款,臺中市政府教育局,"688,867"
113/01/22,國民及學前教育行政及督導 - 對直轄市政府之補助,辦理112學年度「輔導教師人力運用計畫」第2期款,臺中市政府教育局,"148,240,000"
113/01/22,國民及學前教育行政及督導 - 對直轄市政府之補助,112學年度本土語文指導員第2期款,臺中市政府教育局,"1,071,000"
113/01/22,國民及學前教育行政及督導 - 對直轄市政府之補助,大額通報教補1月24日-非營利幼兒園112學年度學費差額補助第2期款,臺中市政府教育局,"248,513,421"
113/01/22,國民及學前教育行政及督導 - 對直轄市政府之補助,112學年度十二年國民基本教育課程綱要普通型數位前導學校計畫第2期款,臺中市政府教育局,"9,817,500"
113/01/22,國民及學前教育行政及督導 - 對直轄市政府之補助,113年度高級中等學校充實建置學生學習歷程檔案之學校專責辦理學習歷程檔案業務人員加班費,臺中市政府教育局,"261,000"
113/01/22,國民及學前教育行政及督導 - 對直轄市政府之補助,大額通報教補1月24日-非營利幼兒園112學年度學費差額補助第2期款,臺北市政府教育局,"413,952,266"
113/01/22,國民及學前教育行政及督導 - 對直轄市政府之補助,113年度新住民子女教育行政人力經費,臺北市政府教育局,"451,000"
113/01/22,國民及學前教育行政及督導 - 對直轄市政府之補助,113年度國中畢業生適性入學到校宣導經費,臺北市政府教育局,"180,000"
113/01/22,國民及學前教育行政及督導 - 對直轄市政府之補助,112學年度科技教育推動總體計畫第3期款,臺南市政府教育局,"5,852,000"
113/01/22,國民及學前教育行政及督導 - 對直轄市政府之補助,112學年度本土語文(閩南語、閩東語及客語)國中小教師及教學支援工作人員交通費第2期款,臺南市政府教育局,"620,400"
113/01/22,國民及學前教育行政及督導 - 對直轄市政府之補助,112學年度教保服務人員專業發展社群計畫第2期款,臺南市政府教育局,"138,826"
113/01/22,國民及學前教育行政及督導 - 對直轄市政府之補助,大額通報教補1月24日-非營利幼兒園112學年度學費差額補助第2期款,臺南市政府教育局,"108,142,279"
113/01/22,國民及學前教育行政及督導 - 對特種基金之補助,2024年臺灣國際科學展覽會暨參與國際科學展覽活動計畫,國立臺灣科學教育館,"4,800,000"
113/01/22,國民及學前教育行政及督導 - 對特種基金之補助,113年度高級中等學校充實建置學生學習歷程檔案之學校專責辦理學習歷程檔案業務人員加班費,國立台南家齊高級中學,"30,000"
113/01/22,國民及學前教育行政及督導 - 對特種基金之補助,113年度提升學生學習校園環境整修工程計畫,國立台南第二高級中學,"2,000,000"
113/01/22,國民及學前教育行政及督導 - 對特種基金之補助,113年度高級中等學校充實建置學生學習歷程檔案之學校專責辦理學習歷程檔案業務人員加班費,國立卓蘭高級中等學校,"30,000"
113/01/22,國民及學前教育行政及督導 - 對特種基金之補助,112學年度辦理國小部增開未納編班級教學相關經費,國立南投特殊教育學校,"1,557,626"
113/01/22,國民及學前教育行政及督導 - 對特種基金之補助,112學年度辦理國小部增開未納編班級教學相關經費,國立彰化特殊教育學校,"1,540,267"
113/01/22,國民及學前教育行政及督導 - 對私校之獎助,112學年度第2學期原住民學生一般課業輔導鐘點費,新竹市私立光復高級中學,"74,000"
113/01/22,國民及學前教育行政及督導 - 對特種基金之補助,112學年度偏遠地區及非山非市公立高級中等學校學生通學交通費實施計畫,國立土庫高級商工職業學校,"5,704,380"
113/01/22,國民及學前教育行政及督導 - 對特種基金之補助,112學年度偏遠地區及非山非市公立高級中等學校學生通學交通費實施計畫,國立大湖高級農工職業學校,"3,852,762"
113/01/22,國民及學前教育行政及督導 - 對特種基金之補助,112學年度高級中等學校與大專校院攜手精進教學輔導原住民族學生計畫,國立內埔高級農工職業學校,"200,000"
113/01/22,國民及學前教育行政及督導 - 對特種基金之補助,112學年度偏遠地區及非山非市公立高級中等學校學生通學交通費實施計畫,國立內埔高級農工職業學校,"3,731,640"
113/01/22,國民及學前教育行政及督導 - 對特種基金之補助,112學年度偏遠地區及非山非市公立高級中等學校學生通學交通費實施計畫,國立佳冬高級農業職業學校,"5,319,000"
113/01/22,國民及學前教育行政及督導 - 對特種基金之補助,113年度校園安全通行廊道改善計畫,國立宜蘭高級商業職業學校,"2,000,000"
113/01/22,國民及學前教育行政及督導 - 對特種基金之補助,113年度偏遠地區及非山非市國立高級中等學校宿舍計畫,國立金門高級農工職業學校,"2,746,200"
113/01/22,國民及學前教育行政及督導 - 對特種基金之補助,112學年度本土語文(閩南語、閩東語及客語)國中小教師及教學支援工作人員交通費第2期款,國立南科國際實驗高級中學,"2,000"
113/01/22,國民及學前教育行政及督導 - 對特種基金之補助,113年度高級中等學校充實建置學生學習歷程檔案之學校專責辦理學習歷程檔案業務人員加班費,國立員林高級農工職業學校,"30,000"
113/01/22,國民及學前教育行政及督導 - 對特種基金之補助,113年度高級中等學校充實建置學生學習歷程檔案之學校專責辦理學習歷程檔案業務人員加班費,國立曾文高級農工職業學校,"30,000"
113/01/22,國民及學前教育行政及督導 - 對特種基金之補助,113年度高級中等學校充實建置學生學習歷程檔案之學校專責辦理學習歷程檔案業務人員加班費,國立華南高級商業職業學校,"30,000"
113/01/22,國民及學前教育行政及督導 - 對特種基金之補助,112學年度偏遠地區及非山非市公立高級中等學校學生通學交通費實施計畫,國立旗山高級農工職業學校,"4,521,000"
113/01/22,國民及學前教育行政及督導 - 對國內團體之捐助,推動『全民科學平臺』計畫第1期款,財團法人遠哲科學教育基金會,"236,600"
113/01/22,國民及學前教育行政及督導 - 對私校之獎助,112學年度第2學期原住民學生一般課業輔導鐘點費,財團法人南投縣私立五育高級中學,"79,000"
113/01/22,國民及學前教育行政及督導 - 對國內團體之捐助,113上半年獎助民間辦理高級中等以下教育階段特殊教育活動經費,社團法人中華身心障礙者職業技藝協會,"180,000"
113/01/22,國民及學前教育行政及督導 - 對國內團體之捐助,112學年度獎勵非營利法人之補助經費,社團法人東台灣幼兒教保專業促進協會,"600,000"
113/01/22,國民及學前教育行政及督導 - 對特種基金之補助,112學年度第2學期原住民學生一般課業輔導鐘點費,國立彰化師範大學附屬高級工業職業學校,"9,000"
113/01/23,國民及學前教育行政及督導 - 對各縣市政府之補助,112學年度實施十二年國民基本教育課程新增鐘點費第2期款,宜蘭縣政府,"21,672"
113/01/23,國民及學前教育行政及督導 - 對各縣市政府之補助,職場教保服務中心112學年度第2學期學費差額補助經費,花蓮縣政府,"15,257,590"
113/01/23,國民及學前教育行政及督導 - 對各縣市政府之補助,112學年度實施十二年國民基本教育課程新增鐘點費第2期款,花蓮縣政府,"21,672"
113/01/23,國民及學前教育行政及督導 - 對各縣市政府之補助,112學年度國民中學區域職業試探與體驗示範中心計畫第2期款,金門縣政府,"456,752"
113/01/23,國民及學前教育行政及督導 - 對各縣市政府之補助,112學年度實施戶外教育與海洋教育計畫第2期款,金門縣政府,"2,333,249"
113/01/23,國民及學前教育行政及督導 - 對各縣市政府之補助,112學年度實施戶外教育與海洋教育計畫第2期款,金門縣政府,"196,461"
113/01/23,國民及學前教育行政及督導 - 對各縣市政府之補助,112學年度國民中小學學生學習扶助計畫第2期款,金門縣政府,"3,039,842"
113/01/23,國民及學前教育行政及督導 - 對各縣市政府之補助,112學年度偏遠地區學校國中合理教師員額事項經費第2期款,南投縣政府,"32,804,128"
113/01/23,國民及學前教育行政及督導 - 對各縣市政府之補助,112學年度偏遠地區學校國中合理教師員額事項經費第2期款,南投縣政府,"5,905,872"
113/01/23,國民及學前教育行政及督導 - 對各縣市政府之補助,112學年度實施戶外教育與海洋教育計畫第2期款,南投縣政府,"3,268,737"
113/01/23,國民及學前教育行政及督導 - 對各縣市政府之補助,112學年度實施戶外教育與海洋教育計畫第2期款,南投縣政府,"60,342"
113/01/23,國民及學前教育行政及督導 - 對各縣市政府之補助,112學年度實施十二年國民基本教育課程新增鐘點費第2期款,南投縣政府,"187,824"
113/01/23,國民及學前教育行政及督導 - 對各縣市政府之補助,112年度偏遠地區學校及非山非市學校(非原住民學校)設施設備計畫第3期款,屏東縣政府,"10,090,736"
113/01/23,國民及學前教育行政及督導 - 對各縣市政府之補助,113年度辦理公私立幼兒園汰換及新購幼童專用車,屏東縣政府,"2,951,200"
113/01/23,國民及學前教育行政及督導 - 對各縣市政府之補助,112學年度實施十二年國民基本教育課程新增鐘點費第2期款,屏東縣政府,"1,079,550"
113/01/23,國民及學前教育行政及督導 - 對各縣市政府之補助,112學年度一般地區學校公立國民中學增置專長教師員額實施計畫第2期款,苗栗縣政府,"5,951,400"
113/01/23,國民及學前教育行政及督導 - 對各縣市政府之補助,112學年度國民中小學學生學習扶助計畫第2期款,苗栗縣政府,"14,810,712"
113/01/23,國民及學前教育行政及督導 - 對各縣市政府之補助,112學年度實施十二年國民基本教育課程新增鐘點費第2期款,苗栗縣政府,"942,300"
113/01/23,國民及學前教育行政及督導 - 對直轄市政府之補助,112學年度國民中小學媒體素養教育基地學校計畫第2期款,桃園市政府,"306,000"
113/01/23,國民及學前教育行政及督導 - 對直轄市政府之補助,112學年度國民中學技藝教育專案編班第2期款,桃園市政府,"3,657,278"
113/01/23,國民及學前教育行政及督導 - 對直轄市政府之補助,112學年度國民中小學本土教育整體推動方案暨教師及學生多元相關活動第2期款,桃園市政府,"3,439,296"
113/01/23,國民及學前教育行政及督導 - 對各縣市政府之補助,非營利幼兒園112學年度學費差額補助第2期款,基隆市政府,"58,558,028"
113/01/23,國民及學前教育行政及督導 - 對各縣市政府之補助,112學年度國民中小學本土教育整體推動方案暨教師及學生多元相關活動第2期款,雲林縣政府,"2,482,253"
113/01/23,國民及學前教育行政及督導 - 對各縣市政府之補助,職場教保服務中心112學年度第2學期學費差額補助經費,雲林縣政府,"5,185,524"
113/01/23,國民及學前教育行政及督導 - 對各縣市政府之補助,113年度辦理公私立幼兒園汰換及新購幼童專用車,雲林縣政府,"3,273,600"
113/01/23,國民及學前教育行政及督導 - 對各縣市政府之補助,113年1月至7月商借教師至國教署服務所需代理代課教師經費,新竹縣政府,"350,000"
113/01/23,國民及學前教育行政及督導 - 對各縣市政府之補助,非營利幼兒園112學年度學費差額補助第2期款,新竹縣政府,"50,916,265"
113/01/23,國民及學前教育行政及督導 - 對各縣市政府之補助,112學年度實施十二年國民基本教育課程新增鐘點費第2期款,新竹縣政府,"493,920"
113/01/23,國民及學前教育行政及督導 - 對各縣市政府之補助,職場教保服務中心112學年度第2學期學費差額補助經費,嘉義市政府,"12,821,585"
113/01/23,國民及學前教育行政及督導 - 對各縣市政府之補助,嘉義考區113年國中教育會考試務籌辦計畫第2期款,嘉義縣政府,"4,163,058"
113/01/23,國民及學前教育行政及督導 - 對各縣市政府之補助,嘉義考區113年國中教育會考試務籌辦計畫第2期款,嘉義縣政府,"76,500"
113/01/23,國民及學前教育行政及督導 - 對各縣市政府之補助,112學年度國民中學技藝教育競賽及成果發表活動經費,嘉義縣政府,"868,120"
113/01/23,國民及學前教育行政及督導 - 對各縣市政府之補助,112學年度國民中學區域職業試探與體驗示範中心計畫第2期款,嘉義縣政府,"1,152,000"
113/01/23,國民及學前教育行政及督導 - 對各縣市政府之補助,112學年度國民中學技藝教育專案編班第2期款,嘉義縣政府,"1,847,681"
113/01/23,國民及學前教育行政及督導 - 對各縣市政府之補助,113年度辦理公私立幼兒園汰換及新購幼童專用車,嘉義縣政府,"3,980,800"
113/01/23,國民及學前教育行政及督導 - 對各縣市政府之補助,112學年度實施十二年國民基本教育課程新增鐘點費第2期款,嘉義縣政府,"520,560"
113/01/23,國民及學前教育行政及督導 - 對各縣市政府之補助,112學年度國民中小學學生學習扶助計畫第2期款,彰化縣政府,"23,585,326"
113/01/23,國民及學前教育行政及督導 - 對各縣市政府之補助,113年度辦理公私立幼兒園汰換及新購幼童專用車,彰化縣政府,"8,391,200"
113/01/23,國民及學前教育行政及督導 - 對各縣市政府之補助,113年度反毒教育行動車入校宣導實施計畫經費,彰化縣政府,"266,016"
113/01/23,國民及學前教育行政及督導 - 對各縣市政府之補助,112學年度實施十二年國民基本教育課程新增鐘點費第2期款,彰化縣政府,"1,431,900"
113/01/23,國民及學前教育行政及督導 - 對各縣市政府之補助,112學年度下學期中央課程與教學輔導諮詢教師團隊代理代課費暨課程與教學補助經費第2期款,臺東縣政府,"221,360"
113/01/23,國民及學前教育行政及督導 - 對各縣市政府之補助,112學年度國民中小學學生學習扶助計畫第2期款,臺東縣政府,"10,591,388"
113/01/23,國民及學前教育行政及督導 - 對各縣市政府之補助,112學年度實施十二年國民基本教育課程新增鐘點費第2期款,臺東縣政府,"15,120"
113/01/23,國民及學前教育行政及督導 - 對各縣市政府之補助,112學年度科技教育推動總體計畫第3期款,澎湖縣政府,"945,000"
113/01/23,國民及學前教育行政及督導 - 對各縣市政府之補助,112學年度科技教育推動總體計畫第3期款,澎湖縣政府,"270,000"
113/01/23,國民及學前教育行政及督導 - 對各縣市政府之補助,112學年度國民中小學學生學習扶助計畫第2期款,澎湖縣政府,"6,176,166"
113/01/23,國民及學前教育行政及督導 - 對特種基金之補助,112學年度扶助國民小學弱勢家庭學生學習(學習扶助)計畫第2期款,國立中央大學,"2,344,419"
113/01/23,國民及學前教育行政及督導 - 對直轄市政府之補助,112學年度國民中小學媒體素養教育基地學校計畫第2期款,高雄市政府教育局,"153,000"
113/01/23,國民及學前教育行政及督導 - 對直轄市政府之補助,112學年度國民中小學學生學習扶助計畫第2期款,高雄市政府教育局,"34,279,282"
113/01/23,國民及學前教育行政及督導 - 對直轄市政府之補助,「Island of World世界之島」—「島嶼的集體記憶」跨領域課程教學全國巡迴培力計畫-第1年經費,高雄市政府教育局,"1,212,078"
113/01/23,國民及學前教育行政及督導 - 對直轄市政府之補助,113年度反毒教育行動車入校宣導實施計畫經費,高雄市政府教育局,"592,690"
113/01/23,國民及學前教育行政及督導 - 投資,113年執行強化校園安全防護工作經費,國立竹東高級中學,"85,500"
113/01/23,國民及學前教育行政及督導 - 對特種基金之補助,112學年度高級中等學校臺灣手語課程開課經費,國立竹南高級中學,"28,322"
113/01/23,國民及學前教育行政及督導 - 對特種基金之補助,113年度推動全民國防教育多元活動經費,國立宜蘭高級中學,"87,800"
113/01/23,國民及學前教育行政及督導 - 對特種基金之補助,113年度推動全民國防教育多元活動經費,國立東石高級中學,"76,480"
113/01/23,國民及學前教育行政及督導 - 對特種基金之補助,113年度推動全民國防教育多元活動經費,國立南投高級中學,"102,600"
113/01/23,國民及學前教育行政及督導 - 投資,113年執行強化校園安全防護工作經費,國立苑裡高級中學,"88,300"
113/01/23,國民及學前教育行政及督導 - 對特種基金之補助,112學年度高級中等學校臺灣手語課程開課經費,國立員林高級中學,"7,802"
113/01/23,國民及學前教育行政及督導 - 對特種基金之補助,113年度推動全民國防教育多元活動經費,國立馬公高級中學,"63,360"
113/01/23,國民及學前教育行政及督導 - 對特種基金之補助,113年度廚房午餐廚務臨時人員人力經費,國立馬祖高級中學,"624,000"
113/01/23,國民及學前教育行政及督導 - 對特種基金之補助,112學年度國民中學生涯發展教育計畫第2期款,國立華僑高級中學,"12,800"
113/01/23,國民及學前教育行政及督導 - 投資,113年執行強化校園安全防護工作經費,國立新竹高級中學,"70,000"
113/01/23,國民及學前教育行政及督導 - 投資,113年執行強化校園安全防護工作經費,國立新營高級中學,"80,000"
113/01/23,國民及學前教育行政及督導 - 對特種基金之補助,112學年度高級中等學校臺灣手語課程開課經費,國立溪湖高級中學,"3,628"
113/01/23,國民及學前教育行政及督導 - 對特種基金之補助,113年度推動全民國防教育多元活動經費,國立嘉義高級中學,"98,800"
113/01/23,國民及學前教育行政及督導 - 對特種基金之補助,113年度推動全民國防教育多元活動經費,國立鳳山高級中學,"265,400"
113/01/23,國民及學前教育行政及督導 - 投資,113年執行強化校園安全防護工作經費,國立鳳新高級中學,"91,000"
113/01/23,國民及學前教育行政及督導 - 投資,113年執行強化校園安全防護工作經費,國立羅東高級中學,"99,000"
113/01/23,國民及學前教育行政及督導 - 對特種基金之補助,112學年度實施十二年國民基本教育課程新增鐘點費第2期款,國立關西高級中學,"546,000"
113/01/23,國民及學前教育行政及督導 - 對直轄市政府之補助,自強國中112年度充實設施設備-萌學樓老舊烹飪教室暨電腦教室地板改善第2期款,新北市政府教育局,"1,596,000"
113/01/23,國民及學前教育行政及督導 - 對直轄市政府之補助,112學年度偏遠地區學校及非山非市學校整合性計畫第2期款,臺中市政府教育局,"2,100,000"
113/01/23,國民及學前教育行政及督導 - 對直轄市政府之補助,112學年度國民中小學學生學習扶助計畫第2期款,臺中市政府教育局,"30,644,943"
113/01/23,國民及學前教育行政及督導 - 對直轄市政府之補助,113年度反毒教育行動車入校宣導實施計畫經費,臺中市政府教育局,"126,432"
113/01/23,國民及學前教育行政及督導 - 對直轄市政府之補助,112學年度實施十二年國民基本教育課程新增鐘點費第2期款,臺北市政府教育局,"22,165,680"
113/01/23,國民及學前教育行政及督導 - 對直轄市政府之補助,職場教保服務中心112學年度第2學期學費差額補助經費,臺南市政府教育局,"21,741,410"
113/01/23,國民及學前教育行政及督導 - 對直轄市政府之補助,113年度辦理公私立幼兒園汰換及新購幼童專用車,臺南市政府教育局,"12,753,320"
113/01/23,國民及學前教育行政及督導 - 對國內團體之捐助,113年度民間團體辦理國民中小學閱讀推動計畫經費,台中市台中故事協會,"720,000"
113/01/23,國民及學前教育行政及督導 - 對私校之獎助,113年執行強化校園安全防護工作經費,台南市德光高級中學,"80,000"
113/01/23,國民及學前教育行政及督導 - 對私校之獎助,112學年度實施十二年國民基本教育課程新增鐘點費第2期款,台南市德光高級中學,"478,800"
113/01/23,國民及學前教育行政及督導 - 對特種基金之補助,113年度推動全民國防教育多元活動經費,國立台東女子高級中學,"72,962"
113/01/23,國民及學前教育行政及督導 - 投資,113年執行強化校園安全防護工作經費,國立宜蘭特殊教育學校,"100,000"
113/01/23,國民及學前教育行政及督導 - 對特種基金之補助,112學年度實施十二年國民基本教育課程新增鐘點費第2期款,國立屏東女子高級中學,"742,400"
113/01/23,國民及學前教育行政及督導 - 投資,113年執行強化校園安全防護工作經費,國立蘭陽女子高級中學,"70,000"
113/01/23,國民及學前教育行政及督導 - 對私校之獎助,112學年度私立高級中等學校聘任特殊教育行政助理計畫(第2梯次)經費,花蓮縣私立四維高級中學,"406,260"
113/01/23,國民及學前教育行政及督導 - 對私校之獎助,112學年度實施十二年國民基本教育課程新增鐘點費第2期款,屏東縣私立美和高級中學,"139,600"
113/01/23,國民及學前教育行政及督導 - 對私校之獎助,112學年度實施十二年國民基本教育課程新增鐘點費第2期款,基隆市私立二信高級中學,"210,000"
113/01/23,國民及學前教育行政及督導 - 對私校之獎助,112學年度私立高級中等學校聘任特殊教育行政助理計畫(第2梯次)經費,新竹市私立光復高級中學,"812,520"
113/01/23,國民及學前教育行政及督導 - 對私校之獎助,112學年度高級中等學校原住民族語課程開課經費,嘉義縣私立協同高級中學,"20,104"
113/01/23,國民及學前教育行政及督導 - 對私校之獎助,112學年度高級中等學校本土語文(閩南語、閩東語、客語文)課程開課經費,嘉義縣私立協同高級中學,"41,046"
113/01/23,國民及學前教育行政及督導 - 對私校之獎助,112學年度高級中等學校本土語文(閩南語、閩東語、客語文)課程開課經費,臺南市私立南光高級中學,"1,564"
113/01/23,國民及學前教育行政及督導 - 對國內團體之捐助,113年度民間團體辦理國民中小學閱讀推動計畫經費,台灣原住民族多元發展協會,"32,000"
113/01/23,國民及學前教育行政及督導 - 對特種基金之補助,112學年度高級中等學校臺灣手語課程開課經費,國立二林高級工商職業學校,"7,802"
113/01/23,國民及學前教育行政及督導 - 對特種基金之補助,112學年度高級中等學校臺灣手語課程開課經費,國立土庫高級商工職業學校,"68,992"
113/01/23,國民及學前教育行政及督導 - 對特種基金之補助,113年度廚房午餐廚務臨時人員人力經費,國立大湖高級農工職業學校,"623,200"
113/01/23,國民及學前教育行政及督導 - 投資,113年執行強化校園安全防護工作經費,國立北港高級農工職業學校,"99,645"
113/01/23,國民及學前教育行政及督導 - 對特種基金之補助,112學年度實施十二年國民基本教育課程新增鐘點費第2期款,國立永靖高級工業職業學校,"226,800"
113/01/23,國民及學前教育行政及督導 - 投資,113年執行強化校園安全防護工作經費,國立玉井高級工商職業學校,"50,000"
113/01/23,國民及學前教育行政及督導 - 對特種基金之補助,112學年度實施十二年國民基本教育課程新增鐘點費第2期款,國立光復高級商工職業學校,"42,000"
113/01/23,國民及學前教育行政及督導 - 投資,113年執行強化校園安全防護工作經費,國立光復高級商工職業學校,"70,000"
113/01/23,國民及學前教育行政及督導 - 投資,113年執行強化校園安全防護工作經費,國立秀水高級工業職業學校,"74,500"
113/01/23,國民及學前教育行政及督導 - 對特種基金之補助,113年度廚房午餐廚務臨時人員人力經費,國立金門高級農工職業學校,"936,000"
113/01/23,國民及學前教育行政及督導 - 對特種基金之補助,113年度推動全民國防教育多元活動經費,國立金門高級農工職業學校,"47,000"
113/01/23,國民及學前教育行政及督導 - 對特種基金之補助,113年度推動全民國防教育多元活動經費,國立屏東高級工業職業學校,"180,000"
113/01/23,國民及學前教育行政及督導 - 投資,113年執行強化校園安全防護工作經費,國立屏東高級工業職業學校,"80,000"
113/01/23,國民及學前教育行政及督導 - 投資,113年執行強化校園安全防護工作經費,國立恆春高級工商職業學校,"70,000"
113/01/23,國民及學前教育行政及督導 - 對特種基金之補助,113年度推動全民國防教育多元活動經費,國立苗栗高級商業職業學校,"217,849"
113/01/23,國民及學前教育行政及督導 - 對特種基金之補助,112學年度實施十二年國民基本教育課程新增鐘點費第2期款,國立基隆高級商工職業學校,"277,200"
113/01/23,國民及學前教育行政及督導 - 對特種基金之補助,113年度補助教育部各縣(市)聯絡處基本行政工作維持費,國立曾文高級農工職業學校,"673,000"
113/01/23,國民及學前教育行政及督導 - 投資,113年度補助教育部各縣(市)聯絡處基本行政工作維持費(資),國立曾文高級農工職業學校,"332,000"
113/01/23,國民及學前教育行政及督導 - 投資,113年執行強化校園安全防護工作經費,國立新化高級工業職業學校,"63,000"
113/01/23,國民及學前教育行政及督導 - 對特種基金之補助,112學年度高級中等學校本土語文(閩南語、閩東語、客語文)課程開課經費,國立新竹高級工業職業學校,"17,278"
113/01/23,國民及學前教育行政及督導 - 對特種基金之補助,112學年度高級中等學校臺灣手語課程開課經費,國立新竹高級工業職業學校,"7,802"
113/01/23,國民及學前教育行政及督導 - 投資,113年執行強化校園安全防護工作經費,國立新營高級工業職業學校,"80,000"
113/01/23,國民及學前教育行政及督導 - 對特種基金之補助,112學年度高級中等學校臺灣手語課程開課經費,國立嘉義高級工業職業學校,"50,770"
113/01/23,國民及學前教育行政及督導 - 對特種基金之補助,113年度補助教育部各縣(市)聯絡處基本行政工作維持費,國立彰化高級商業職業學校,"715,000"
113/01/23,國民及學前教育行政及督導 - 對特種基金之補助,113年度推動全民國防教育多元活動經費,國立彰化高級商業職業學校,"177,000"
113/01/23,國民及學前教育行政及督導 - 投資,113年度補助教育部各縣(市)聯絡處基本行政工作維持費(資),國立彰化高級商業職業學校,"217,000"
113/01/23,國民及學前教育行政及督導 - 對特種基金之補助,112學年度高級中等學校本土語文(閩南語、閩東語、客語文)課程開課經費,國立臺東專科學校校務基金,784
113/01/23,國民及學前教育行政及督導 - 對特種基金之補助,112學年度高級中等學校臺灣手語課程開課經費,國立臺東專科學校校務基金,"12,610"
113/01/23,國民及學前教育行政及督導 - 對國內團體之捐助,113年度國樂暑期營活動經費,雲林縣孤挺花家庭關懷協會,"95,000"
113/01/23,國民及學前教育行政及督導 - 對國內團體之捐助,112學年度偏鄉地區弱勢家庭學童學習扶助計畫2期款,財團法人博幼社會福利基金會,"943,824"
113/01/23,國民及學前教育行政及督導 - 對私校之獎助,112學年度新竹縣暨苗栗縣提升國民中小學英語學習成效計畫第2期款,致理學校財團法人致理科技大學,"2,110,312"
113/01/23,國民及學前教育行政及督導 - 對特種基金之補助,113年度補助教育部各縣(市)聯絡處基本行政工作維持費,國立斗六高級家事商業職業學校,"637,000"
113/01/23,國民及學前教育行政及督導 - 投資,113年度補助教育部各縣(市)聯絡處基本行政工作維持費(資),國立斗六高級家事商業職業學校,"250,000"
113/01/23,國民及學前教育行政及督導 - 對特種基金之補助,112學年度實施十二年國民基本教育課程新增鐘點費第2期款,國立台南高級海事水產職業學校,"268,800"
113/01/23,國民及學前教育行政及督導 - 投資,113年執行強化校園安全防護工作經費,國立東港高級海事水產職業學校,"100,000"
113/01/23,國民及學前教育行政及督導 - 投資,113年執行強化校園安全防護工作經費,國立臺東大學附屬特殊教育學校,"50,850"
113/01/23,國民及學前教育行政及督導 - 對特種基金之補助,112學年度實施十二年國民基本教育課程新增鐘點費第2期款,國立臺灣師範大學附屬高級中學,"1,100,400"
113/01/23,國民及學前教育行政及督導 - 對特種基金之補助,112學年度高級中等學校本土語文(閩南語、閩東語、客語文)課程開課經費,國立澎湖高級海事水產職業學校,"27,564"
113/01/23,國民及學前教育行政及督導 - 對特種基金之補助,112學年度高級中等學校臺灣手語課程開課經費,國立澎湖高級海事水產職業學校,"13,132"
113/01/23,國民及學前教育行政及督導 - 投資,113年執行強化校園安全防護工作經費,國立頭城高級家事商業職業學校,"92,350"
113/01/23,國民及學前教育行政及督導 - 對私校之獎助,113年執行強化校園安全防護工作經費,臺南市天主教聖功女子高級中學,"60,000"
113/01/23,國民及學前教育行政及督導 - 對私校之獎助,113年執行強化校園安全防護工作經費,高雄縣私立高苑高級工商職業學校,"60,000"
113/01/23,國民及學前教育行政及督導 - 對私校之獎助,112學年度私立高級中等學校聘任特殊教育行政助理計畫(第2梯次)經費,高雄縣私立高英高級工商職業學校,"406,260"
113/01/23,國民及學前教育行政及督導 - 對私校之獎助,112學年度私立高級中等學校聘任特殊教育行政助理計畫(第2梯次)經費,雲林縣私立大成高級商工職業學校,"406,260"
113/01/23,國民及學前教育行政及督導 - 對私校之獎助,112學年度私立高級中等學校聘任特殊教育行政助理計畫(第2梯次)經費,雲林縣私立大德工業商業職業學校,"406,260"
113/01/23,國民及學前教育行政及督導 - 對私校之獎助,112學年度私立高級中等學校聘任特殊教育行政助理計畫(第2梯次)經費,彰化縣私立大慶高級商工職業學校,"406,260"
113/01/23,國民及學前教育行政及督導 - 對特種基金之補助,112學年度國民中學生涯發展教育計畫第2期款,國立新竹科學園區實驗高級中等學校,"32,000"
113/01/23,國民及學前教育行政及督導 - 對私校之獎助,112學年度私立高級中等學校聘任特殊教育行政助理計畫(第2梯次)經費,基隆市私立光隆高級家事商業職業學校,"406,260"
113/01/23,國民及學前教育行政及督導 - 對私校之獎助,112學年度私立高級中等學校聘任特殊教育行政助理計畫(第2梯次)經費,義峰學校財團法人雲林縣義峰高級中學,"812,520"
113/01/23,國民及學前教育行政及督導 - 對私校之獎助,112學年度私立高級中等學校聘任特殊教育行政助理計畫(第2梯次)經費,台灣省台南市私立慈幼高級工商職業學校,"406,260"
113/01/23,國民及學前教育行政及督導 - 對特種基金之補助,112學年度高級中等學校本土語文(閩南語、閩東語、客語文)課程開課經費,國立臺灣海洋大學附屬基隆海事高級中等學校,"98,434"
113/01/23,國民及學前教育行政及督導 - 對特種基金之補助,112學年度高級中等學校臺灣手語課程開課經費,國立臺灣海洋大學附屬基隆海事高級中等學校,"61,490"
113/01/23,國民及學前教育行政及督導 - 對私校之獎助,113年執行強化校園安全防護工作經費,上騰學校財團法人花蓮縣上騰高級工商職業學校,"76,000"
113/01/23,國民及學前教育行政及督導 - 對私校之獎助,113年執行強化校園安全防護工作經費,崑山國際學校財團法人臺南市崑山高級中等學校,"79,000"
113/01/23,國民及學前教育行政及督導 - 對私校之獎助,113年執行強化校園安全防護工作經費,財團法人台灣省苗栗縣私立中興高級商工職業學校,"60,000"
113/01/23,國民及學前教育行政及督導 - 對私校之獎助,112學年度實施十二年國民基本教育課程新增鐘點費第2期款,財團法人台灣省苗栗縣私立中興高級商工職業學校,"75,600"
113/01/24,國民及學前教育行政及督導 - 對各縣市政府之補助,職場教保服務中心112學年度第2學期學費差額補助經費,屏東縣政府,"16,622,007"
113/01/24,國民及學前教育行政及督導 - 對各縣市政府之補助,113年度補助各地方政府設置學生輔導諮商中心經費,苗栗縣政府,"988,863"
113/01/24,國民及學前教育行政及督導 - 對各縣市政府之補助,113年度補助各地方政府設置學生輔導諮商中心經費,苗栗縣政府,"24,300"
113/01/24,國民及學前教育行政及督導 - 對直轄市政府之補助,大額通報教補1月26日-職場教保服務中心112學年度第2學期學費差額補助經費,桃園市政府,"38,573,617"
113/01/24,國民及學前教育行政及督導 - 對各縣市政府之補助,112學年度高中優質化輔助方案,基隆市政府,"3,471,000"
113/01/24,國民及學前教育行政及督導 - 對各縣市政府之補助,112學年度高中優質化輔助方案,基隆市政府,"727,000"
113/01/24,國民及學前教育行政及督導 - 對各縣市政府之補助,112學年度國民中學生涯發展教育計畫(含出版品印製)第2期款,連江縣政府,"103,040"
113/01/24,國民及學前教育行政及督導 - 對各縣市政府之補助,斗南國小非營利幼兒園新建工程第3期款,雲林縣政府,"2,741,000"
113/01/24,國民及學前教育行政及督導 - 對各縣市政府之補助,112學年度私立教保服務機構導師職務加給差額及教保費第2期款,新竹市政府,"13,951,000"
113/01/24,國民及學前教育行政及督導 - 對各縣市政府之補助,職場教保服務中心112學年度第2學期學費差額補助經費,新竹市政府,"8,139,160"
113/01/24,國民及學前教育行政及督導 - 對各縣市政府之補助,職場教保服務中心112學年度第2學期學費差額補助經費,新竹縣政府,"10,141,249"
113/01/24,國民及學前教育行政及督導 - 對各縣市政府之補助,非營利幼兒園112學年度學費差額補助第2期款,嘉義市政府,"23,287,195"
113/01/24,國民及學前教育行政及督導 - 對各縣市政府之補助,112學年度教育優先區計畫(除補助項目四)第2期款,嘉義市政府,"508,308"
113/01/24,國民及學前教育行政及督導 - 對各縣市政府之補助,112學年度教育優先區計畫(除補助項目四)第2期款,嘉義市政府,"12,110"
113/01/24,國民及學前教育行政及督導 - 對各縣市政府之補助,112學年度國民中學生涯發展教育計畫(含出版品印製)第2期款,嘉義市政府,"530,750"
113/01/24,國民及學前教育行政及督導 - 對各縣市政府之補助,113年度置專業輔導人員經費,嘉義市政府,"2,648,000"
113/01/24,國民及學前教育行政及督導 - 對各縣市政府之補助,112學年度國小原住民族語開課經費第2期款,嘉義縣政府,"294,724"
113/01/24,國民及學前教育行政及督導 - 對各縣市政府之補助,112學年度國中小原住民族語教學人員交通費第2期款,嘉義縣政府,"45,900"
113/01/24,國民及學前教育行政及督導 - 對各縣市政府之補助,113年度補助各地方政府設置學生輔導諮商中心經費,嘉義縣政府,"756,675"
113/01/24,國民及學前教育行政及督導 - 對各縣市政府之補助,113年度補助各地方政府設置學生輔導諮商中心經費,嘉義縣政府,"16,200"
113/01/24,國民及學前教育行政及督導 - 對各縣市政府之補助,泰和國小112年度充實設施設備-北側校園環境安全改善工程經費,彰化縣政府,"2,680,000"
113/01/24,國民及學前教育行政及督導 - 對各縣市政府之補助,舊社非營利幼兒園園舍新建工程第3期款,彰化縣政府,"3,028,500"
113/01/24,國民及學前教育行政及督導 - 對各縣市政府之補助,112學年度國中小原住民族語教學人員交通費第2期款,彰化縣政府,"40,940"
113/01/24,國民及學前教育行政及督導 - 對各縣市政府之補助,113年度補助各地方政府設置學生輔導諮商中心經費,彰化縣政府,"1,089,479"
113/01/24,國民及學前教育行政及督導 - 對各縣市政府之補助,113年度補助各地方政府設置學生輔導諮商中心經費,彰化縣政府,"48,060"
113/01/24,國民及學前教育行政及督導 - 對各縣市政府之補助,職場教保服務中心112學年度第2學期學費差額補助經費,彰化縣政府,"2,653,081"
113/01/24,國民及學前教育行政及督導 - 對各縣市政府之補助,職場教保服務中心112學年度第2學期學費差額補助經費,臺東縣政府,"7,649,142"
113/01/24,國民及學前教育行政及督導 - 對各縣市政府之補助,112學年度增置國民中小學閱讀推動教師計畫第2期款,澎湖縣政府,"272,000"
113/01/24,國民及學前教育行政及督導 - 政府機關間之補助,113年度桃園、新竹、苗栗、雲林及花蓮少年觀護所諮商輔導課程計畫,法務部矯正署,"751,846"
113/01/24,國民及學前教育行政及督導 - 對國內團體之捐助,2024年十二年國教推動十年成效評估學術研討會,台灣教育研究院社,"288,000"
113/01/24,國民及學前教育行政及督導 - 對直轄市政府之補助,112學年度偏遠地區學校及非山非市學校整合性計畫第2期款,高雄市政府教育局,"2,432,500"
113/01/24,國民及學前教育行政及督導 - 對直轄市政府之補助,112學年度偏遠地區學校及非山非市學校整合性計畫第2期款,高雄市政府教育局,"507,500"
113/01/24,國民及學前教育行政及督導 - 對直轄市政府之補助,112學年度增置國民中小學閱讀推動教師計畫第2期款,高雄市政府教育局,"2,232,752"
113/01/24,國民及學前教育行政及督導 - 對直轄市政府之補助,大額通報教補1月26日-職場教保服務中心112學年度第2學期學費差額補助經費,高雄市政府教育局,"46,551,743"
113/01/24,國民及學前教育行政及督導 - 投資,113年執行強化校園安全防護工作經費,國立竹山高級中學,"100,000"
113/01/24,國民及學前教育行政及督導 - 對特種基金之補助,112學年度兒童課後暨寒暑假照顧服務第2期款,國立和美實驗學校,"402,343"
113/01/24,國民及學前教育行政及督導 - 投資,113年執行強化校園安全防護工作經費,國立宜蘭高級中學,"100,000"
113/01/24,國民及學前教育行政及督導 - 投資,110年度改善偏遠地區公立高級中等學校宿舍計畫,國立金門高級中學,"27,932,736"
113/01/24,國民及學前教育行政及督導 - 對特種基金之補助,112學年度第2學期發展及改進原住民技職教育經費,國立屏北高級中學,"140,000"
113/01/24,國民及學前教育行政及督導 - 對特種基金之補助,112學年度高級中等學校推動家庭教育暨親職教育工作實施計畫經費,國立馬祖高級中學,"18,000"
113/01/24,國民及學前教育行政及督導 - 投資,113年執行強化校園安全防護工作經費,國立基隆高級中學,"75,400"
113/01/24,國民及學前教育行政及督導 - 對特種基金之補助,112學年度第2學期身心障礙學生交通服務經費,國立鳳新高級中學,"9,000"
113/01/24,國民及學前教育行政及督導 - 對直轄市政府之補助,112學年度公立幼兒園導師職務加給差額及教保費第2期款,新北市政府教育局,"24,270,000"
113/01/24,國民及學前教育行政及督導 - 對直轄市政府之補助,112學年度私立教保服務機構導師職務加給差額及教保費第2期款,新北市政府教育局,"74,753,000"
113/01/24,國民及學前教育行政及督導 - 對直轄市政府之補助,職場教保服務中心112學年度第2學期學費差額補助經費,新北市政府教育局,"22,302,294"
113/01/24,國民及學前教育行政及督導 - 對直轄市政府之補助,112學年度第1學期高級中等學校低收入戶及中低收入戶學生學雜費減免補助,臺中市政府教育局,"178,659"
113/01/24,國民及學前教育行政及督導 - 對直轄市政府之補助,112學年度地方政府精進高級中等學校課程與教學計畫第2期款,臺中市政府教育局,"4,501,863"
113/01/24,國民及學前教育行政及督導 - 對直轄市政府之補助,112學年度高級中等學校穩定就學措施計畫,臺中市政府教育局,"260,165"
113/01/24,國民及學前教育行政及督導 - 對直轄市政府之補助,大額通報教補1月26日-職場教保服務中心112學年度第2學期學費差額補助經費,臺中市政府教育局,"49,829,170"
113/01/24,國民及學前教育行政及督導 - 對直轄市政府之補助,112學年度國民中小學原住民族語文協同人員經費,臺北市政府教育局,"4,745,089"
113/01/24,國民及學前教育行政及督導 - 對直轄市政府之補助,大額通報教補1月26日-職場教保服務中心112學年度第2學期學費差額補助經費,臺北市政府教育局,"93,490,179"
113/01/24,國民及學前教育行政及督導 - 對直轄市政府之補助,112年度偏遠地區學校及非山非市學校(非原住民學校)設施設備計畫第3期款,臺南市政府教育局,"16,068,733"
113/01/24,國民及學前教育行政及督導 - 對特種基金之補助,112學年度高級中等學校推動家庭教育暨親職教育工作實施計畫經費,國立台東女子高級中學,"14,000"
113/01/24,國民及學前教育行政及督導 - 對特種基金之補助,112學年度高級中等學校推動家庭教育暨親職教育工作實施計畫經費,國立基隆女子高級中學,"23,000"
113/01/24,國民及學前教育行政及督導 - 對特種基金之補助,112學年度高級中等學校推動家庭教育暨親職教育工作實施計畫經費,國立新港藝術高級中學,"23,000"
113/01/24,國民及學前教育行政及督導 - 對私校之獎助,113年執行強化校園安全防護工作經費,新竹縣私立義民高級中學,"50,000"
113/01/24,國民及學前教育行政及督導 - 對私校之獎助,112學年度高級中等學校推動家庭教育暨親職教育工作實施計畫經費,彰化縣私立精誠高級中學,"15,000"
113/01/24,國民及學前教育行政及督導 - 對特種基金之補助,112學年度技術型及綜合型高級中等學校十二年國民基本教育課程綱要前導學校工作計畫,國立大湖高級農工職業學校,"550,000"
113/01/24,國民及學前教育行政及督導 - 對特種基金之補助,112學年度第2學期發展及改進原住民技職教育經費,國立內埔高級農工職業學校,"250,000"
113/01/24,國民及學前教育行政及督導 - 對特種基金之補助,112學年度技術型及綜合型高級中等學校十二年國民基本教育課程綱要前導學校工作計畫,國立台東高級商業職業學校,"625,000"
113/01/24,國民及學前教育行政及督導 - 對特種基金之補助,112學年度技術型及綜合型高級中等學校十二年國民基本教育課程綱要前導學校工作計畫,國立玉井高級工商職業學校,"300,000"
113/01/24,國民及學前教育行政及督導 - 投資,113年執行強化校園安全防護工作經費,國立白河高級商工職業學校,"70,000"
113/01/24,國民及學前教育行政及督導 - 對特種基金之補助,112學年度高級中等學校推動家庭教育暨親職教育工作實施計畫經費,國立成功商業水產職業學校,"14,000"
113/01/24,國民及學前教育行政及督導 - 投資,歷史建築國立花蓮高級農業職業學校舊校長宿舍修復及再利用規劃設計(含因應計畫),國立花蓮高級農業職業學校,"918,000"
113/01/24,國民及學前教育行政及督導 - 對特種基金之補助,112學年度高級中等學校推動家庭教育暨親職教育工作實施計畫經費,國立南投高級商業職業學校,"23,000"
113/01/24,國民及學前教育行政及督導 - 對特種基金之補助,112學年度增置國民中小學閱讀推動教師計畫第2期款,國立南科國際實驗高級中學,"137,600"
113/01/24,國民及學前教育行政及督導 - 對特種基金之補助,112學年度高級中等學校推動家庭教育暨親職教育工作實施計畫經費,國立恆春高級工商職業學校,"18,000"
113/01/24,國民及學前教育行政及督導 - 對特種基金之補助,112學年度增置國民中小學閱讀推動教師計畫第2期款,國立政治大學附屬高級中學,"72,000"
113/01/24,國民及學前教育行政及督導 - 對特種基金之補助,113年度改善或充實國立高級中等學校一般建築及設備,國立曾文高級農工職業學校,"2,000,000"
113/01/24,國民及學前教育行政及督導 - 投資,113年執行強化校園安全防護工作經費,國立曾文高級農工職業學校,"100,000"
113/01/24,國民及學前教育行政及督導 - 對特種基金之補助,112學年度技術型及綜合型高級中等學校十二年國民基本教育課程綱要前導學校工作計畫,國立嘉義高級家事職業學校,"600,000"
113/01/24,國民及學前教育行政及督導 - 對國內團體之捐助,113年度國樂冬令營活動經費,雲林縣孤挺花家庭關懷協會,"50,000"
113/01/24,國民及學前教育行政及督導 - 對私校之獎助,112學年度高級中等學校推動家庭教育暨親職教育工作實施計畫經費,嘉義市私立宏仁女子高級中學,"23,000"
113/01/24,國民及學前教育行政及督導 - 對特種基金之補助,112學年度高級中等學校推動家庭教育暨親職教育工作實施計畫經費,國立中山大學附屬國光高級中學,"23,000"
113/01/24,國民及學前教育行政及督導 - 對特種基金之補助,113年度改善或充實國立高級中等學校一般建築及設備,國立斗六高級家事商業職業學校,"2,000,000"
113/01/24,國民及學前教育行政及督導 - 對特種基金之補助,112學年度技術型及綜合型高級中等學校十二年國民基本教育課程綱要前導學校工作計畫,國立台南高級海事水產職業學校,"750,000"
113/01/24,國民及學前教育行政及督導 - 對私校之獎助,113年執行強化校園安全防護工作經費,臺灣省雲林縣私立巨人高級中學,"70,000"
113/01/24,國民及學前教育行政及督導 - 對私校之獎助,112學年度高級中等學校推動家庭教育暨親職教育工作實施計畫經費,臺東縣私立公東高級工業職業學校,"23,000"
113/01/24,國民及學前教育行政及督導 - 對私校之獎助,112學年度高級中等學校穩定就學措施計畫,臺灣省台南市私立南英高級商工職業學校,"78,824"
113/01/24,國民及學前教育行政及督導 - 對私校之獎助,113年執行強化校園安全防護工作經費,臺灣省台南市私立南英高級商工職業學校,"79,000"
113/01/24,國民及學前教育行政及督導 - 對私校之獎助,113年執行強化校園安全防護工作經費,揚子學校財團法人雲林縣揚子高級中等學校,"94,500"
113/01/24,國民及學前教育行政及督導 - 對國內團體之捐助,113年度全國特殊教育學校藝文活動巡演經費,社團法人中華民國全國特殊教育學校家長協會,"300,000"
113/01/24,國民及學前教育行政及督導 - 對私校之獎助,112學年度高級中等學校穩定就學措施計畫,上騰學校財團法人花蓮縣上騰高級工商職業學校,"160,000"
113/01/24,國民及學前教育行政及督導 - 對私校之獎助,112學年度高級中等學校推動家庭教育暨親職教育工作實施計畫經費,上騰學校財團法人花蓮縣上騰高級工商職業學校,"23,000"
113/01/24,國民及學前教育行政及督導 - 對私校之獎助,112學年度高級中等學校穩定就學措施計畫,財團法人台灣省苗栗縣私立中興高級商工職業學校,"160,000"
113/01/25,國民及學前教育行政及督導 - 對各縣市政府之補助,112學年度增置國民中小學圖書館閱讀推動教師計畫第2期款,宜蘭縣政府,"1,022,624"
113/01/25,國民及學前教育行政及督導 - 對各縣市政府之補助,112學年度國民中學生涯發展教育計畫(含出版品印製)第2期款,宜蘭縣政府,"902,212"
113/01/25,國民及學前教育行政及督導 - 對各縣市政府之補助,非營利幼兒園112學年度學費差額補助第2期款,宜蘭縣政府,"49,827,724"
113/01/25,國民及學前教育行政及督導 - 對各縣市政府之補助,112學年度高級中等學校本土語文(閩南語、閩東語、客語文)課程開課經費,宜蘭縣政府,"58,513"
113/01/25,國民及學前教育行政及督導 - 對各縣市政府之補助,112學年度國民中小學本土教育整體推動方案暨教師及學生多元相關活動第2期款,花蓮縣政府,"2,661,128"
113/01/25,國民及學前教育行政及督導 - 對各縣市政府之補助,112學年度國民中學技藝教育競賽及成果發表活動經費,金門縣政府,"281,134"
113/01/25,國民及學前教育行政及督導 - 對各縣市政府之補助,112學年度國民中學生涯發展教育計畫(含出版品印製)第2期款,金門縣政府,"211,540"
113/01/25,國民及學前教育行政及督導 - 對各縣市政府之補助,112學年度本土語文指導員第2期款,金門縣政府,"369,600"
113/01/25,國民及學前教育行政及督導 - 對各縣市政府之補助,112學年度國民中小學本土教育整體推動方案暨教師及學生多元相關活動第2期款,金門縣政府,"1,050,853"
113/01/25,國民及學前教育行政及督導 - 對直轄市政府之補助,112學年度國際教育教師共備社群計畫,桃園市政府,"72,000"
113/01/25,國民及學前教育行政及督導 - 對各縣市政府之補助,112學年度國民中小學學生學習扶助計畫第2期款,基隆市政府,"10,792,530"
113/01/25,國民及學前教育行政及督導 - 對各縣市政府之補助,職場教保服務中心112學年度第2學期學費差額補助經費,基隆市政府,"14,956,094"
113/01/25,國民及學前教育行政及督導 - 對各縣市政府之補助,112學年度辦理中輟生預防追蹤及復學輔導工作實施計畫,基隆市政府,"2,811,643"
113/01/25,國民及學前教育行政及督導 - 對各縣市政府之補助,雲林考區113年國中教育會考試務籌辦計畫第2期款,雲林縣政府,"4,125,340"
113/01/25,國民及學前教育行政及督導 - 對各縣市政府之補助,雲林考區113年國中教育會考試務籌辦計畫第2期款,雲林縣政府,"155,000"
113/01/25,國民及學前教育行政及督導 - 對各縣市政府之補助,112學年度國民中小學安全教育重點學校計畫第2期款,雲林縣政府,"291,600"
113/01/25,國民及學前教育行政及督導 - 對各縣市政府之補助,112學年度國際教育教師共備社群計畫,新竹市政府,"24,000"
113/01/25,國民及學前教育行政及督導 - 對各縣市政府之補助,112學年度實施戶外教育與海洋教育計畫第2期款,新竹縣政府,"2,918,129"
113/01/25,國民及學前教育行政及督導 - 對各縣市政府之補助,112學年度實施戶外教育與海洋教育計畫第2期款,新竹縣政府,"60,292"
113/01/25,國民及學前教育行政及督導 - 對各縣市政府之補助,112學年度國際教育教師共備社群計畫,新竹縣政府,"24,000"
113/01/25,國民及學前教育行政及督導 - 對各縣市政府之補助,112學年度學習區完全免試國中提升學習品質計畫第2期款,嘉義市政府,"356,685"
113/01/25,國民及學前教育行政及督導 - 對各縣市政府之補助,112學年度國際教育教師共備社群計畫,嘉義市政府,"26,400"
113/01/25,國民及學前教育行政及督導 - 對各縣市政府之補助,112學年度學習區完全免試國中提升學習品質計畫第2期款,嘉義縣政府,"544,656"
113/01/25,國民及學前教育行政及督導 - 對各縣市政府之補助,非營利幼兒園112學年度學費差額補助第2期款,嘉義縣政府,"17,606,062"
113/01/25,國民及學前教育行政及督導 - 對各縣市政府之補助,112學年度國民中學技藝教育競賽及成果發表活動經費,彰化縣政府,"1,190,200"
113/01/25,國民及學前教育行政及督導 - 對各縣市政府之補助,113年度國民中小學閱讀推動計畫經費,彰化縣政府,"893,256"
113/01/25,國民及學前教育行政及督導 - 對各縣市政府之補助,112學年度下學期中央課程與教學輔導諮詢教師團隊代理代課費暨課程與教學補助經費第2期款,彰化縣政府,"707,440"
113/01/25,國民及學前教育行政及督導 - 對各縣市政府之補助,112學年度國際教育教師共備社群計畫,彰化縣政府,"52,800"
113/01/25,國民及學前教育行政及督導 - 對各縣市政府之補助,112學年度實施戶外教育與海洋教育計畫第2期款,臺東縣政府,"3,718,980"
113/01/25,國民及學前教育行政及督導 - 對各縣市政府之補助,112學年度實施戶外教育與海洋教育計畫第2期款,臺東縣政府,"292,140"
113/01/25,國民及學前教育行政及督導 - 對各縣市政府之補助,112學年度教育優先區計畫(除補助項目四)第2期款,澎湖縣政府,"1,959,757"
113/01/25,國民及學前教育行政及督導 - 對各縣市政府之補助,112學年度教育優先區計畫(除補助項目四)第2期款,澎湖縣政府,"44,409"
113/01/25,國民及學前教育行政及督導 - 對國內團體之捐助,113年度民間團體辦理國民中小學閱讀推動計畫經費,新竹市故事協會,"456,000"
113/01/25,國民及學前教育行政及督導 - 對直轄市政府之補助,112學年度偏遠地區學校國中合理教師員額事項經費第2期款,高雄市政府教育局,"20,999,104"
113/01/25,國民及學前教育行政及督導 - 對直轄市政府之補助,112學年度偏遠地區學校國中合理教師員額事項經費第2期款,高雄市政府教育局,"3,640,896"
113/01/25,國民及學前教育行政及督導 - 對直轄市政府之補助,112學年度偏遠地區學校國中增置專長教師員額所需經費第2期款,高雄市政府教育局,"2,402,400"
113/01/25,國民及學前教育行政及督導 - 對直轄市政府之補助,112學年度國際教育教師共備社群計畫,高雄市政府教育局,"16,000"
113/01/25,國民及學前教育行政及督導 - 對特種基金之補助,113-114年度國立高級中等學校汙水及排水系統建置暨改善工程計畫,國立中興高級中學,"3,600,000"
113/01/25,國民及學前教育行政及督導 - 對特種基金之補助,113年度公立高級中等學校充實行政人力計畫,國立斗六高級中學,"300,000"
113/01/25,國民及學前教育行政及督導 - 投資,113年度充實高級中等學校圖書資訊-採購圖書,國立北門高級中學,"60,000"
113/01/25,國民及學前教育行政及督導 - 對特種基金之補助,112學年度實施十二年國民基本教育課程新增鐘點費第2期款,國立北港高級中學,"487,200"
113/01/25,國民及學前教育行政及督導 - 對特種基金之補助,113年度公立高級中等學校充實行政人力計畫,國立台東高級中學,"580,359"
113/01/25,國民及學前教育行政及督導 - 對特種基金之補助,112學年度實施十二年國民基本教育課程新增鐘點費第2期款,國立竹山高級中學,"554,400"
113/01/25,國民及學前教育行政及督導 - 對特種基金之補助,113年度公立高級中等學校充實行政人力計畫,國立竹東高級中學,"300,000"
113/01/25,國民及學前教育行政及督導 - 對特種基金之補助,113年度公立高級中等學校充實行政人力計畫,國立和美實驗學校,"300,000"
113/01/25,國民及學前教育行政及督導 - 對特種基金之補助,113年度公立高級中等學校充實行政人力計畫,國立岡山高級中學,"580,359"
113/01/25,國民及學前教育行政及督導 - 對特種基金之補助,113年度公立高級中等學校充實行政人力計畫,國立虎尾高級中學,"580,359"
113/01/25,國民及學前教育行政及督導 - 對特種基金之補助,113年度公立高級中等學校充實行政人力計畫,國立屏東高級中學,"300,000"
113/01/25,國民及學前教育行政及督導 - 對特種基金之補助,113年度公立高級中等學校充實行政人力計畫,國立後壁高級中學,"580,359"
113/01/25,國民及學前教育行政及督導 - 投資,113年度充實高級中等學校圖書資訊-採購圖書,國立後壁高級中學,"60,000"
113/01/25,國民及學前教育行政及督導 - 對特種基金之補助,113年度公立高級中等學校充實行政人力計畫,國立苑裡高級中學,"580,359"
113/01/25,國民及學前教育行政及督導 - 對特種基金之補助,113年度公立高級中等學校充實行政人力計畫,國立苗栗高級中學,"580,359"
113/01/25,國民及學前教育行政及督導 - 對特種基金之補助,112學年度實施十二年國民基本教育課程新增鐘點費第2期款,國立苗栗高級中學,"544,200"
113/01/25,國民及學前教育行政及督導 - 對特種基金之補助,112學年度高級中等學校原住民族語課程開課經費,國立員林高級中學,"55,040"
113/01/25,國民及學前教育行政及督導 - 對特種基金之補助,113年度公立高級中等學校充實行政人力計畫,國立員林高級中學,"300,000"
113/01/25,國民及學前教育行政及督導 - 對特種基金之補助,112學年度高級中等學校臺灣手語課程開課經費,國立馬公高級中學,"12,722"
113/01/25,國民及學前教育行政及督導 - 對特種基金之補助,113年度公立高級中等學校充實行政人力計畫,國立基隆高級中學,"300,000"
113/01/25,國民及學前教育行政及督導 - 對特種基金之補助,113-114年度國立高級中等學校汙水及排水系統建置暨改善工程計畫,國立基隆高級中學,"4,000,000"
113/01/25,國民及學前教育行政及督導 - 對特種基金之補助,112學年度高級中等學校臺灣手語課程開課經費,國立善化高級中學,"12,722"
113/01/25,國民及學前教育行政及督導 - 對特種基金之補助,113-114年度國立高級中等學校汙水及排水系統建置暨改善工程計畫,國立善化高級中學,"3,500,000"
113/01/25,國民及學前教育行政及督導 - 投資,113年度充實高級中等學校圖書資訊-採購圖書,國立善化高級中學,"60,000"
113/01/25,國民及學前教育行政及督導 - 對特種基金之補助,113年度公立高級中等學校充實行政人力計畫,國立新化高級中學,"580,359"
113/01/25,國民及學前教育行政及督導 - 投資,113年度充實高級中等學校圖書資訊-採購圖書,國立新化高級中學,"60,000"
113/01/25,國民及學前教育行政及督導 - 對特種基金之補助,113年度公立高級中等學校充實行政人力計畫,國立新竹高級中學,"580,359"
113/01/25,國民及學前教育行政及督導 - 對特種基金之補助,113-114年度國立高級中等學校汙水及排水系統建置暨改善工程計畫,國立新竹高級中學,"800,000"
113/01/25,國民及學前教育行政及督導 - 對特種基金之補助,113年度公立高級中等學校充實行政人力計畫,國立新營高級中學,"580,359"
113/01/25,國民及學前教育行政及督導 - 投資,113年度充實高級中等學校圖書資訊-採購圖書,國立新營高級中學,"60,000"
113/01/25,國民及學前教育行政及督導 - 投資,113年度充實高級中等學校圖書資訊-採購圖書,國立新豐高級中學,"60,000"
113/01/25,國民及學前教育行政及督導 - 對特種基金之補助,113年度公立高級中等學校充實行政人力計畫,國立嘉義高級中學,"580,359"
113/01/25,國民及學前教育行政及督導 - 對特種基金之補助,113年度公立高級中等學校充實行政人力計畫,國立鳳山高級中學,"580,359"
113/01/25,國民及學前教育行政及督導 - 對特種基金之補助,112學年度實施十二年國民基本教育課程新增鐘點費第2期款,國立鳳新高級中學,"1,084,200"
113/01/25,國民及學前教育行政及督導 - 對特種基金之補助,113年度公立高級中等學校充實行政人力計畫,國立潮州高級中學,"580,359"
113/01/25,國民及學前教育行政及督導 - 對特種基金之補助,113年度公立高級中等學校充實行政人力計畫,國立羅東高級中學,"580,359"
113/01/25,國民及學前教育行政及督導 - 對直轄市政府之補助,112學年度辦理中輟生預防追蹤及復學輔導工作實施計畫,新北市政府教育局,"18,142,876"
113/01/25,國民及學前教育行政及督導 - 對直轄市政府之補助,112學年度國際教育教師共備社群計畫,新北市政府教育局,"21,000"
113/01/25,國民及學前教育行政及督導 - 對直轄市政府之補助,112學年度國民中學生涯發展教育計畫(含出版品印製)第2期款,臺中市政府教育局,"3,575,120"
113/01/25,國民及學前教育行政及督導 - 對直轄市政府之補助,112學年度國民中小學媒體素養教育基地學校計畫第2期款,臺中市政府教育局,"144,000"
113/01/25,國民及學前教育行政及督導 - 對直轄市政府之補助,112學年度國民中小學安全教育重點學校計畫第2期款,臺中市政府教育局,"144,000"
113/01/25,國民及學前教育行政及督導 - 對直轄市政府之補助,112學年度辦理中輟生預防追蹤及復學輔導工作實施計畫,臺中市政府教育局,"6,179,383"
113/01/25,國民及學前教育行政及督導 - 對直轄市政府之補助,112學年度國際教育教師共備社群計畫,臺中市政府教育局,"63,000"
113/01/25,國民及學前教育行政及督導 - 對直轄市政府之補助,112學年度國民中小學安全教育重點學校計畫第2期款,臺北市政府教育局,"252,000"
113/01/25,國民及學前教育行政及督導 - 對直轄市政府之補助,省躬國小新建公共化幼兒園第2期款,臺南市政府教育局,"19,383,000"
113/01/25,國民及學前教育行政及督導 - 對私校之獎助,112學年度高級中等學校臺灣手語課程開課經費,雲林縣福智高級中學,"13,094"
113/01/25,國民及學前教育行政及督導 - 對國內團體之捐助,113年度民間團體辦理國民中小學閱讀推動計畫經費,彰化縣故事閱讀協會,"592,000"
113/01/25,國民及學前教育行政及督導 - 對國內團體之捐助,"113上半年獎助民間辦理高級中等以下教育階段特殊教育活動經費(289,000、343,500)",中華民國腦性麻痺協會,"289,000"
113/01/25,國民及學前教育行政及督導 - 對國內團體之捐助,"113上半年獎助民間辦理高級中等以下教育階段特殊教育活動經費(289,000、343,500)",中華民國腦性麻痺協會,"343,500"
113/01/25,國民及學前教育行政及督導 - 對特種基金之補助,112學年度高級中等學校本土語文(閩南語、閩東語、客語文)課程開課經費,國立台東女子高級中學,"184,690"
113/01/25,國民及學前教育行政及督導 - 對特種基金之補助,112學年度高級中等學校原住民族語課程開課經費,國立台東女子高級中學,"252,910"
113/01/25,國民及學前教育行政及督導 - 對特種基金之補助,112學年度高級中等學校臺灣手語課程開課經費,國立台東女子高級中學,"25,442"
113/01/25,國民及學前教育行政及督導 - 對特種基金之補助,113年度公立高級中等學校充實行政人力計畫,國立台南女子高級中學,"580,359"
113/01/25,國民及學前教育行政及督導 - 對特種基金之補助,113-114年度國立高級中等學校汙水及排水系統建置暨改善工程計畫,國立台南女子高級中學,"12,380,000"
113/01/25,國民及學前教育行政及督導 - 投資,113年度充實高級中等學校圖書資訊-採購圖書,國立台南女子高級中學,"60,000"
113/01/25,國民及學前教育行政及督導 - 對特種基金之補助,113年度公立高級中等學校充實行政人力計畫,國立台南家齊高級中學,"580,359"
113/01/25,國民及學前教育行政及督導 - 對特種基金之補助,113年度公立高級中等學校充實行政人力計畫,國立台南第一高級中學,"300,000"
113/01/25,國民及學前教育行政及督導 - 對特種基金之補助,112學年度實施十二年國民基本教育課程新增鐘點費第2期款,國立卓蘭高級中等學校,"370,440"
113/01/25,國民及學前教育行政及督導 - 對特種基金之補助,112學年度國際教育教師共備社群計畫,國立東華大學附設實小,"30,000"
113/01/25,國民及學前教育行政及督導 - 對特種基金之補助,113年度公立高級中等學校充實行政人力計畫,國立屏東女子高級中學,"580,359"
113/01/25,國民及學前教育行政及督導 - 對特種基金之補助,113-114年度國立高級中等學校汙水及排水系統建置暨改善工程計畫,國立屏東女子高級中學,"3,400,000"
113/01/25,國民及學前教育行政及督導 - 對特種基金之補助,113年度公立高級中等學校充實行政人力計畫,國立基隆女子高級中學,"580,359"
113/01/25,國民及學前教育行政及督導 - 對特種基金之補助,113-114年度國立高級中等學校汙水及排水系統建置暨改善工程計畫,國立基隆女子高級中學,"1,800,000"
113/01/25,國民及學前教育行政及督導 - 對特種基金之補助,112學年度國際教育教師共備社群計畫,國立新港藝術高級中學,"30,000"
113/01/25,國民及學前教育行政及督導 - 對特種基金之補助,113年度公立高級中等學校充實行政人力計畫,國立嘉義女子高級中學,"580,359"
113/01/25,國民及學前教育行政及督導 - 對特種基金之補助,113年度公立高級中等學校充實行政人力計畫,國立彰化女子高級中學,"580,359"
113/01/25,國民及學前教育行政及督導 - 對特種基金之補助,112學年度增置國民中小學圖書館閱讀推動教師計畫第2期款,國立臺東大學附設實小,"65,600"
113/01/25,國民及學前教育行政及督導 - 對私校之獎助,112學年度實施十二年國民基本教育課程新增鐘點費第2期款,高雄市私立正義高級中學,"67,200"
113/01/25,國民及學前教育行政及督導 - 對私校之獎助,112學年度高級中等學校臺灣手語課程開課經費,嘉義縣私立協同高級中學,"15,230"
113/01/25,國民及學前教育行政及督導 - 對私校之獎助,112學年度高級中等學校臺灣手語課程開課經費,臺南市私立南光高級中學,"12,610"
113/01/25,國民及學前教育行政及督導 - 對私校之獎助,112學年度實施十二年國民基本教育課程新增鐘點費第2期款,臺南市私立港明高級中學,"251,400"
113/01/25,國民及學前教育行政及督導 - 對特種基金之補助,112學年度高級中等學校原住民族語課程開課經費,國立土庫高級商工職業學校,"25,219"
113/01/25,國民及學前教育行政及督導 - 對特種基金之補助,113年度公立高級中等學校充實行政人力計畫,國立土庫高級商工職業學校,"580,359"
113/01/25,國民及學前教育行政及督導 - 投資,113年度充實高級中等學校圖書資訊-採購圖書,國立北門高級農工職業學校,"60,000"
113/01/25,國民及學前教育行政及督導 - 對特種基金之補助,113年度公立高級中等學校充實行政人力計畫,國立北港高級農工職業學校,"580,359"
113/01/25,國民及學前教育行政及督導 - 對特種基金之補助,113年度公立高級中等學校充實行政人力計畫,國立台南高級商業職業學校,"580,359"
113/01/25,國民及學前教育行政及督導 - 對特種基金之補助,112學年度高級中等學校原住民族語課程開課經費,國立民雄高級農工職業學校,"24,686"
113/01/25,國民及學前教育行政及督導 - 對特種基金之補助,112學年度高級中等學校原住民族語課程開課經費,國立永靖高級工業職業學校,"25,220"
113/01/25,國民及學前教育行政及督導 - 對特種基金之補助,112學年度高級中等學校臺灣手語課程開課經費,國立永靖高級工業職業學校,"122,811"
113/01/25,國民及學前教育行政及督導 - 對特種基金之補助,113年度公立高級中等學校充實行政人力計畫,國立玉井高級工商職業學校,"580,359"
113/01/25,國民及學前教育行政及督導 - 投資,113年度充實高級中等學校圖書資訊-採購圖書,國立玉井高級工商職業學校,"60,000"
113/01/25,國民及學前教育行政及督導 - 對特種基金之補助,113-114年度國立高級中等學校汙水及排水系統建置暨改善工程計畫,國立白河高級商工職業學校,"4,000,000"
113/01/25,國民及學前教育行政及督導 - 對特種基金之補助,113年度公立高級中等學校充實行政人力計畫,國立秀水高級工業職業學校,"580,359"
113/01/25,國民及學前教育行政及督導 - 對特種基金之補助,113年度公立高級中等學校充實行政人力計畫,國立宜蘭高級商業職業學校,"580,359"
113/01/25,國民及學前教育行政及督導 - 對特種基金之補助,113-114年度國立高級中等學校汙水及排水系統建置暨改善工程計畫,國立金門高級農工職業學校,"4,000,000"
113/01/25,國民及學前教育行政及督導 - 對特種基金之補助,113-114年度國立高級中等學校汙水及排水系統建置暨改善工程計畫,國立南投高級商業職業學校,"4,800,000"
113/01/25,國民及學前教育行政及督導 - 對特種基金之補助,113年度公立高級中等學校充實行政人力計畫,國立屏東高級工業職業學校,"300,000"
113/01/25,國民及學前教育行政及督導 - 對特種基金之補助,113年度公立高級中等學校充實行政人力計畫,國立恆春高級工商職業學校,"580,359"
113/01/25,國民及學前教育行政及督導 - 對特種基金之補助,113年度公立高級中等學校充實行政人力計畫,國立政治大學附屬高級中學,"1,160,719"
113/01/25,國民及學前教育行政及督導 - 對特種基金之補助,113-114年度國立高級中等學校汙水及排水系統建置暨改善工程計畫,國立苗栗高級農工職業學校,"3,000,000"
113/01/25,國民及學前教育行政及督導 - 對特種基金之補助,113-114年度國立高級中等學校汙水及排水系統建置暨改善工程計畫,國立員林高級農工職業學校,"2,500,000"
113/01/25,國民及學前教育行政及督導 - 對特種基金之補助,113年度公立高級中等學校充實行政人力計畫,國立草屯高級商工職業學校,"300,000"
113/01/25,國民及學前教育行政及督導 - 對特種基金之補助,112學年度高級中等學校原住民族語課程開課經費,國立曾文高級農工職業學校,"12,610"
113/01/25,國民及學前教育行政及督導 - 對特種基金之補助,112學年度高級中等學校臺灣手語課程開課經費,國立曾文高級農工職業學校,"7,430"
113/01/25,國民及學前教育行政及督導 - 投資,113年度充實高級中等學校圖書資訊-採購圖書,國立曾文高級農工職業學校,"60,000"
113/01/25,國民及學前教育行政及督導 - 對特種基金之補助,112學年度高級中等學校臺灣手語課程開課經費,國立華南高級商業職業學校,"7,802"
113/01/25,國民及學前教育行政及督導 - 投資,113年度充實高級中等學校圖書資訊-採購圖書,國立新化高級工業職業學校,"60,000"
113/01/25,國民及學前教育行政及督導 - 對特種基金之補助,112學年度高級中等學校原住民族語課程開課經費,國立新竹高級工業職業學校,"77,604"
113/01/25,國民及學前教育行政及督導 - 對特種基金之補助,113年度公立高級中等學校充實行政人力計畫,國立新竹高級商業職業學校,"580,359"
113/01/25,國民及學前教育行政及督導 - 對特種基金之補助,113年度公立高級中等學校充實行政人力計畫,國立新營高級工業職業學校,"300,000"
113/01/25,國民及學前教育行政及督導 - 對特種基金之補助,113-114年度國立高級中等學校汙水及排水系統建置暨改善工程計畫,國立新營高級工業職業學校,"7,400,000"
113/01/25,國民及學前教育行政及督導 - 投資,113年度充實高級中等學校圖書資訊-採購圖書,國立新營高級工業職業學校,"60,000"
113/01/25,國民及學前教育行政及督導 - 對特種基金之補助,113年度公立高級中等學校充實行政人力計畫,國立嘉義高級家事職業學校,"580,359"
113/01/25,國民及學前教育行政及督導 - 對特種基金之補助,113年度公立高級中等學校充實行政人力計畫,國立嘉義高級商業職業學校,"580,359"
113/01/25,國民及學前教育行政及督導 - 對特種基金之補助,112學年度高級中等學校臺灣手語課程開課經費,國立彰化高級商業職業學校,"88,004"
113/01/25,國民及學前教育行政及督導 - 對特種基金之補助,113年度公立高級中等學校充實行政人力計畫,國立彰化高級商業職業學校,"580,359"
113/01/25,國民及學前教育行政及督導 - 對特種基金之補助,113年度公立高級中等學校充實行政人力計畫,國立暨南大學附屬高級中學,"580,359"
113/01/25,國民及學前教育行政及督導 - 對特種基金之補助,112學年度國際教育教師共備社群計畫,國立臺中教育大學附設實小,"30,000"
113/01/25,國民及學前教育行政及督導 - 投資,113年執行強化校園安全防護工作經費,國立臺南大學附屬啟聰學校,"46,000"
113/01/25,國民及學前教育行政及督導 - 對特種基金之補助,113年度公立高級中等學校充實行政人力計畫,國立鳳山高級商工職業學校,"580,371"
113/01/25,國民及學前教育行政及督導 - 對特種基金之補助,113-114年度國立高級中等學校汙水及排水系統建置暨改善工程計畫,國立羅東高級工業職業學校,"2,000,000"
113/01/25,國民及學前教育行政及督導 - 對國內團體之捐助,113年度民間團體辦理國民中小學閱讀推動計畫經費,財團法人台灣閱讀文化基金會,"3,656,000"
113/01/25,國民及學前教育行政及督導 - 對特種基金之補助,113年度國民中小學閱讀推動計畫經費,國立中山大學附屬國光高級中學,"20,000"
113/01/25,國民及學前教育行政及督導 - 對特種基金之補助,113年度公立高級中等學校充實行政人力計畫,國立中央大學附屬中壢高級中學,"580,359"
113/01/25,國民及學前教育行政及督導 - 對特種基金之補助,113年度公立高級中等學校充實行政人力計畫,國立斗六高級家事商業職業學校,"300,000"
113/01/25,國民及學前教育行政及督導 - 對特種基金之補助,112學年度高級中等學校原住民族語課程開課經費,國立東港高級海事水產職業學校,"29,950"
113/01/25,國民及學前教育行政及督導 - 對特種基金之補助,113年度公立高級中等學校充實行政人力計畫,國立東港高級海事水產職業學校,"580,359"
113/01/25,國民及學前教育行政及督導 - 對特種基金之補助,113-114年度國立高級中等學校汙水及排水系統建置暨改善工程計畫,國立東港高級海事水產職業學校,"700,000"
113/01/25,國民及學前教育行政及督導 - 對特種基金之補助,112學年度高級中等學校原住民族語課程開課經費,國立員林高級家事商業職業學校,"37,830"
113/01/25,國民及學前教育行政及督導 - 對特種基金之補助,113年度公立高級中等學校充實行政人力計畫,國立員林高級家事商業職業學校,"580,359"
113/01/25,國民及學前教育行政及督導 - 對特種基金之補助,113年度公立高級中等學校充實行政人力計畫,國立曾文高級家事商業職業學校,"580,359"
113/01/25,國民及學前教育行政及督導 - 投資,113年度充實高級中等學校圖書資訊-採購圖書,國立曾文高級家事商業職業學校,"60,000"
113/01/25,國民及學前教育行政及督導 - 對特種基金之補助,112學年度高級中等學校原住民族語課程開課經費,國立頭城高級家事商業職業學校,"103,410"
113/01/25,國民及學前教育行政及督導 - 對特種基金之補助,113年度公立高級中等學校充實行政人力計畫,國立頭城高級家事商業職業學校,"580,359"
113/01/25,國民及學前教育行政及督導 - 對私校之獎助,112學年度實施十二年國民基本教育課程新增鐘點費第2期款,財團法人宜蘭縣私立慧燈高級中學,"134,400"
113/01/25,國民及學前教育行政及督導 - 對學生之獎助,112學年度第1學期實用技能學程學生免學雜費補助,高雄縣私立高苑高級工商職業學校,"25,703"
113/01/25,國民及學前教育行政及督導 - 對私校之獎助,112學年度實施十二年國民基本教育課程新增鐘點費第2期款,高雄縣私立高英高級工商職業學校,"100,800"
113/01/25,國民及學前教育行政及督導 - 對私校之獎助,112學年度實施十二年國民基本教育課程新增鐘點費第2期款,高雄縣私立旗美高級商工職業學校,"25,200"
113/01/25,國民及學前教育行政及督導 - 對特種基金之補助,113年度公立高級中等學校充實行政人力計畫,國立新竹科學園區實驗高級中等學校,"580,359"
113/01/25,國民及學前教育行政及督導 - 對私校之獎助,112學年度實施十二年國民基本教育課程新增鐘點費第2期款,財團法人台南市亞洲高級餐旅職業學校,"25,200"
113/01/25,國民及學前教育行政及督導 - 對私校之獎助,112學年度實施十二年國民基本教育課程新增鐘點費第2期款,方濟會學校財團法人臺南市黎明高級中學,"159,600"
113/01/25,國民及學前教育行政及督導 - 對私校之獎助,112學年度實施十二年國民基本教育課程新增鐘點費第2期款,財團法人台灣省宜蘭縣私立中道高級中學,"201,600"
113/01/25,國民及學前教育行政及督導 - 對特種基金之補助,113-114年度國立高級中等學校汙水及排水系統建置暨改善工程計畫,國立中興大學附屬台中高級農業職業學校,"2,500,000"
113/01/25,國民及學前教育行政及督導 - 對特種基金之補助,113年度公立高級中等學校充實行政人力計畫,國立彰化師範大學附屬高級工業職業學校,"300,000"
113/01/25,國民及學前教育行政及督導 - 對私校之獎助,112學年度高級中等學校臺灣手語課程開課經費,揚子學校財團法人雲林縣揚子高級中等學校,"42,688"
113/01/25,國民及學前教育行政及督導 - 對私校之獎助,112學年度實施十二年國民基本教育課程新增鐘點費第2期款,揚子學校財團法人雲林縣揚子高級中等學校,"159,600"
113/01/25,國民及學前教育行政及督導 - 對特種基金之補助,112學年度國際教育教師共備社群計畫,國立臺北科技大學附屬桃園農工高級中等學校,"26,300"
113/01/25,國民及學前教育行政及督導 - 對特種基金之補助,112學年度高級中等學校原住民族語課程開課經費,國立臺灣海洋大學附屬基隆海事高級中等學校,"60,334"
113/01/25,國民及學前教育行政及督導 - 對私校之獎助,112學年度實施十二年國民基本教育課程新增鐘點費第2期款,上騰學校財團法人花蓮縣上騰高級工商職業學校,"42,000"
113/01/25,國民及學前教育行政及督導 - 對私校之獎助,112學年度實施十二年國民基本教育課程新增鐘點費第2期款,中山學校財團法人高雄市中山高級工商職業學校,"949,200"
113/01/26,國民及學前教育行政及督導 - 對各縣市政府之補助,112學年度國民中小學安全教育重點學校計畫第2期款,宜蘭縣政府,"475,200"
113/01/26,國民及學前教育行政及督導 - 對各縣市政府之補助,113學年度各就學區高級中等學校免試入學委員會經費（第二期款）,宜蘭縣政府,"840,000"
113/01/26,國民及學前教育行政及督導 - 對各縣市政府之補助,113年度補助各地方政府設置學生輔導諮商中心經費,宜蘭縣政府,"750,417"
113/01/26,國民及學前教育行政及督導 - 對各縣市政府之補助,113年度補助各地方政府設置學生輔導諮商中心經費,宜蘭縣政府,"18,000"
113/01/26,國民及學前教育行政及督導 - 對各縣市政府之補助,112年度偏遠地區學校及非山非市學校(原住民學校)設施設備計畫經費,花蓮縣政府,"7,610,655"
113/01/26,國民及學前教育行政及督導 - 對各縣市政府之補助,112學年度科技教育推動總體計畫第3期款,南投縣政府,"3,070,500"
113/01/26,國民及學前教育行政及督導 - 對各縣市政府之補助,112學年度科技教育推動總體計畫第3期款,南投縣政府,"1,212,009"
113/01/26,國民及學前教育行政及督導 - 對各縣市政府之補助,113年度校園拒毒萌芽推廣實施計畫經費,屏東縣政府,"66,193"
113/01/26,國民及學前教育行政及督導 - 對各縣市政府之補助,112學年度教育優先區計畫(除補助項目四)第2期款,苗栗縣政府,"8,295,580"
113/01/26,國民及學前教育行政及督導 - 對各縣市政府之補助,112學年度教育優先區計畫(除補助項目四)第2期款,苗栗縣政府,"281,598"
113/01/26,國民及學前教育行政及督導 - 對各縣市政府之補助,112學年度偏遠地區學校國中合理教師員額事項經費第2期款,苗栗縣政府,"19,065,312"
113/01/26,國民及學前教育行政及督導 - 對各縣市政府之補助,112學年度偏遠地區學校國中合理教師員額事項經費第2期款,苗栗縣政府,"2,984,688"
113/01/26,國民及學前教育行政及督導 - 對各縣市政府之補助,112學年度偏遠地區學校國中合理教師員額事項經費第2期款,苗栗縣政府,"1,638,000"
113/01/26,國民及學前教育行政及督導 - 對各縣市政府之補助,112學年度國民中小學安全教育重點學校計畫第2期款,苗栗縣政府,"324,000"
113/01/26,國民及學前教育行政及督導 - 對各縣市政府之補助,113年度校園拒毒萌芽推廣實施計畫經費,苗栗縣政府,"134,397"
113/01/26,國民及學前教育行政及督導 - 對直轄市政府之補助,113年1至12月份因應取消軍訓教官薪資所得免稅配套措施校園安全值班費,桃園市政府,"456,000"
113/01/26,國民及學前教育行政及督導 - 對各縣市政府之補助,113年度校園拒毒萌芽推廣實施計畫經費,基隆市政府,"98,683"
113/01/26,國民及學前教育行政及督導 - 對各縣市政府之補助,112學年度偏遠地區學校及非山非市學校整合性計畫第2期款,雲林縣政府,"897,200"
113/01/26,國民及學前教育行政及督導 - 對各縣市政府之補助,112學年度偏遠地區學校及非山非市學校整合性計畫第2期款,雲林縣政府,"2,462,800"
113/01/26,國民及學前教育行政及督導 - 對各縣市政府之補助,112學年度國民中學技藝教育競賽及成果發表活動經費,嘉義市政府,"816,100"
113/01/26,國民及學前教育行政及督導 - 對各縣市政府之補助,112學年度國民中學生涯發展教育計畫(含出版品印製)第2期款,嘉義縣政府,"682,080"
113/01/26,國民及學前教育行政及督導 - 對各縣市政府之補助,112學年度偏遠地區學校國中增置專長教師員額所需經費第2期款,嘉義縣政府,"1,638,000"
113/01/26,國民及學前教育行政及督導 - 對各縣市政府之補助,112學年度偏遠地區學校國中合理教師員額事項經費第2期款,嘉義縣政府,"16,637,600"
113/01/26,國民及學前教育行政及督導 - 對各縣市政府之補助,112學年度偏遠地區學校國中合理教師員額事項經費第2期款,嘉義縣政府,"4,082,400"
113/01/26,國民及學前教育行政及督導 - 對各縣市政府之補助,112學年度第2期學費差額補助經費,嘉義縣政府,"2,220,692"
113/01/26,國民及學前教育行政及督導 - 對各縣市政府之補助,113年度校園拒毒萌芽推廣實施計畫經費,嘉義縣政府,"84,105"
113/01/26,國民及學前教育行政及督導 - 對各縣市政府之補助,112學年度國民中學區域職業試探與體驗示範中心計畫第2期款,彰化縣政府,"2,133,000"
113/01/26,國民及學前教育行政及督導 - 對各縣市政府之補助,112學年度原住民學生一般課業輔導鐘點費 (第二期),彰化縣政府,"8,800"
113/01/26,國民及學前教育行政及督導 - 對各縣市政府之補助,113年度校園拒毒萌芽推廣實施計畫經費,彰化縣政府,"166,341"
113/01/26,國民及學前教育行政及督導 - 對各縣市政府之補助,113年度校園拒毒萌芽推廣實施計畫經費,臺東縣政府,"50,463"
113/01/26,國民及學前教育行政及督導 - 對直轄市政府之補助,大額通報教補1月30日-楠陽國小等5處新建公共幼兒園園舍工程經費,高雄市政府教育局,"136,669,000"
113/01/26,國民及學前教育行政及督導 - 對直轄市政府之補助,113年1至12月份因應取消軍訓教官薪資所得免稅配套措施校園安全值班費,高雄市政府教育局,"2,419,200"
113/01/26,國民及學前教育行政及督導 - 對特種基金之補助,113年度聘用專任專業輔導人員差旅費,國立中興高級中學,"50,000"
113/01/26,國民及學前教育行政及督導 - 對特種基金之補助,112學年度原住民學生一般課業輔導鐘點費 (第二期),國立台東高級中學,"118,000"
113/01/26,國民及學前教育行政及督導 - 對特種基金之補助,113年度推動全民國防教育多元活動經費,國立竹東高級中學,"145,000"
113/01/26,國民及學前教育行政及督導 - 對特種基金之補助,113年度聘用專任專業輔導人員差旅費,國立屏東高級中學,"40,000"
113/01/26,國民及學前教育行政及督導 - 對特種基金之補助,113年度聘用專任專業輔導人員差旅費,國立嘉義高級中學,"10,000"
113/01/26,國民及學前教育行政及督導 - 對特種基金之補助,113年度專任專業輔導人員差旅費,國立彰化高級中學,"150,000"
113/01/26,國民及學前教育行政及督導 - 對特種基金之補助,補助112學年度各地方政府及教育部轄管高中臺灣手語開班經費(第2期),國立鳳新高級中學,"149,406"
113/01/26,國民及學前教育行政及督導 - 對直轄市政府之補助,112學年度國民中小學原住民族語文協同人員經費-第2期款,新北市政府教育局,"3,997,781"
113/01/26,國民及學前教育行政及督導 - 對直轄市政府之補助,112學年度國民中小學學生學習扶助計畫第2期款,新北市政府教育局,"49,310,151"
113/01/26,國民及學前教育行政及督導 - 對直轄市政府之補助,上林國小108年度改善偏遠地區國民中小學師生宿舍計畫(第二次)興建工程經費,新北市政府教育局,"5,270,361"
113/01/26,國民及學前教育行政及督導 - 對直轄市政府之補助,113年1至12月份因應取消軍訓教官薪資所得免稅配套措施校園安全值班費,新北市政府教育局,"1,296,000"
113/01/26,國民及學前教育行政及督導 - 對直轄市政府之補助,112學年度十二年國民基本教育課程綱要普通型數位前導學校計畫,新北市政府教育局,"6,247,500"
113/01/26,國民及學前教育行政及督導 - 對直轄市政府之補助,112學年度原住民學生一般課業輔導鐘點費 (第二期),臺中市政府教育局,"101,640"
113/01/26,國民及學前教育行政及督導 - 對直轄市政府之補助,112學年度第2學期發展及改進原住民技職教育計畫經費,臺中市政府教育局,"285,600"
113/01/26,國民及學前教育行政及督導 - 對直轄市政府之補助,113年1至12月份因應取消軍訓教官薪資所得免稅配套措施校園安全值班費,臺中市政府教育局,"456,000"
113/01/26,國民及學前教育行政及督導 - 對直轄市政府之補助,113年1至12月份因應取消軍訓教官薪資所得免稅配套措施校園安全值班費,臺北市政府教育局,"2,522,400"
113/01/26,國民及學前教育行政及督導 - 對直轄市政府之補助,112學年度國民中小學學生學習扶助計畫第2期款,臺南市政府教育局,"39,764,929"
113/01/26,國民及學前教育行政及督導 - 對直轄市政府之補助,補助112學年度各地方政府及教育部轄管高中臺灣手語開班經費(第2期),臺南市政府教育局,"89,229"
113/01/26,國民及學前教育行政及督導 - 對直轄市政府之補助,112學年度高中優質化輔助方案,臺南市政府教育局,"2,402,000"
113/01/26,國民及學前教育行政及督導 - 對直轄市政府之補助,113年1至12月份因應取消軍訓教官薪資所得免稅配套措施校園安全值班費,臺南市政府教育局,"32,000"
113/01/26,國民及學前教育行政及督導 - 對直轄市政府之補助,112學年度十二年國民基本教育課程綱要普通型數位前導學校計畫,臺南市政府教育局,"1,848,000"
113/01/26,國民及學前教育行政及督導 - 對特種基金之補助,112學年度第2學期高級中等學校提升學生實習實作能力-正選國手培訓經費,國立台南家齊高級中學,"360,480"
113/01/26,國民及學前教育行政及督導 - 對特種基金之補助,113年度聘用專任專業輔導人員差旅費,國立花蓮女子高級中學,"25,000"
113/01/26,國民及學前教育行政及督導 - 對私校之獎助,112學年度高級中等學校本土語文(閩南語、閩東語、客語文)課程開課經費-第2期款,新竹縣私立義民高級中學,"318,450"
113/01/26,國民及學前教育行政及督導 - 對私校之獎助,112學年度高級中等學校原住民族語課程開課經費-第2期款,新竹縣私立義民高級中學,"20,018"
113/01/26,國民及學前教育行政及督導 - 對特種基金之補助,113年度聘用專任專業輔導人員差旅費,國立二林高級工商職業學校,"20,000"
113/01/26,國民及學前教育行政及督導 - 對特種基金之補助,112學年度第2學期高級中等學校提升學生實習實作能力-正選國手培訓經費,國立土庫高級商工職業學校,"100,000"
113/01/26,國民及學前教育行政及督導 - 對特種基金之補助,112學年度高級中等學校本土語文(閩南語、閩東語、客語文)課程開課經費-第2期款,國立白河高級商工職業學校,"13,655"
113/01/26,國民及學前教育行政及督導 - 對特種基金之補助,112學年度第2學期高級中等學校提升學生實習實作能力-正選國手培訓經費,國立秀水高級工業職業學校,"126,460"
113/01/26,國民及學前教育行政及督導 - 對特種基金之補助,112學年度原住民學生一般課業輔導鐘點費 (第二期),國立宜蘭高級商業職業學校,"9,000"
113/01/26,國民及學前教育行政及督導 - 對特種基金之補助,113年度推動全民國防教育多元活動經費,國立花蓮高級農業職業學校,"65,000"
113/01/26,國民及學前教育行政及督導 - 對特種基金之補助,112學年度第2學期高級中等學校提升學生實習實作能力-正選國手培訓經費,國立草屯高級商工職業學校,"194,100"
113/01/26,國民及學前教育行政及督導 - 對特種基金之補助,113年度推動全民國防教育多元活動經費,國立曾文高級農工職業學校,"501,900"
113/01/26,國民及學前教育行政及督導 - 對特種基金之補助,113年度推動全民國防教育多元活動經費,國立新竹高級商業職業學校,"121,800"
113/01/26,國民及學前教育行政及督導 - 對特種基金之補助,112學年度第2學期高級中等學校提升學生實習實作能力-正選國手培訓經費,國立嘉義高級工業職業學校,"200,000"
113/01/26,國民及學前教育行政及督導 - 對特種基金之補助,113年度推動全民國防教育多元活動經費,國立斗六高級家事商業職業學校,"119,800"
113/01/26,國民及學前教育行政及督導 - 對特種基金之補助,112學年度第2學期高級中等學校提升學生實習實作能力-正選國手培訓經費,國立員林崇實高級工業職業學校,"100,000"
113/01/26,國民及學前教育行政及督導 - 對特種基金之補助,112學年度增置國民中小學圖書館閱讀推動教師計畫第2期款,國立東華大學附設實小401專戶,"65,600"
113/01/26,國民及學前教育行政及督導 - 對私校之獎助,112學年度原住民學生一般課業輔導鐘點費 (第二期),嘉義市私立東吳高級工業家事職業學校,"21,000"
113/01/26,國民及學前教育行政及督導 - 對私校之獎助,112學年度高級中等學校本土語文(閩南語、閩東語、客語文)課程開課經費-第2期款,嘉義市私立東吳高級工業家事職業學校,"56,094"
113/01/26,國民及學前教育行政及督導 - 對私校之獎助,112學年度高級中等學校原住民族語課程開課經費-第2期款,嘉義市私立東吳高級工業家事職業學校,"9,396"
113/01/26,國民及學前教育行政及督導 - 對私校之獎助,113年度僑生輔導經費,嘉義市私立東吳高級工業家事職業學校,"48,600"
113/01/26,國民及學前教育行政及督導 - 對私校之獎助,112學年度第2學期高級中等學校提升學生實習實作能力-正選國手培訓經費,嘉義市私立東吳高級工業家事職業學校,"100,000"
113/01/26,國民及學前教育行政及督導 - 對特種基金之補助,113年度聘用專任專業輔導人員差旅費,國立彰化師範大學附屬高級工業職業學校,"25,000"
113/01/26,國民及學前教育行政及督導 - 對特種基金之補助,112學年度第2學期高級中等學校提升學生實習實作能力-正選國手培訓經費,國立彰化師範大學附屬高級工業職業學校,"315,780"
113/01/26,國民及學前教育行政及督導 - 對特種基金之補助,112學年度高級中等學校本土語文(閩南語、閩東語、客語文)課程開課經費-第2期款,國立臺北科技大學附屬桃園農工高級中等學校,"119,984"
113/01/26,國民及學前教育行政及督導 - 對特種基金之補助,補助112學年度各地方政府及教育部轄管高中臺灣手語開班經費(第2期),國立臺北科技大學附屬桃園農工高級中等學校,"54,426"
113/01/26,國民及學前教育行政及督導 - 對特種基金之補助,113年度聘用專任專業輔導人員差旅費,國立臺北科技大學附屬桃園農工高級中等學校,"45,000"
113/01/26,國民及學前教育行政及督導 - 對特種基金之補助,112學年度第2學期高級中等學校提升學生實習實作能力-正選國手培訓經費,國立臺北科技大學附屬桃園農工高級中等學校,"108,820"
113/01/26,國民及學前教育行政及督導 - 政府機關間之補助,112學年度職場互助教保服務中心業務費第2期款,國軍退除役官兵輔導委員會高雄榮譽國民之家,"120,000"
113/01/26,國民及學前教育行政及督導 - 對私校之獎助,112學年度第2學期發展及改進原住民技職教育計畫經費,上騰學校財團法人花蓮縣上騰高級工商職業學校,"250,000"
113/01/26,國民及學前教育行政及督導 - 對私校之獎助,112學年度第2學期高級中等學校提升學生實習實作能力-正選國手培訓經費,中山學校財團法人高雄市中山高級工商職業學校,"126,460"
113/01/26,國民及學前教育行政及督導 - 對私校之獎助,112學年度原住民學生一般課業輔導鐘點費 (第二期),陽明學校財團法人臺南市陽明高級工商職業學校,"9,000"
113/01/29,國民及學前教育行政及督導 - 對各縣市政府之補助,113年度公立高級中等學校充實行政人力計畫,宜蘭縣政府,"1,479,916"
113/01/29,國民及學前教育行政及督導 - 對各縣市政府之補助,112學年度國民小學及國民中學活化教學與多元學習計畫第2期款,宜蘭縣政府,"1,001,325"
113/01/29,國民及學前教育行政及督導 - 對各縣市政府之補助,112學年度國民小學及國民中學活化教學與多元學習計畫第2期款,宜蘭縣政府,"707,182"
113/01/29,國民及學前教育行政及督導 - 對各縣市政府之補助,職場教保服務中心112學年度第2學期學費差額補助經費,宜蘭縣政府,"9,137,229"
113/01/29,國民及學前教育行政及督導 - 對各縣市政府之補助,"112學年度偏遠地區及非山非市公立高級中等學校學生通學交通費實施計畫(67,182、12,096,000)",屏東縣政府,"12,096,000"
113/01/29,國民及學前教育行政及督導 - 對各縣市政府之補助,"112學年度偏遠地區及非山非市公立高級中等學校學生通學交通費實施計畫(67,182、12,096,000)",屏東縣政府,"67,182"
113/01/29,國民及學前教育行政及督導 - 對各縣市政府之補助,112學年度國民小學及國民中學活化教學與多元學習計畫第2期款,屏東縣政府,"1,868,421"
113/01/29,國民及學前教育行政及督導 - 對各縣市政府之補助,112學年度國民小學及國民中學活化教學與多元學習計畫第2期款,屏東縣政府,"13,966,197"
113/01/29,國民及學前教育行政及督導 - 對各縣市政府之補助,補助113年度綜合高中學程經費,苗栗縣政府,"342,000"
113/01/29,國民及學前教育行政及督導 - 對各縣市政府之補助,113年度公立高級中等學校充實行政人力計畫,苗栗縣政府,"3,656,264"
113/01/29,國民及學前教育行政及督導 - 對各縣市政府之補助,113年度公立高級中等學校充實行政人力計畫,雲林縣政府,"3,133,940"
113/01/29,國民及學前教育行政及督導 - 對各縣市政府之補助,113年度公立高級中等學校充實行政人力計畫,新竹市政府,"1,392,862"
113/01/29,國民及學前教育行政及督導 - 對各縣市政府之補助,112學年度實施十二年國民基本教育課程新增鐘點費第2期款,新竹市政府,"1,299,984"
113/01/29,國民及學前教育行政及督導 - 對各縣市政府之補助,辦理112學年度「輔導教師人力運用計畫」第2期款,新竹縣政府,"508,570"
113/01/29,國民及學前教育行政及督導 - 對各縣市政府之補助,辦理112學年度「輔導教師人力運用計畫」第2期款,新竹縣政府,"36,808,000"
113/01/29,國民及學前教育行政及督導 - 對各縣市政府之補助,辦理112學年度「輔導教師人力運用計畫」第2期款,嘉義市政府,"208,159"
113/01/29,國民及學前教育行政及督導 - 對各縣市政府之補助,辦理112學年度「輔導教師人力運用計畫」第2期款,嘉義市政府,"14,432,000"
113/01/29,國民及學前教育行政及督導 - 對各縣市政府之補助,112學年度偏遠地區及非山非市公立高級中等學校學生通學交通費實施計畫,嘉義縣政府,"5,590,998"
113/01/29,國民及學前教育行政及督導 - 對各縣市政府之補助,112學年度偏遠地區及非山非市公立高級中等學校學生通學交通費實施計畫,彰化縣政府,"2,393,899"
113/01/29,國民及學前教育行政及督導 - 對直轄市政府之補助,113年度公立高級中等學校充實行政人力計畫,高雄市政府教育局,"12,311,465"
113/01/29,國民及學前教育行政及督導 - 對直轄市政府之補助,112學年度技術型及綜合型高級中等學校十二年國民基本教育課程綱要前導學校工作計畫,高雄市政府教育局,"836,000"
113/01/29,國民及學前教育行政及督導 - 對直轄市政府之補助,112學年度科技教育推動總體計畫第3期款,高雄市政府教育局,"6,556,000"
113/01/29,國民及學前教育行政及督導 - 對特種基金之補助,113年度公立高級中等學校學習歷程人力計畫,國立中興高級中學,"580,359"
113/01/29,國民及學前教育行政及督導 - 對特種基金之補助,舊科學教室建築物耐震能力詳細評估經費,國立北港高級中學,"150,000"
113/01/29,國民及學前教育行政及督導 - 投資,113年度高級中等學校充實教學實習設備計畫-專業群科,國立竹北高級中學,"208,000"
113/01/29,國民及學前教育行政及督導 - 對特種基金之補助,113年度公立高級中等學校學習歷程人力計畫,國立東石高級中學,"580,359"
113/01/29,國民及學前教育行政及督導 - 對特種基金之補助,113-114年度國立高級中等學校汙水及排水系統建置暨改善工程計畫,國立虎尾高級中學,"2,200,000"
113/01/29,國民及學前教育行政及督導 - 對特種基金之補助,113年度公立高級中等學校學習歷程人力計畫,國立南投高級中學,"580,359"
113/01/29,國民及學前教育行政及督導 - 對特種基金之補助,112學年度國立學校聘任資源班行政助理計畫經費,國立南投高級中學,"406,260"
113/01/29,國民及學前教育行政及督導 - 對特種基金之補助,113-114年度國立高級中等學校汙水及排水系統建置暨改善工程計畫,國立員林高級中學,"900,000"
113/01/29,國民及學前教育行政及督導 - 對特種基金之補助,113-114年度國立高級中等學校汙水及排水系統建置暨改善工程計畫,國立馬祖高級中學,"1,500,000"
113/01/29,國民及學前教育行政及督導 - 對特種基金之補助,113年度公立高級中等學校學習歷程人力計畫,國立鹿港高級中學,"880,359"
113/01/29,國民及學前教育行政及督導 - 對特種基金之補助,113年度公立高級中等學校學習歷程人力計畫,國立溪湖高級中學,"580,359"
113/01/29,國民及學前教育行政及督導 - 對特種基金之補助,113年度公立高級中等學校學習歷程人力計畫,國立旗美高級中學,"580,359"
113/01/29,國民及學前教育行政及督導 - 對特種基金之補助,113-114年度國立高級中等學校汙水及排水系統建置暨改善工程計畫,國立旗美高級中學,"800,000"
113/01/29,國民及學前教育行政及督導 - 對特種基金之補助,112學年度實施十二年國民基本教育課程新增鐘點費第2期款,國立鳳山高級中學,"915,600"
113/01/29,國民及學前教育行政及督導 - 對特種基金之補助,113-114年度國立高級中等學校汙水及排水系統建置暨改善工程計畫,國立潮州高級中學,"1,800,000"
113/01/29,國民及學前教育行政及督導 - 對特種基金之補助,113-114年度國立高級中等學校汙水及排水系統建置暨改善工程計畫,國立關西高級中學,"1,500,000"
113/01/29,國民及學前教育行政及督導 - 對直轄市政府之補助,大額通報教補1月31日-辦理112學年度「輔導教師人力運用計畫」第2期款,新北市政府教育局,"545,782"
113/01/29,國民及學前教育行政及督導 - 對直轄市政府之補助,大額通報教補1月31日-辦理112學年度「輔導教師人力運用計畫」第2期款,新北市政府教育局,"163,200,000"
113/01/29,國民及學前教育行政及督導 - 對直轄市政府之補助,112學年度偏遠地區及非山非市公立高級中等學校學生通學交通費實施計畫,新北市政府教育局,"13,889,756"
113/01/29,國民及學前教育行政及督導 - 對直轄市政府之補助,112學年度技術型及綜合型高級中等學校十二年國民基本教育課程綱要前導學校工作計畫,新北市政府教育局,"2,465,000"
113/01/29,國民及學前教育行政及督導 - 對直轄市政府之補助,112學年度國民小學及國民中學活化教學與多元學習計畫第2期款,新北市政府教育局,"1,368,311"
113/01/29,國民及學前教育行政及督導 - 對直轄市政府之補助,112學年度國民小學及國民中學活化教學與多元學習計畫第2期款,新北市政府教育局,"5,624,149"
113/01/29,國民及學前教育行政及督導 - 對直轄市政府之補助,112學年度第1學期高級中等學校低收入戶及中低收入戶學生學雜費減免補助,臺中市政府教育局,"7,596"
113/01/29,國民及學前教育行政及督導 - 對直轄市政府之補助,112學年度第1學期高級中等學校特殊境遇家庭子女孫子女學雜費減免補助,臺中市政府教育局,"2,037"
113/01/29,國民及學前教育行政及督導 - 對直轄市政府之補助,113年度公立高級中等學校充實行政人力計畫,臺中市政府教育局,"10,040,655"
113/01/29,國民及學前教育行政及督導 - 對直轄市政府之補助,113年度公立高級中等學校學習歷程人力計畫,臺中市政府教育局,"765,912"
113/01/29,國民及學前教育行政及督導 - 對直轄市政府之補助,112學年度技術型及綜合型高級中等學校十二年國民基本教育課程綱要前導學校工作計畫,臺中市政府教育局,"1,275,000"
113/01/29,國民及學前教育行政及督導 - 對直轄市政府之補助,112學年度實施十二年國民基本教育課程新增鐘點費第2期款,臺中市政府教育局,"15,353,516"
113/01/29,國民及學前教育行政及督導 - 對直轄市政府之補助,大額通報教補1月31日-辦理112學年度「輔導教師人力運用計畫」第2期款,臺北市政府教育局,"108,480,000"
113/01/29,國民及學前教育行政及督導 - 對私校之獎助,113年度高級中等學校充實教學實習設備計畫-專業群科,臺南市六信高級中學,"312,000"
113/01/29,國民及學前教育行政及督導 - 對特種基金之補助,112學年度國立學校聘任資源班行政助理計畫經費,國立台南第二高級中學,"406,260"
113/01/29,國民及學前教育行政及督導 - 對特種基金之補助,113-114年度國立高級中等學校汙水及排水系統建置暨改善工程計畫,國立彰化女子高級中學,"800,000"
113/01/29,國民及學前教育行政及督導 - 對學生之獎助,112學年度第1學期高級中等學校低收入戶及中低收入戶學生學雜費減免補助,新竹市私立光復高級中學,"61,516"
113/01/29,國民及學前教育行政及督導 - 對私校之獎助,113年度高級中等學校充實教學實習設備計畫-專業群科,臺南市私立新榮高級中學,"120,800"
113/01/29,國民及學前教育行政及督導 - 對特種基金之補助,113年度公立高級中等學校學習歷程人力計畫,國立二林高級工商職業學校,"580,359"
113/01/29,國民及學前教育行政及督導 - 對特種基金之補助,113-114年度國立高級中等學校汙水及排水系統建置暨改善工程計畫,國立二林高級工商職業學校,"800,000"
113/01/29,國民及學前教育行政及督導 - 對特種基金之補助,113-114年度國立高級中等學校汙水及排水系統建置暨改善工程計畫,國立仁愛高級農業職業學校,"4,000,000"
113/01/29,國民及學前教育行政及督導 - 對特種基金之補助,113年度高級中等學校充實教學實習設備計畫-專業群科,國立內埔高級農工職業學校,"18,000"
113/01/29,國民及學前教育行政及督導 - 投資,113年度高級中等學校充實教學實習設備計畫-專業群科,國立內埔高級農工職業學校,"1,232,000"
113/01/29,國民及學前教育行政及督導 - 對特種基金之補助,113年度公立高級中等學校學習歷程人力計畫,國立水里高級商工職業學校,"580,359"
113/01/29,國民及學前教育行政及督導 - 對特種基金之補助,113年度公立高級中等學校學習歷程人力計畫,國立北門高級農工職業學校,"580,359"
113/01/29,國民及學前教育行政及督導 - 對特種基金之補助,112學年度國立學校聘任資源班行政助理計畫經費,國立北門高級農工職業學校,"406,260"
113/01/29,國民及學前教育行政及督導 - 對特種基金之補助,113年度高級中等學校充實教學實習設備計畫-專業群科,國立北港高級農工職業學校,"117,000"
113/01/29,國民及學前教育行政及督導 - 投資,113年度高級中等學校充實教學實習設備計畫-專業群科,國立北港高級農工職業學校,"1,133,000"
113/01/29,國民及學前教育行政及督導 - 投資,113年度高級中等學校充實教學實習設備計畫-專業群科,國立玉井高級工商職業學校,"1,250,000"
113/01/29,國民及學前教育行政及督導 - 對特種基金之補助,113-114年度國立高級中等學校汙水及排水系統建置暨改善工程計畫,國立成功商業水產職業學校,"2,000,000"
113/01/29,國民及學前教育行政及督導 - 對特種基金之補助,112學年度國立學校聘任資源班行政助理計畫經費,國立成功商業水產職業學校,"406,260"
113/01/29,國民及學前教育行政及督導 - 對特種基金之補助,113-114年度國立高級中等學校汙水及排水系統建置暨改善工程計畫,國立西螺高級農工職業學校,"1,500,000"
113/01/29,國民及學前教育行政及督導 - 對特種基金之補助,113年度高級中等學校充實教學實習設備計畫-專業群科,國立秀水高級工業職業學校,"198,000"
113/01/29,國民及學前教育行政及督導 - 投資,113年度高級中等學校充實教學實習設備計畫-專業群科,國立秀水高級工業職業學校,"802,000"
113/01/29,國民及學前教育行政及督導 - 對特種基金之補助,113年度高級中等學校充實教學實習設備計畫-專業群科,國立岡山高級農工職業學校,"30,000"
113/01/29,國民及學前教育行政及督導 - 投資,113年度高級中等學校充實教學實習設備計畫-專業群科,國立岡山高級農工職業學校,"970,000"
113/01/29,國民及學前教育行政及督導 - 對特種基金之補助,112學年度國立學校聘任資源班行政助理計畫經費,國立虎尾高級農工職業學校,"406,260"
113/01/29,國民及學前教育行政及督導 - 投資,113年度高級中等學校充實教學實習設備計畫-專業群科,國立虎尾高級農工職業學校,"1,000,000"
113/01/29,國民及學前教育行政及督導 - 對特種基金之補助,113-114年度國立高級中等學校汙水及排水系統建置暨改善工程計畫,國立屏東高級工業職業學校,"15,400,000"
113/01/29,國民及學前教育行政及督導 - 對特種基金之補助,113年度高級中等學校充實教學實習設備計畫-專業群科,國立屏東高級工業職業學校,"154,500"
113/01/29,國民及學前教育行政及督導 - 投資,113年度高級中等學校充實教學實習設備計畫-專業群科,國立屏東高級工業職業學校,"845,500"
113/01/29,國民及學前教育行政及督導 - 投資,113年度高級中等學校充實教學實習設備計畫-專業群科,國立恆春高級工商職業學校,"1,500,000"
113/01/29,國民及學前教育行政及督導 - 對特種基金之補助,112學年度國立學校聘任資源班行政助理計畫經費,國立員林高級農工職業學校,"380,302"
113/01/29,國民及學前教育行政及督導 - 對特種基金之補助,113年度高級中等學校充實教學實習設備計畫-專業群科,國立華南高級商業職業學校,"51,000"
113/01/29,國民及學前教育行政及督導 - 投資,113年度高級中等學校充實教學實習設備計畫-專業群科,國立華南高級商業職業學校,"573,000"
113/01/29,國民及學前教育行政及督導 - 投資,113年度高級中等學校充實教學實習設備計畫-專業群科,國立新化高級工業職業學校,"749,000"
113/01/29,國民及學前教育行政及督導 - 對特種基金之補助,113年度公立高級中等學校學習歷程人力計畫,國立新竹高級工業職業學校,"580,359"
113/01/29,國民及學前教育行政及督導 - 對特種基金之補助,113年度高級中等學校充實教學實習設備計畫-專業群科,國立新竹高級工業職業學校,"8,000"
113/01/29,國民及學前教育行政及督導 - 投資,113年度高級中等學校充實教學實習設備計畫-專業群科,國立新竹高級工業職業學校,"992,000"
113/01/29,國民及學前教育行政及督導 - 對特種基金之補助,112學年度技術型及綜合型高級中等學校十二年國民基本教育課程綱要前導學校工作計畫,國立新竹高級商業職業學校,"525,000"
113/01/29,國民及學前教育行政及督導 - 對特種基金之補助,113年度公立高級中等學校學習歷程人力計畫,國立嘉義高級工業職業學校,"580,359"
113/01/29,國民及學前教育行政及督導 - 對特種基金之補助,113-114年度國立高級中等學校汙水及排水系統建置暨改善工程計畫,國立旗山高級農工職業學校,"3,500,000"
113/01/29,國民及學前教育行政及督導 - 對特種基金之補助,112學年度國立學校聘任資源班行政助理計畫經費,國立暨南大學附屬高級中學,"406,260"
113/01/29,國民及學前教育行政及督導 - 對特種基金之補助,113年度高級中等學校充實教學實習設備計畫-專業群科,國立暨南大學附屬高級中學,"256,800"
113/01/29,國民及學前教育行政及督導 - 投資,113年度高級中等學校充實教學實習設備計畫-專業群科,國立暨南大學附屬高級中學,"993,200"
113/01/29,國民及學前教育行政及督導 - 對特種基金之補助,113-114年度國立高級中等學校汙水及排水系統建置暨改善工程計畫,國立臺南大學附屬高級中學,"3,500,000"
113/01/29,國民及學前教育行政及督導 - 對特種基金之補助,113年度公立高級中等學校學習歷程人力計畫,國立羅東高級商業職業學校,"300,000"
113/01/29,國民及學前教育行政及督導 - 對特種基金之補助,113-114年度國立高級中等學校汙水及排水系統建置暨改善工程計畫,國立中央大學附屬中壢高級中學,"2,760,000"
113/01/29,國民及學前教育行政及督導 - 對特種基金之補助,112學年度國立學校聘任資源班行政助理計畫經費,國立斗六高級家事商業職業學校,"406,260"
113/01/29,國民及學前教育行政及督導 - 對特種基金之補助,113-114年度國立高級中等學校汙水及排水系統建置暨改善工程計畫,國立北斗高級家事商業職業學校,"2,500,000"
113/01/29,國民及學前教育行政及督導 - 對特種基金之補助,113年度高級中等學校充實教學實習設備計畫-專業群科,國立東港高級海事水產職業學校,"249,600"
113/01/29,國民及學前教育行政及督導 - 投資,113年度高級中等學校充實教學實習設備計畫-專業群科,國立東港高級海事水產職業學校,"582,400"
113/01/29,國民及學前教育行政及督導 - 對特種基金之補助,112學年度國立學校聘任資源班行政助理計畫經費,國立員林高級家事商業職業學校,"406,260"
113/01/29,國民及學前教育行政及督導 - 對特種基金之補助,112學年度技術型及綜合型高級中等學校十二年國民基本教育課程綱要前導學校工作計畫,國立澎湖高級海事水產職業學校,"750,000"
113/01/29,國民及學前教育行政及督導 - 對私校之獎助,113年度高級中等學校充實教學實習設備計畫-專業群科,苗栗縣私立龍德家事商業職業學校,"36,240"
113/01/29,國民及學前教育行政及督導 - 對私校之獎助,113年度高級中等學校充實教學實習設備計畫-專業群科,苗栗縣私立龍德家事商業職業學校,"84,560"
113/01/29,國民及學前教育行政及督導 - 對私校之獎助,112學年度實施十二年國民基本教育課程新增鐘點費第2期款,高雄縣私立高苑高級工商職業學校,"117,600"
113/01/29,國民及學前教育行政及督導 - 對私校之獎助,113年度高級中等學校充實教學實習設備計畫-專業群科,高雄縣私立高英高級工商職業學校,"693,600"
113/01/29,國民及學前教育行政及督導 - 對私校之獎助,113年度高級中等學校充實教學實習設備計畫-專業群科,雲林縣私立大德工業商業職業學校,"416,000"
113/01/29,國民及學前教育行政及督導 - 對國內團體之捐助,113年度第10屆全國高級中等學校古文背誦及古詩詞曲文吟唱比賽,社團法人中華傳統文化儒釋道教育學會,"800,000"
113/01/29,國民及學前教育行政及督導 - 對私校之獎助,113年度高級中等學校充實教學實習設備計畫-專業群科,財團法人台南市私立長榮女子高級中學,"242,400"
113/01/29,國民及學前教育行政及督導 - 對私校之獎助,112學年度實施十二年國民基本教育課程新增鐘點費第2期款,基隆市私立光隆高級家事商業職業學校,"16,800"
113/01/29,國民及學前教育行政及督導 - 對私校之獎助,113年度高級中等學校充實教學實習設備計畫-專業群科,基隆市私立光隆高級家事商業職業學校,"277,600"
113/01/29,國民及學前教育行政及督導 - 對私校之獎助,112學年度實施十二年國民基本教育課程新增鐘點費第2期款,財團法人臺灣省苗栗縣私立君毅高級中學,"159,600"
113/01/29,國民及學前教育行政及督導 - 對私校之獎助,113年度高級中等學校充實教學實習設備計畫-專業群科,財團法人臺灣省苗栗縣私立君毅高級中學,"555,200"
113/01/29,國民及學前教育行政及督導 - 對特種基金之補助,113-114年度國立高級中等學校汙水及排水系統建置暨改善工程計畫,國立成功大學附屬臺南工業高級中等學校,"2,700,000"
113/01/29,國民及學前教育行政及督導 - 對特種基金之補助,113-114年度國立高級中等學校汙水及排水系統建置暨改善工程計畫,國立臺北科技大學附屬桃園農工高級中等學校,"750,000"
